{"text_format":"1","workbook":"xlsx","n_sheets":5,"sheets":["使用说明","utm_投放URL构建","utm_批量构建","自定义参数名称","自定义参数_批量构建"],"not_rendered":{"charts":0,"images":0,"macros":1,"external_links":0,"defined_names":0,"comments":0,"pivot_tables":0},"unopened":[],"bounds":{"document_bytes":16777216,"sheet_cells":100000,"rows_first":2000,"rows_last":500,"rows_between":2000,"halvings":0,"cell_chars":16384,"cell_head_chars":4096},"cells_cut":0,"cells_raw":0,"read":"whole","date_system":"1900"}

{"sheet":"使用说明","index":0,"n_rows":30,"n_cols":5,"rows_kept":30,"cut":false,"hidden":false,"merged":[[13,4,13,5]]}
[]
[]
[]
[]
[null,"我们提供两种方式来跟踪您的广告投放；"]
[]
[null,"1. 我们推荐您使用utm参数来跟踪投放，如何构建投放URL参考前\"utm_投放URL构建\"和\"utm_批量构建\"；"]
[null,"2. 如果您已经有自己的参数体系，希望GrowingIO按照您的参数来追踪广告投放；请参考\"自定义参数名称\"和\"自定义参数_批量构建\"。"]
[]
[]
[]
[null,"我们提供utm参数和自定义参数的方式跟踪您网站的自主投放渠道 具体请参照：自主投放URL构建工具 utm参数与GrowingIO提供的维度对应关系如下："]
[]
[null,"名称","维度","例子","含义"]
[null,"广告来源","utm_source","utm_source＝baidu","这个广告投放在百度上"]
[null,"广告媒介","utm_medium","utm_medium＝cpc","广告类型是点击付费"]
[null,"广告名称","utm_campaign","utm_campaign＝tryitfree","这次推广名称:tryitfree"]
[null,"广告内容","utm_content","utm_content=textlink","广告内容是textlink"]
[null,"广告关键字","utm_term","utm_term＝免费试用","广告关键字:免费试用"]
[]
[null,"示例："]
[null,"GrowingIO在百度上投放SEM广告链接，目标URL是: www.growingio.com/ ，跟踪参数如下所示"]
[null,"utm_source＝baidu"]
[null,"utm_medium＝cpc"]
[null,"utm_campaign＝tryitfree"]
[null,"utm_content=textlink"]
[null,"utm_term＝免费试用","注：URL构建时针对中文参数值启用UrlEncode编码, 解析时启用UrlDecode解码"]
[]
[null,"生成的投放链接为："]
[null,"www.growingio.com/?utm_source＝baidu&utm_medium＝cpc&utm_campaign＝tryitfree&utm_content=textlink&utm_term＝%E5%85%8D%E8%B4%B9%E8%AF%95%E7%94%A8"]

{"sheet":"utm_投放URL构建","index":1,"n_rows":47,"n_cols":11,"rows_kept":47,"cut":false,"hidden":false,"merged":[[16,2,16,7],[11,2,11,7],[6,2,6,7],[25,2,25,7],[46,1,46,2],[30,2,30,7],[20,2,20,7],[15,2,15,7],[10,2,10,7],[41,1,41,2],[42,1,42,2],[43,1,43,2],[44,1,44,2],[45,1,45,2],[31,2,31,7],[26,2,26,7],[21,2,21,7]]}
[]
[]
[]
[null,null,"✻信息建议必填",null,null,null,null,null,null,null,"tips："]
[]
[null,null,"目标URL✻",null,null,null,null,null,null,null,"如果您需要批量构建投放URL，请使用\"批量构建\"sheet"]
[]
[null,null,"(投放广告时所指向的您网站的URL,如:www.mydomain.com/download)"]
[]
[null,null,"广告来源:utm_source✻"]
[]
[null,null,{"$f":"UrlEncode(C11)","v":""}]
[null,null,"(广告投放的平台，如：sina、baidu、sohu等）"]
[]
[null,null,"广告媒介:utm_medium✻"]
[]
[null,null,{"$f":"UrlEncode(C16)","v":""}]
[null,null,"(广告的具体媒介形式，如email、cpc等)"]
[]
[null,null,"广告名称:utm_campaign✻"]
[]
[null,null,{"$f":"UrlEncode(C21)","v":""}]
[null,null,"(广告的名称，如\"春季促销\")"]
[]
[null,null,"广告内容:utm_content"]
[]
[null,null,{"$f":"UrlEncode(C26)","v":""}]
[null,null,"(区分指向同一网址的广告，如utm_content=logolink或utm_content=textlink)"]
[]
[null,null,"广告关键词:utm_term"]
[null,null,"免费试用"]
[null,null,{"$f":"UrlEncode(C31)","v":"%E5%85%8D%E8%B4%B9%E8%AF%95%E7%94%A8"}]
[null,null,"(用来注明该广告的关键词，如\"免费试用\")"]
[]
[]
[]
[null,null,"完善以上信息后，这里会生成URL"]
[null,null,{"$f":"C7&\"?utm_source=\"&C12&\"&utm_medium=\"&C17&\"&utm_campaign=\"&C22&\"&utm_content=\"&C27&\"&utm_term=\"&C32","v":"?utm_source=&utm_medium=&utm_campaign=&utm_content=&utm_term=%E5%85%8D%E8%B4%B9%E8%AF%95%E7%94%A8"}]
[]
[]
[]
[null,"GriowingIO的维度",null,"参数名称"]
[null,"广告来源",null,"utm_soruce"]
[null,"广告媒介",null,"utm_medium"]
[null,"广告名称",null,"utm_campaign"]
[null,"广告内容",null,"utm_content"]
[null,"广告关键字",null,"utm_term"]

{"sheet":"utm_批量构建","index":2,"n_rows":204,"n_cols":19,"rows_kept":204,"cut":false,"hidden":false,"merged":[]}
[]
[null,"请将需要投放的物料批量填写在下方；",null,null,null,null,null,null,null,null,null,null,null,null,null,null,null,null,"自动生成投放URL（URL套用公式生成，默认套用了200行，超过200行请您自行复制公式）"]
[]
[null,"目标URL✻",null,"广告来源:utm_source✻",null,null,"广告媒介:utm_medium✻",null,null,"广告名称:utm_campaign✻",null,null,"广告内容:utm_content",null,null,"广告关键词:utm_term",null,null,"投放URL"]
[null,null,null,null,{"$f":"UrlEncode(D5)","v":""},null,null,{"$f":"UrlEncode(G5)","v":""},null,null,{"$f":"UrlEncode(J5)","v":""},null,null,{"$f":"UrlEncode(M5)","v":""},null,null,{"$f":"UrlEncode(P5)","v":""},null,{"$f":"B5&\"?utm_source=\"&E5&\"&utm_medium=\"&H5&\"&utm_campaign=\"&K5&\"&utm_content=\"&N5&\"&utm_term=\"&Q5","v":"?utm_source=&utm_medium=&utm_campaign=&utm_content=&utm_term="}]
[null,null,null,null,{"$f":"UrlEncode(D6)","v":""},null,null,{"$f":"UrlEncode(G6)","v":""},null,null,{"$f":"UrlEncode(J6)","v":""},null,null,{"$f":"UrlEncode(M6)","v":""},null,null,{"$f":"UrlEncode(P6)","v":""},null,{"$f":"B6&\"?utm_source=\"&E6&\"&utm_medium=\"&H6&\"&utm_campaign=\"&K6&\"&utm_content=\"&N6&\"&utm_term=\"&Q6","v":"?utm_source=&utm_medium=&utm_campaign=&utm_content=&utm_term="}]
[null,null,null,null,"",null,null,"",null,null,"",null,null,"",null,null,"",null,"?utm_source=&utm_medium=&utm_campaign=&utm_content=&utm_term="]
[null,null,null,null,"",null,null,"",null,null,"",null,null,"",null,null,"",null,"?utm_source=&utm_medium=&utm_campaign=&utm_content=&utm_term="]
[null,null,null,null,"",null,null,"",null,null,"",null,null,"",null,null,"",null,"?utm_source=&utm_medium=&utm_campaign=&utm_content=&utm_term="]
[null,null,null,null,"",null,null,"",null,null,"",null,null,"",null,null,"",null,"?utm_source=&utm_medium=&utm_campaign=&utm_content=&utm_term="]
[null,null,null,null,"",null,null,"",null,null,"",null,null,"",null,null,"",null,"?utm_source=&utm_medium=&utm_campaign=&utm_content=&utm_term="]
[null,null,null,null,"",null,null,"",null,null,"",null,null,"",null,null,"",null,"?utm_source=&utm_medium=&utm_campaign=&utm_content=&utm_term="]
[null,null,null,null,"",null,null,"",null,null,"",null,null,"",null,null,"",null,"?utm_source=&utm_medium=&utm_campaign=&utm_content=&utm_term="]
[null,null,null,null,"",null,null,"",null,null,"",null,null,"",null,null,"",null,"?utm_source=&utm_medium=&utm_campaign=&utm_content=&utm_term="]
[null,null,null,null,"",null,null,"",null,null,"",null,null,"",null,null,"",null,"?utm_source=&utm_medium=&utm_campaign=&utm_content=&utm_term="]
[null,null,null,null,"",null,null,"",null,null,"",null,null,"",null,null,"",null,"?utm_source=&utm_medium=&utm_campaign=&utm_content=&utm_term="]
[null,null,null,null,"",null,null,"",null,null,"",null,null,"",null,null,"",null,"?utm_source=&utm_medium=&utm_campaign=&utm_content=&utm_term="]
[null,null,null,null,"",null,null,"",null,null,"",null,null,"",null,null,"",null,"?utm_source=&utm_medium=&utm_campaign=&utm_content=&utm_term="]
[null,null,null,null,"",null,null,"",null,null,"",null,null,"",null,null,"",null,"?utm_source=&utm_medium=&utm_campaign=&utm_content=&utm_term="]
[null,null,null,null,"",null,null,"",null,null,"",null,null,"",null,null,"",null,"?utm_source=&utm_medium=&utm_campaign=&utm_content=&utm_term="]
[null,null,null,null,"",null,null,"",null,null,"",null,null,"",null,null,"",null,"?utm_source=&utm_medium=&utm_campaign=&utm_content=&utm_term="]
[null,null,null,null,"",null,null,"",null,null,"",null,null,"",null,null,"",null,"?utm_source=&utm_medium=&utm_campaign=&utm_content=&utm_term="]
[null,null,null,null,"",null,null,"",null,null,"",null,null,"",null,null,"",null,"?utm_source=&utm_medium=&utm_campaign=&utm_content=&utm_term="]
[null,null,null,null,{"$f":"UrlEncode(D24)","v":""},null,null,"",null,null,"",null,null,"",null,null,"",null,"?utm_source=&utm_medium=&utm_campaign=&utm_content=&utm_term="]
[null,null,null,null,"",null,null,"",null,null,"",null,null,"",null,null,"",null,"?utm_source=&utm_medium=&utm_campaign=&utm_content=&utm_term="]
[null,null,null,null,"",null,null,"",null,null,"",null,null,"",null,null,"",null,"?utm_source=&utm_medium=&utm_campaign=&utm_content=&utm_term="]
[null,null,null,null,"",null,null,"",null,null,"",null,null,"",null,null,"",null,"?utm_source=&utm_medium=&utm_campaign=&utm_content=&utm_term="]
[null,null,null,null,"",null,null,"",null,null,"",null,null,"",null,null,"",null,"?utm_source=&utm_medium=&utm_campaign=&utm_content=&utm_term="]
[null,null,null,null,"",null,null,"",null,null,"",null,null,"",null,null,"",null,"?utm_source=&utm_medium=&utm_campaign=&utm_content=&utm_term="]
[null,null,null,null,"",null,null,"",null,null,"",null,null,"",null,null,"",null,"?utm_source=&utm_medium=&utm_campaign=&utm_content=&utm_term="]
[null,null,null,null,"",null,null,"",null,null,"",null,null,"",null,null,"",null,"?utm_source=&utm_medium=&utm_campaign=&utm_content=&utm_term="]
[null,null,null,null,"",null,null,"",null,null,"",null,null,"",null,null,"",null,"?utm_source=&utm_medium=&utm_campaign=&utm_content=&utm_term="]
[null,null,null,null,"",null,null,"",null,null,"",null,null,"",null,null,"",null,"?utm_source=&utm_medium=&utm_campaign=&utm_content=&utm_term="]
[null,null,null,null,"",null,null,"",null,null,"",null,null,"",null,null,"",null,"?utm_source=&utm_medium=&utm_campaign=&utm_content=&utm_term="]
[null,null,null,null,"",null,null,"",null,null,"",null,null,"",null,null,"",null,"?utm_source=&utm_medium=&utm_campaign=&utm_content=&utm_term="]
[null,null,null,null,"",null,null,"",null,null,"",null,null,"",null,null,"",null,"?utm_source=&utm_medium=&utm_campaign=&utm_content=&utm_term="]
[null,null,null,null,"",null,null,"",null,null,"",null,null,"",null,null,"",null,"?utm_source=&utm_medium=&utm_campaign=&utm_content=&utm_term="]
[null,null,null,null,"",null,null,"",null,null,"",null,null,"",null,null,"",null,"?utm_source=&utm_medium=&utm_campaign=&utm_content=&utm_term="]
[null,null,null,null,"",null,null,"",null,null,"",null,null,"",null,null,"",null,"?utm_source=&utm_medium=&utm_campaign=&utm_content=&utm_term="]
[null,null,null,null,"",null,null,"",null,null,"",null,null,"",null,null,"",null,"?utm_source=&utm_medium=&utm_campaign=&utm_content=&utm_term="]
[null,null,null,null,"",null,null,"",null,null,"",null,null,"",null,null,"",null,"?utm_source=&utm_medium=&utm_campaign=&utm_content=&utm_term="]
[null,null,null,null,"",null,null,"",null,null,"",null,null,"",null,null,"",null,"?utm_source=&utm_medium=&utm_campaign=&utm_content=&utm_term="]
[null,null,null,null,"",null,null,"",null,null,"",null,null,"",null,null,"",null,"?utm_source=&utm_medium=&utm_campaign=&utm_content=&utm_term="]
[null,null,null,null,"",null,null,"",null,null,"",null,null,"",null,null,"",null,"?utm_source=&utm_medium=&utm_campaign=&utm_content=&utm_term="]
[null,null,null,null,"",null,null,"",null,null,"",null,null,"",null,null,"",null,"?utm_source=&utm_medium=&utm_campaign=&utm_content=&utm_term="]
[null,null,null,null,"",null,null,"",null,null,"",null,null,"",null,null,"",null,"?utm_source=&utm_medium=&utm_campaign=&utm_content=&utm_term="]
[null,null,null,null,"",null,null,"",null,null,"",null,null,"",null,null,"",null,"?utm_source=&utm_medium=&utm_campaign=&utm_content=&utm_term="]
[null,null,null,null,"",null,null,"",null,null,"",null,null,"",null,null,"",null,"?utm_source=&utm_medium=&utm_campaign=&utm_content=&utm_term="]
[null,null,null,null,"",null,null,"",null,null,"",null,null,"",null,null,"",null,"?utm_source=&utm_medium=&utm_campaign=&utm_content=&utm_term="]
[null,null,null,null,"",null,null,"",null,null,"",null,null,"",null,null,"",null,"?utm_source=&utm_medium=&utm_campaign=&utm_content=&utm_term="]
[null,null,null,null,"",null,null,"",null,null,"",null,null,"",null,null,"",null,"?utm_source=&utm_medium=&utm_campaign=&utm_content=&utm_term="]
[null,null,null,null,"",null,null,"",null,null,"",null,null,"",null,null,"",null,"?utm_source=&utm_medium=&utm_campaign=&utm_content=&utm_term="]
[null,null,null,null,"",null,null,"",null,null,"",null,null,"",null,null,"",null,"?utm_source=&utm_medium=&utm_campaign=&utm_content=&utm_term="]
[null,null,null,null,"",null,null,"",null,null,"",null,null,"",null,null,"",null,"?utm_source=&utm_medium=&utm_campaign=&utm_content=&utm_term="]
[null,null,null,null,"",null,null,"",null,null,"",null,null,"",null,null,"",null,"?utm_source=&utm_medium=&utm_campaign=&utm_content=&utm_term="]
[null,null,null,null,"",null,null,"",null,null,"",null,null,"",null,null,"",null,"?utm_source=&utm_medium=&utm_campaign=&utm_content=&utm_term="]
[null,null,null,null,"",null,null,"",null,null,"",null,null,"",null,null,"",null,"?utm_source=&utm_medium=&utm_campaign=&utm_content=&utm_term="]
[null,null,null,null,"",null,null,"",null,null,"",null,null,"",null,null,"",null,"?utm_source=&utm_medium=&utm_campaign=&utm_content=&utm_term="]
[null,null,null,null,"",null,null,"",null,null,"",null,null,"",null,null,"",null,"?utm_source=&utm_medium=&utm_campaign=&utm_content=&utm_term="]
[null,null,null,null,"",null,null,"",null,null,"",null,null,"",null,null,"",null,"?utm_source=&utm_medium=&utm_campaign=&utm_content=&utm_term="]
[null,null,null,null,"",null,null,"",null,null,"",null,null,"",null,null,"",null,"?utm_source=&utm_medium=&utm_campaign=&utm_content=&utm_term="]
[null,null,null,null,"",null,null,"",null,null,"",null,null,"",null,null,"",null,"?utm_source=&utm_medium=&utm_campaign=&utm_content=&utm_term="]
[null,null,null,null,"",null,null,"",null,null,"",null,null,"",null,null,"",null,"?utm_source=&utm_medium=&utm_campaign=&utm_content=&utm_term="]
[null,null,null,null,"",null,null,"",null,null,"",null,null,"",null,null,"",null,"?utm_source=&utm_medium=&utm_campaign=&utm_content=&utm_term="]
[null,null,null,null,"",null,null,"",null,null,"",null,null,"",null,null,"",null,"?utm_source=&utm_medium=&utm_campaign=&utm_content=&utm_term="]
[null,null,null,null,"",null,null,"",null,null,"",null,null,"",null,null,"",null,"?utm_source=&utm_medium=&utm_campaign=&utm_content=&utm_term="]
[null,null,null,null,"",null,null,"",null,null,"",null,null,"",null,null,"",null,"?utm_source=&utm_medium=&utm_campaign=&utm_content=&utm_term="]
[null,null,null,null,"",null,null,"",null,null,"",null,null,"",null,null,"",null,"?utm_source=&utm_medium=&utm_campaign=&utm_content=&utm_term="]
[null,null,null,null,"",null,null,{"$f":"UrlEncode(G69)","v":""},null,null,{"$f":"UrlEncode(J69)","v":""},null,null,{"$f":"UrlEncode(M69)","v":""},null,null,{"$f":"UrlEncode(P69)","v":""},null,"?utm_source=&utm_medium=&utm_campaign=&utm_content=&utm_term="]
[null,null,null,null,"",null,null,"",null,null,"",null,null,"",null,null,"",null,{"$f":"B70&\"?utm_source=\"&E70&\"&utm_medium=\"&H70&\"&utm_campaign=\"&K70&\"&utm_content=\"&N70&\"&utm_term=\"&Q70","v":"?utm_source=&utm_medium=&utm_campaign=&utm_content=&utm_term="}]
[null,null,null,null,"",null,null,"",null,null,"",null,null,"",null,null,"",null,"?utm_source=&utm_medium=&utm_campaign=&utm_content=&utm_term="]
[null,null,null,null,"",null,null,"",null,null,"",null,null,"",null,null,"",null,"?utm_source=&utm_medium=&utm_campaign=&utm_content=&utm_term="]
[null,null,null,null,"",null,null,"",null,null,"",null,null,"",null,null,"",null,"?utm_source=&utm_medium=&utm_campaign=&utm_content=&utm_term="]
[null,null,null,null,"",null,null,"",null,null,"",null,null,"",null,null,"",null,"?utm_source=&utm_medium=&utm_campaign=&utm_content=&utm_term="]
[null,null,null,null,"",null,null,"",null,null,"",null,null,"",null,null,"",null,"?utm_source=&utm_medium=&utm_campaign=&utm_content=&utm_term="]
[null,null,null,null,"",null,null,"",null,null,"",null,null,"",null,null,"",null,"?utm_source=&utm_medium=&utm_campaign=&utm_content=&utm_term="]
[null,null,null,null,"",null,null,"",null,null,"",null,null,"",null,null,"",null,"?utm_source=&utm_medium=&utm_campaign=&utm_content=&utm_term="]
[null,null,null,null,"",null,null,"",null,null,"",null,null,"",null,null,"",null,"?utm_source=&utm_medium=&utm_campaign=&utm_content=&utm_term="]
[null,null,null,null,"",null,null,"",null,null,"",null,null,"",null,null,"",null,"?utm_source=&utm_medium=&utm_campaign=&utm_content=&utm_term="]
[null,null,null,null,"",null,null,"",null,null,"",null,null,"",null,null,"",null,"?utm_source=&utm_medium=&utm_campaign=&utm_content=&utm_term="]
[null,null,null,null,"",null,null,"",null,null,"",null,null,"",null,null,"",null,"?utm_source=&utm_medium=&utm_campaign=&utm_content=&utm_term="]
[null,null,null,null,"",null,null,"",null,null,"",null,null,"",null,null,"",null,"?utm_source=&utm_medium=&utm_campaign=&utm_content=&utm_term="]
[null,null,null,null,"",null,null,"",null,null,"",null,null,"",null,null,"",null,"?utm_source=&utm_medium=&utm_campaign=&utm_content=&utm_term="]
[null,null,null,null,"",null,null,"",null,null,"",null,null,"",null,null,"",null,"?utm_source=&utm_medium=&utm_campaign=&utm_content=&utm_term="]
[null,null,null,null,"",null,null,"",null,null,"",null,null,"",null,null,"",null,"?utm_source=&utm_medium=&utm_campaign=&utm_content=&utm_term="]
[null,null,null,null,{"$f":"UrlEncode(D86)","v":""},null,null,"",null,null,"",null,null,"",null,null,"",null,"?utm_source=&utm_medium=&utm_campaign=&utm_content=&utm_term="]
[null,null,null,null,"",null,null,"",null,null,"",null,null,"",null,null,"",null,"?utm_source=&utm_medium=&utm_campaign=&utm_content=&utm_term="]
[null,null,null,null,"",null,null,"",null,null,"",null,null,"",null,null,"",null,"?utm_source=&utm_medium=&utm_campaign=&utm_content=&utm_term="]
[null,null,null,null,"",null,null,"",null,null,"",null,null,"",null,null,"",null,"?utm_source=&utm_medium=&utm_campaign=&utm_content=&utm_term="]
[null,null,null,null,"",null,null,"",null,null,"",null,null,"",null,null,"",null,"?utm_source=&utm_medium=&utm_campaign=&utm_content=&utm_term="]
[null,null,null,null,"",null,null,"",null,null,"",null,null,"",null,null,"",null,"?utm_source=&utm_medium=&utm_campaign=&utm_content=&utm_term="]
[null,null,null,null,"",null,null,"",null,null,"",null,null,"",null,null,"",null,"?utm_source=&utm_medium=&utm_campaign=&utm_content=&utm_term="]
[null,null,null,null,"",null,null,"",null,null,"",null,null,"",null,null,"",null,"?utm_source=&utm_medium=&utm_campaign=&utm_content=&utm_term="]
[null,null,null,null,"",null,null,"",null,null,"",null,null,"",null,null,"",null,"?utm_source=&utm_medium=&utm_campaign=&utm_content=&utm_term="]
[null,null,null,null,"",null,null,"",null,null,"",null,null,"",null,null,"",null,"?utm_source=&utm_medium=&utm_campaign=&utm_content=&utm_term="]
[null,null,null,null,"",null,null,"",null,null,"",null,null,"",null,null,"",null,"?utm_source=&utm_medium=&utm_campaign=&utm_content=&utm_term="]
[null,null,null,null,"",null,null,"",null,null,"",null,null,"",null,null,"",null,"?utm_source=&utm_medium=&utm_campaign=&utm_content=&utm_term="]
[null,null,null,null,"",null,null,"",null,null,"",null,null,"",null,null,"",null,"?utm_source=&utm_medium=&utm_campaign=&utm_content=&utm_term="]
[null,null,null,null,"",null,null,"",null,null,"",null,null,"",null,null,"",null,"?utm_source=&utm_medium=&utm_campaign=&utm_content=&utm_term="]
[null,null,null,null,"",null,null,"",null,null,"",null,null,"",null,null,"",null,"?utm_source=&utm_medium=&utm_campaign=&utm_content=&utm_term="]
[null,null,null,null,"",null,null,"",null,null,"",null,null,"",null,null,"",null,"?utm_source=&utm_medium=&utm_campaign=&utm_content=&utm_term="]
[null,null,null,null,"",null,null,"",null,null,"",null,null,"",null,null,"",null,"?utm_source=&utm_medium=&utm_campaign=&utm_content=&utm_term="]
[null,null,null,null,"",null,null,"",null,null,"",null,null,"",null,null,"",null,"?utm_source=&utm_medium=&utm_campaign=&utm_content=&utm_term="]
[null,null,null,null,"",null,null,"",null,null,"",null,null,"",null,null,"",null,"?utm_source=&utm_medium=&utm_campaign=&utm_content=&utm_term="]
[null,null,null,null,"",null,null,"",null,null,"",null,null,"",null,null,"",null,"?utm_source=&utm_medium=&utm_campaign=&utm_content=&utm_term="]
[null,null,null,null,"",null,null,"",null,null,"",null,null,"",null,null,"",null,"?utm_source=&utm_medium=&utm_campaign=&utm_content=&utm_term="]
[null,null,null,null,"",null,null,"",null,null,"",null,null,"",null,null,"",null,"?utm_source=&utm_medium=&utm_campaign=&utm_content=&utm_term="]
[null,null,null,null,"",null,null,"",null,null,"",null,null,"",null,null,"",null,"?utm_source=&utm_medium=&utm_campaign=&utm_content=&utm_term="]
[null,null,null,null,"",null,null,"",null,null,"",null,null,"",null,null,"",null,"?utm_source=&utm_medium=&utm_campaign=&utm_content=&utm_term="]
[null,null,null,null,"",null,null,"",null,null,"",null,null,"",null,null,"",null,"?utm_source=&utm_medium=&utm_campaign=&utm_content=&utm_term="]
[null,null,null,null,"",null,null,"",null,null,"",null,null,"",null,null,"",null,"?utm_source=&utm_medium=&utm_campaign=&utm_content=&utm_term="]
[null,null,null,null,"",null,null,"",null,null,"",null,null,"",null,null,"",null,"?utm_source=&utm_medium=&utm_campaign=&utm_content=&utm_term="]
[null,null,null,null,"",null,null,"",null,null,"",null,null,"",null,null,"",null,"?utm_source=&utm_medium=&utm_campaign=&utm_content=&utm_term="]
[null,null,null,null,"",null,null,"",null,null,"",null,null,"",null,null,"",null,"?utm_source=&utm_medium=&utm_campaign=&utm_content=&utm_term="]
[null,null,null,null,"",null,null,"",null,null,"",null,null,"",null,null,"",null,"?utm_source=&utm_medium=&utm_campaign=&utm_content=&utm_term="]
[null,null,null,null,"",null,null,"",null,null,"",null,null,"",null,null,"",null,"?utm_source=&utm_medium=&utm_campaign=&utm_content=&utm_term="]
[null,null,null,null,"",null,null,"",null,null,"",null,null,"",null,null,"",null,"?utm_source=&utm_medium=&utm_campaign=&utm_content=&utm_term="]
[null,null,null,null,"",null,null,"",null,null,"",null,null,"",null,null,"",null,"?utm_source=&utm_medium=&utm_campaign=&utm_content=&utm_term="]
[null,null,null,null,"",null,null,"",null,null,"",null,null,"",null,null,"",null,"?utm_source=&utm_medium=&utm_campaign=&utm_content=&utm_term="]
[null,null,null,null,"",null,null,"",null,null,"",null,null,"",null,null,"",null,"?utm_source=&utm_medium=&utm_campaign=&utm_content=&utm_term="]
[null,null,null,null,"",null,null,"",null,null,"",null,null,"",null,null,"",null,"?utm_source=&utm_medium=&utm_campaign=&utm_content=&utm_term="]
[null,null,null,null,"",null,null,"",null,null,"",null,null,"",null,null,"",null,"?utm_source=&utm_medium=&utm_campaign=&utm_content=&utm_term="]
[null,null,null,null,"",null,null,"",null,null,"",null,null,"",null,null,"",null,"?utm_source=&utm_medium=&utm_campaign=&utm_content=&utm_term="]
[null,null,null,null,"",null,null,"",null,null,"",null,null,"",null,null,"",null,"?utm_source=&utm_medium=&utm_campaign=&utm_content=&utm_term="]
[null,null,null,null,"",null,null,"",null,null,"",null,null,"",null,null,"",null,"?utm_source=&utm_medium=&utm_campaign=&utm_content=&utm_term="]
[null,null,null,null,"",null,null,"",null,null,"",null,null,"",null,null,"",null,"?utm_source=&utm_medium=&utm_campaign=&utm_content=&utm_term="]
[null,null,null,null,"",null,null,"",null,null,"",null,null,"",null,null,"",null,"?utm_source=&utm_medium=&utm_campaign=&utm_content=&utm_term="]
[null,null,null,null,"",null,null,"",null,null,"",null,null,"",null,null,"",null,"?utm_source=&utm_medium=&utm_campaign=&utm_content=&utm_term="]
[null,null,null,null,"",null,null,"",null,null,"",null,null,"",null,null,"",null,"?utm_source=&utm_medium=&utm_campaign=&utm_content=&utm_term="]
[null,null,null,null,"",null,null,"",null,null,"",null,null,"",null,null,"",null,"?utm_source=&utm_medium=&utm_campaign=&utm_content=&utm_term="]
[null,null,null,null,"",null,null,"",null,null,"",null,null,"",null,null,"",null,"?utm_source=&utm_medium=&utm_campaign=&utm_content=&utm_term="]
[null,null,null,null,"",null,null,"",null,null,"",null,null,"",null,null,"",null,"?utm_source=&utm_medium=&utm_campaign=&utm_content=&utm_term="]
[null,null,null,null,"",null,null,{"$f":"UrlEncode(G133)","v":""},null,null,{"$f":"UrlEncode(J133)","v":""},null,null,{"$f":"UrlEncode(M133)","v":""},null,null,{"$f":"UrlEncode(P133)","v":""},null,"?utm_source=&utm_medium=&utm_campaign=&utm_content=&utm_term="]
[null,null,null,null,"",null,null,"",null,null,"",null,null,"",null,null,"",null,{"$f":"B134&\"?utm_source=\"&E134&\"&utm_medium=\"&H134&\"&utm_campaign=\"&K134&\"&utm_content=\"&N134&\"&utm_term=\"&Q134","v":"?utm_source=&utm_medium=&utm_campaign=&utm_content=&utm_term="}]
[null,null,null,null,"",null,null,"",null,null,"",null,null,"",null,null,"",null,"?utm_source=&utm_medium=&utm_campaign=&utm_content=&utm_term="]
[null,null,null,null,"",null,null,"",null,null,"",null,null,"",null,null,"",null,"?utm_source=&utm_medium=&utm_campaign=&utm_content=&utm_term="]
[null,null,null,null,"",null,null,"",null,null,"",null,null,"",null,null,"",null,"?utm_source=&utm_medium=&utm_campaign=&utm_content=&utm_term="]
[null,null,null,null,"",null,null,"",null,null,"",null,null,"",null,null,"",null,"?utm_source=&utm_medium=&utm_campaign=&utm_content=&utm_term="]
[null,null,null,null,"",null,null,"",null,null,"",null,null,"",null,null,"",null,"?utm_source=&utm_medium=&utm_campaign=&utm_content=&utm_term="]
[null,null,null,null,"",null,null,"",null,null,"",null,null,"",null,null,"",null,"?utm_source=&utm_medium=&utm_campaign=&utm_content=&utm_term="]
[null,null,null,null,"",null,null,"",null,null,"",null,null,"",null,null,"",null,"?utm_source=&utm_medium=&utm_campaign=&utm_content=&utm_term="]
[null,null,null,null,"",null,null,"",null,null,"",null,null,"",null,null,"",null,"?utm_source=&utm_medium=&utm_campaign=&utm_content=&utm_term="]
[null,null,null,null,"",null,null,"",null,null,"",null,null,"",null,null,"",null,"?utm_source=&utm_medium=&utm_campaign=&utm_content=&utm_term="]
[null,null,null,null,"",null,null,"",null,null,"",null,null,"",null,null,"",null,"?utm_source=&utm_medium=&utm_campaign=&utm_content=&utm_term="]
[null,null,null,null,"",null,null,"",null,null,"",null,null,"",null,null,"",null,"?utm_source=&utm_medium=&utm_campaign=&utm_content=&utm_term="]
[null,null,null,null,"",null,null,"",null,null,"",null,null,"",null,null,"",null,"?utm_source=&utm_medium=&utm_campaign=&utm_content=&utm_term="]
[null,null,null,null,"",null,null,"",null,null,"",null,null,"",null,null,"",null,"?utm_source=&utm_medium=&utm_campaign=&utm_content=&utm_term="]
[null,null,null,null,"",null,null,"",null,null,"",null,null,"",null,null,"",null,"?utm_source=&utm_medium=&utm_campaign=&utm_content=&utm_term="]
[null,null,null,null,"",null,null,"",null,null,"",null,null,"",null,null,"",null,"?utm_source=&utm_medium=&utm_campaign=&utm_content=&utm_term="]
[null,null,null,null,{"$f":"UrlEncode(D150)","v":""},null,null,"",null,null,"",null,null,"",null,null,"",null,"?utm_source=&utm_medium=&utm_campaign=&utm_content=&utm_term="]
[null,null,null,null,"",null,null,"",null,null,"",null,null,"",null,null,"",null,"?utm_source=&utm_medium=&utm_campaign=&utm_content=&utm_term="]
[null,null,null,null,"",null,null,"",null,null,"",null,null,"",null,null,"",null,"?utm_source=&utm_medium=&utm_campaign=&utm_content=&utm_term="]
[null,null,null,null,"",null,null,"",null,null,"",null,null,"",null,null,"",null,"?utm_source=&utm_medium=&utm_campaign=&utm_content=&utm_term="]
[null,null,null,null,"",null,null,"",null,null,"",null,null,"",null,null,"",null,"?utm_source=&utm_medium=&utm_campaign=&utm_content=&utm_term="]
[null,null,null,null,"",null,null,"",null,null,"",null,null,"",null,null,"",null,"?utm_source=&utm_medium=&utm_campaign=&utm_content=&utm_term="]
[null,null,null,null,"",null,null,"",null,null,"",null,null,"",null,null,"",null,"?utm_source=&utm_medium=&utm_campaign=&utm_content=&utm_term="]
[null,null,null,null,"",null,null,"",null,null,"",null,null,"",null,null,"",null,"?utm_source=&utm_medium=&utm_campaign=&utm_content=&utm_term="]
[null,null,null,null,"",null,null,"",null,null,"",null,null,"",null,null,"",null,"?utm_source=&utm_medium=&utm_campaign=&utm_content=&utm_term="]
[null,null,null,null,"",null,null,"",null,null,"",null,null,"",null,null,"",null,"?utm_source=&utm_medium=&utm_campaign=&utm_content=&utm_term="]
[null,null,null,null,"",null,null,"",null,null,"",null,null,"",null,null,"",null,"?utm_source=&utm_medium=&utm_campaign=&utm_content=&utm_term="]
[null,null,null,null,"",null,null,"",null,null,"",null,null,"",null,null,"",null,"?utm_source=&utm_medium=&utm_campaign=&utm_content=&utm_term="]
[null,null,null,null,"",null,null,"",null,null,"",null,null,"",null,null,"",null,"?utm_source=&utm_medium=&utm_campaign=&utm_content=&utm_term="]
[null,null,null,null,"",null,null,"",null,null,"",null,null,"",null,null,"",null,"?utm_source=&utm_medium=&utm_campaign=&utm_content=&utm_term="]
[null,null,null,null,"",null,null,"",null,null,"",null,null,"",null,null,"",null,"?utm_source=&utm_medium=&utm_campaign=&utm_content=&utm_term="]
[null,null,null,null,"",null,null,"",null,null,"",null,null,"",null,null,"",null,"?utm_source=&utm_medium=&utm_campaign=&utm_content=&utm_term="]
[null,null,null,null,"",null,null,"",null,null,"",null,null,"",null,null,"",null,"?utm_source=&utm_medium=&utm_campaign=&utm_content=&utm_term="]
[null,null,null,null,"",null,null,"",null,null,"",null,null,"",null,null,"",null,"?utm_source=&utm_medium=&utm_campaign=&utm_content=&utm_term="]
[null,null,null,null,"",null,null,"",null,null,"",null,null,"",null,null,"",null,"?utm_source=&utm_medium=&utm_campaign=&utm_content=&utm_term="]
[null,null,null,null,"",null,null,"",null,null,"",null,null,"",null,null,"",null,"?utm_source=&utm_medium=&utm_campaign=&utm_content=&utm_term="]
[null,null,null,null,"",null,null,"",null,null,"",null,null,"",null,null,"",null,"?utm_source=&utm_medium=&utm_campaign=&utm_content=&utm_term="]
[null,null,null,null,"",null,null,"",null,null,"",null,null,"",null,null,"",null,"?utm_source=&utm_medium=&utm_campaign=&utm_content=&utm_term="]
[null,null,null,null,"",null,null,"",null,null,"",null,null,"",null,null,"",null,"?utm_source=&utm_medium=&utm_campaign=&utm_content=&utm_term="]
[null,null,null,null,"",null,null,"",null,null,"",null,null,"",null,null,"",null,"?utm_source=&utm_medium=&utm_campaign=&utm_content=&utm_term="]
[null,null,null,null,"",null,null,"",null,null,"",null,null,"",null,null,"",null,"?utm_source=&utm_medium=&utm_campaign=&utm_content=&utm_term="]
[null,null,null,null,"",null,null,"",null,null,"",null,null,"",null,null,"",null,"?utm_source=&utm_medium=&utm_campaign=&utm_content=&utm_term="]
[null,null,null,null,"",null,null,"",null,null,"",null,null,"",null,null,"",null,"?utm_source=&utm_medium=&utm_campaign=&utm_content=&utm_term="]
[null,null,null,null,"",null,null,"",null,null,"",null,null,"",null,null,"",null,"?utm_source=&utm_medium=&utm_campaign=&utm_content=&utm_term="]
[null,null,null,null,"",null,null,"",null,null,"",null,null,"",null,null,"",null,"?utm_source=&utm_medium=&utm_campaign=&utm_content=&utm_term="]
[null,null,null,null,"",null,null,"",null,null,"",null,null,"",null,null,"",null,"?utm_source=&utm_medium=&utm_campaign=&utm_content=&utm_term="]
[null,null,null,null,"",null,null,"",null,null,"",null,null,"",null,null,"",null,"?utm_source=&utm_medium=&utm_campaign=&utm_content=&utm_term="]
[null,null,null,null,"",null,null,"",null,null,"",null,null,"",null,null,"",null,"?utm_source=&utm_medium=&utm_campaign=&utm_content=&utm_term="]
[null,null,null,null,"",null,null,"",null,null,"",null,null,"",null,null,"",null,"?utm_source=&utm_medium=&utm_campaign=&utm_content=&utm_term="]
[null,null,null,null,"",null,null,"",null,null,"",null,null,"",null,null,"",null,"?utm_source=&utm_medium=&utm_campaign=&utm_content=&utm_term="]
[null,null,null,null,"",null,null,"",null,null,"",null,null,"",null,null,"",null,"?utm_source=&utm_medium=&utm_campaign=&utm_content=&utm_term="]
[null,null,null,null,"",null,null,"",null,null,"",null,null,"",null,null,"",null,"?utm_source=&utm_medium=&utm_campaign=&utm_content=&utm_term="]
[null,null,null,null,"",null,null,"",null,null,"",null,null,"",null,null,"",null,"?utm_source=&utm_medium=&utm_campaign=&utm_content=&utm_term="]
[null,null,null,null,"",null,null,"",null,null,"",null,null,"",null,null,"",null,"?utm_source=&utm_medium=&utm_campaign=&utm_content=&utm_term="]
[null,null,null,null,"",null,null,"",null,null,"",null,null,"",null,null,"",null,"?utm_source=&utm_medium=&utm_campaign=&utm_content=&utm_term="]
[null,null,null,null,"",null,null,"",null,null,"",null,null,"",null,null,"",null,"?utm_source=&utm_medium=&utm_campaign=&utm_content=&utm_term="]
[null,null,null,null,"",null,null,"",null,null,"",null,null,"",null,null,"",null,"?utm_source=&utm_medium=&utm_campaign=&utm_content=&utm_term="]
[null,null,null,null,"",null,null,"",null,null,"",null,null,"",null,null,"",null,"?utm_source=&utm_medium=&utm_campaign=&utm_content=&utm_term="]
[null,null,null,null,"",null,null,"",null,null,"",null,null,"",null,null,"",null,"?utm_source=&utm_medium=&utm_campaign=&utm_content=&utm_term="]
[null,null,null,null,"",null,null,"",null,null,"",null,null,"",null,null,"",null,"?utm_source=&utm_medium=&utm_campaign=&utm_content=&utm_term="]
[null,null,null,null,"",null,null,"",null,null,"",null,null,"",null,null,"",null,"?utm_source=&utm_medium=&utm_campaign=&utm_content=&utm_term="]
[null,null,null,null,"",null,null,"",null,null,"",null,null,"",null,null,"",null,"?utm_source=&utm_medium=&utm_campaign=&utm_content=&utm_term="]
[null,null,null,null,"",null,null,"",null,null,"",null,null,"",null,null,"",null,"?utm_source=&utm_medium=&utm_campaign=&utm_content=&utm_term="]
[null,null,null,null,"",null,null,{"$f":"UrlEncode(G197)","v":""},null,null,{"$f":"UrlEncode(J197)","v":""},null,null,{"$f":"UrlEncode(M197)","v":""},null,null,{"$f":"UrlEncode(P197)","v":""},null,"?utm_source=&utm_medium=&utm_campaign=&utm_content=&utm_term="]
[null,null,null,null,"",null,null,"",null,null,"",null,null,"",null,null,"",null,{"$f":"B198&\"?utm_source=\"&E198&\"&utm_medium=\"&H198&\"&utm_campaign=\"&K198&\"&utm_content=\"&N198&\"&utm_term=\"&Q198","v":"?utm_source=&utm_medium=&utm_campaign=&utm_content=&utm_term="}]
[null,null,null,null,"",null,null,"",null,null,"",null,null,"",null,null,"",null,"?utm_source=&utm_medium=&utm_campaign=&utm_content=&utm_term="]
[null,null,null,null,"",null,null,"",null,null,"",null,null,"",null,null,"",null,"?utm_source=&utm_medium=&utm_campaign=&utm_content=&utm_term="]
[null,null,null,null,"",null,null,"",null,null,"",null,null,"",null,null,"",null,"?utm_source=&utm_medium=&utm_campaign=&utm_content=&utm_term="]
[null,null,null,null,"",null,null,"",null,null,"",null,null,"",null,null,"",null,"?utm_source=&utm_medium=&utm_campaign=&utm_content=&utm_term="]
[null,null,null,null,"",null,null,"",null,null,"",null,null,"",null,null,"",null,"?utm_source=&utm_medium=&utm_campaign=&utm_content=&utm_term="]
[null,null,null,null,"",null,null,"",null,null,"",null,null,"",null,null,"",null,"?utm_source=&utm_medium=&utm_campaign=&utm_content=&utm_term="]

{"sheet":"自定义参数名称","index":3,"n_rows":52,"n_cols":13,"rows_kept":52,"cut":false,"hidden":false,"merged":[[46,2,46,7],[22,2,22,7],[26,2,26,7],[31,2,31,7],[36,2,36,7],[41,2,41,7],[12,3,12,9],[7,3,7,9],[8,3,8,9],[9,3,9,9],[10,3,10,9],[11,3,11,9]]}
[]
["如果您的网站已经有规范的跟踪参数，不想更换为utm参数跟踪；我们提供以下解决方案："]
[]
[]
["1. 与utm参数跟踪方式一样，您最多设置5个参数；"]
["2. 填写您自定义的参数与utm参数的对应关系(请勿修改其他表格中的参数名称)",null,null,null,null,null,null,null,null,null,null,"4. 完成以上设置，您可以在GrowingIO中查看广告效果，对应关系如下："]
[]
[null,"utm参数名称","您自定义的参数名称","含义",null,null,null,null,null,null,null,"GriowingIO的维度","您定义的参数"]
[null,"utm_soruce","请在此处填写您自定义的参数名称","广告投放的平台，如：sina、baidu、sohu等",null,null,null,null,null,null,null,"广告来源",{"$f":"IF(LEN(C9)>0,C9,\"\")","v":"请在此处填写您自定义的参数名称"}]
[null,"utm_medium","请在此处填写您自定义的参数名称","广告的具体媒介形式，如email、cpc等",null,null,null,null,null,null,null,"广告媒介",{"$f":"IF(LEN(C10)>0,C10,\"\")","v":"请在此处填写您自定义的参数名称"}]
[null,"utm_campaign","请在此处填写您自定义的参数名称","广告的名称，如\"春季促销\"",null,null,null,null,null,null,null,"广告名称",{"$f":"IF(LEN(C11)>0,C11,\"\")","v":"请在此处填写您自定义的参数名称"}]
[null,"utm_content","请在此处填写您自定义的参数名称","区分指向同一网址的广告，如utm_content=logolink或utm_content=textlink",null,null,null,null,null,null,null,"广告内容","请在此处填写您自定义的参数名称"]
[null,"utm_term","请在此处填写您自定义的参数名称","用来注明该广告的关键词，如\"免费试用\"",null,null,null,null,null,null,null,"广告关键字","请在此处填写您自定义的参数名称"]
[null,"注意：以上参数对应关系，也就是上面表格的前两列，需要同步给我们"]
[]
["3. 定义好您的参数名称，请进一步填写投放信息（如果您本地已经事先生成了投放链接，GIO可以直接解析）"]
[]
[]
[]
[null,"✻","信息建议必填"]
[]
[null,"✻","目标URL"]
[null,null,"http://www.yilucaifu.com/"]
[null,null,"(投放广告时所指向的您网站的URL,如:www.mydomain.com/download)"]
[]
[null,"✻",{"$f":"\"广告来源:\"&C9","v":"广告来源:请在此处填写您自定义的参数名称"}]
[]
[null,null,{"$f":"UrlEncode(C27)","v":""}]
[null,null,"(广告投放的平台，如：sina、baidu、sohu等）"]
[]
[null,"✻",{"$f":"\"广告媒介:\"&C10","v":"广告媒介:请在此处填写您自定义的参数名称"}]
[]
[null,null,{"$f":"UrlEncode(C32)","v":""}]
[null,null,"(广告的具体媒介形式，如email、cpc等)"]
[]
[null,"✻",{"$f":"\"广告名称:\"&C11","v":"广告名称:请在此处填写您自定义的参数名称"}]
[]
[null,null,{"$f":"UrlEncode(C37)","v":""}]
[null,null,"(广告的名称，如\"春季促销\")"]
[]
[null,null,{"$f":"\"广告内容:\"&C12","v":"广告内容:请在此处填写您自定义的参数名称"}]
[]
[null,null,{"$f":"UrlEncode(C42)","v":""}]
[null,null,"(区分指向同一网址的广告，如utm_content=logolink或utm_content=textlink)"]
[]
[null,null,{"$f":"\"广告关键词:\"&C13","v":"广告关键词:请在此处填写您自定义的参数名称"}]
[]
[null,null,{"$f":"UrlEncode(C47)","v":""}]
[null,null,"(用来注明该广告的关键词，如\"免费试用\")"]
[]
[null,null,"完善以上信息后，这里会生成URL"]
[null,null,{"$f":"C23&\"?\"&C9&\"=\"&C28&\"&\"&C10&\"=\"&C33&\"&\"&C11&\"=\"&C38&\"&\"&C12&\"=\"&C43&\"&\"&C13&\"=\"&C48","v":"http://www.yilucaifu.com/?请在此处填写您自定义的参数名称=&请在此处填写您自定义的参数名称=&请在此处填写您自定义的参数名称=&请在此处填写您自定义的参数名称=&请在此处填写您自定义的参数名称="}]

{"sheet":"自定义参数_批量构建","index":4,"n_rows":204,"n_cols":19,"rows_kept":204,"cut":false,"hidden":false,"merged":[]}
[]
[null,"请将需要投放的物料批量填写在下方；",null,null,null,null,null,null,null,null,null,null,null,null,null,null,null,null,"自动生成投放URL（URL套用公式生成，默认套用了200行，超过200行请您自行复制公式）"]
[]
[null,"目标URL",null,{"$f":"\"广告来源:\"&自定义参数名称!C9","v":"广告来源:请在此处填写您自定义的参数名称"},null,null,{"$f":"\"广告媒介:\"&自定义参数名称!C10","v":"广告媒介:请在此处填写您自定义的参数名称"},null,null,{"$f":"\"广告名称:\"&自定义参数名称!C11","v":"广告名称:请在此处填写您自定义的参数名称"},null,null,{"$f":"\"广告内容:\"&自定义参数名称!C12","v":"广告内容:请在此处填写您自定义的参数名称"},null,null,{"$f":"\"广告关键词:\"&自定义参数名称!C13","v":"广告关键词:请在此处填写您自定义的参数名称"},null,null,"投放URL"]
[null,null,null,null,{"$f":"UrlEncode(D5)","v":""},null,null,{"$f":"UrlEncode(G5)","v":""},null,null,{"$f":"UrlEncode(J5)","v":""},null,null,{"$f":"UrlEncode(M5)","v":""},null,null,{"$f":"UrlEncode(P5)","v":""},null,{"$f":"B5&\"?\"&自定义参数名称!$C$9&\"=\"&自定义参数_批量构建!E5&\"&\"&自定义参数名称!$C$10&\"=\"&自定义参数_批量构建!H5&\"&\"&自定义参数名称!$C$11&\"=\"&自定义参数_批量构建!K5&\"&\"&自定义参数名称!$C$12&\"=\"&自定义参数_批量构建!N5&\"&\"&自定义参数名称!$C$13&\"=\"&自定义参数_批量构建!Q5","v":"?请在此处填写您自定义的参数名称=&请在此处填写您自定义的参数名称=&请在此处填写您自定义的参数名称=&请在此处填写您自定义的参数名称=&请在此处填写您自定义的参数名称="}]
[null,null,null,null,{"$f":"UrlEncode(D6)","v":""},null,null,null,null,null,{"$f":"UrlEncode(J6)","v":""},null,null,{"$f":"UrlEncode(M6)","v":""},null,null,{"$f":"UrlEncode(P6)","v":""},null,{"$f":"B6&\"?\"&自定义参数名称!$C$9&\"=\"&自定义参数_批量构建!E6&\"&\"&自定义参数名称!$C$10&\"=\"&自定义参数_批量构建!H6&\"&\"&自定义参数名称!$C$11&\"=\"&自定义参数_批量构建!K6&\"&\"&自定义参数名称!$C$12&\"=\"&自定义参数_批量构建!N6&\"&\"&自定义参数名称!$C$13&\"=\"&自定义参数_批量构建!Q6","v":"?请在此处填写您自定义的参数名称=&请在此处填写您自定义的参数名称=&请在此处填写您自定义的参数名称=&请在此处填写您自定义的参数名称=&请在此处填写您自定义的参数名称="}]
[null,null,null,null,"",null,null,null,null,null,"",null,null,{"$f":"UrlEncode(M7)","v":""},null,null,{"$f":"UrlEncode(P7)","v":""},null,{"$f":"B7&\"?\"&自定义参数名称!$C$9&\"=\"&自定义参数_批量构建!E7&\"&\"&自定义参数名称!$C$10&\"=\"&自定义参数_批量构建!H7&\"&\"&自定义参数名称!$C$11&\"=\"&自定义参数_批量构建!K7&\"&\"&自定义参数名称!$C$12&\"=\"&自定义参数_批量构建!N7&\"&\"&自定义参数名称!$C$13&\"=\"&自定义参数_批量构建!Q7","v":"?请在此处填写您自定义的参数名称=&请在此处填写您自定义的参数名称=&请在此处填写您自定义的参数名称=&请在此处填写您自定义的参数名称=&请在此处填写您自定义的参数名称="}]
[null,null,null,null,"",null,null,null,null,null,"",null,null,"",null,null,"",null,{"$f":"B8&\"?\"&自定义参数名称!$C$9&\"=\"&自定义参数_批量构建!E8&\"&\"&自定义参数名称!$C$10&\"=\"&自定义参数_批量构建!H8&\"&\"&自定义参数名称!$C$11&\"=\"&自定义参数_批量构建!K8&\"&\"&自定义参数名称!$C$12&\"=\"&自定义参数_批量构建!N8&\"&\"&自定义参数名称!$C$13&\"=\"&自定义参数_批量构建!Q8","v":"?请在此处填写您自定义的参数名称=&请在此处填写您自定义的参数名称=&请在此处填写您自定义的参数名称=&请在此处填写您自定义的参数名称=&请在此处填写您自定义的参数名称="}]
[null,null,null,null,"",null,null,null,null,null,"",null,null,"",null,null,"",null,{"$f":"B9&\"?\"&自定义参数名称!$C$9&\"=\"&自定义参数_批量构建!E9&\"&\"&自定义参数名称!$C$10&\"=\"&自定义参数_批量构建!H9&\"&\"&自定义参数名称!$C$11&\"=\"&自定义参数_批量构建!K9&\"&\"&自定义参数名称!$C$12&\"=\"&自定义参数_批量构建!N9&\"&\"&自定义参数名称!$C$13&\"=\"&自定义参数_批量构建!Q9","v":"?请在此处填写您自定义的参数名称=&请在此处填写您自定义的参数名称=&请在此处填写您自定义的参数名称=&请在此处填写您自定义的参数名称=&请在此处填写您自定义的参数名称="}]
[null,null,null,null,"",null,null,null,null,null,"",null,null,"",null,null,"",null,{"$f":"B10&\"?\"&自定义参数名称!$C$9&\"=\"&自定义参数_批量构建!E10&\"&\"&自定义参数名称!$C$10&\"=\"&自定义参数_批量构建!H10&\"&\"&自定义参数名称!$C$11&\"=\"&自定义参数_批量构建!K10&\"&\"&自定义参数名称!$C$12&\"=\"&自定义参数_批量构建!N10&\"&\"&自定义参数名称!$C$13&\"=\"&自定义参数_批量构建!Q10","v":"?请在此处填写您自定义的参数名称=&请在此处填写您自定义的参数名称=&请在此处填写您自定义的参数名称=&请在此处填写您自定义的参数名称=&请在此处填写您自定义的参数名称="}]
[null,null,null,null,"",null,null,null,null,null,"",null,null,"",null,null,"",null,{"$f":"B11&\"?\"&自定义参数名称!$C$9&\"=\"&自定义参数_批量构建!E11&\"&\"&自定义参数名称!$C$10&\"=\"&自定义参数_批量构建!H11&\"&\"&自定义参数名称!$C$11&\"=\"&自定义参数_批量构建!K11&\"&\"&自定义参数名称!$C$12&\"=\"&自定义参数_批量构建!N11&\"&\"&自定义参数名称!$C$13&\"=\"&自定义参数_批量构建!Q11","v":"?请在此处填写您自定义的参数名称=&请在此处填写您自定义的参数名称=&请在此处填写您自定义的参数名称=&请在此处填写您自定义的参数名称=&请在此处填写您自定义的参数名称="}]
[null,null,null,null,"",null,null,null,null,null,"",null,null,"",null,null,"",null,{"$f":"B12&\"?\"&自定义参数名称!$C$9&\"=\"&自定义参数_批量构建!E12&\"&\"&自定义参数名称!$C$10&\"=\"&自定义参数_批量构建!H12&\"&\"&自定义参数名称!$C$11&\"=\"&自定义参数_批量构建!K12&\"&\"&自定义参数名称!$C$12&\"=\"&自定义参数_批量构建!N12&\"&\"&自定义参数名称!$C$13&\"=\"&自定义参数_批量构建!Q12","v":"?请在此处填写您自定义的参数名称=&请在此处填写您自定义的参数名称=&请在此处填写您自定义的参数名称=&请在此处填写您自定义的参数名称=&请在此处填写您自定义的参数名称="}]
[null,null,null,null,"",null,null,null,null,null,"",null,null,"",null,null,"",null,{"$f":"B13&\"?\"&自定义参数名称!$C$9&\"=\"&自定义参数_批量构建!E13&\"&\"&自定义参数名称!$C$10&\"=\"&自定义参数_批量构建!H13&\"&\"&自定义参数名称!$C$11&\"=\"&自定义参数_批量构建!K13&\"&\"&自定义参数名称!$C$12&\"=\"&自定义参数_批量构建!N13&\"&\"&自定义参数名称!$C$13&\"=\"&自定义参数_批量构建!Q13","v":"?请在此处填写您自定义的参数名称=&请在此处填写您自定义的参数名称=&请在此处填写您自定义的参数名称=&请在此处填写您自定义的参数名称=&请在此处填写您自定义的参数名称="}]
[null,null,null,null,"",null,null,null,null,null,"",null,null,"",null,null,"",null,{"$f":"B14&\"?\"&自定义参数名称!$C$9&\"=\"&自定义参数_批量构建!E14&\"&\"&自定义参数名称!$C$10&\"=\"&自定义参数_批量构建!H14&\"&\"&自定义参数名称!$C$11&\"=\"&自定义参数_批量构建!K14&\"&\"&自定义参数名称!$C$12&\"=\"&自定义参数_批量构建!N14&\"&\"&自定义参数名称!$C$13&\"=\"&自定义参数_批量构建!Q14","v":"?请在此处填写您自定义的参数名称=&请在此处填写您自定义的参数名称=&请在此处填写您自定义的参数名称=&请在此处填写您自定义的参数名称=&请在此处填写您自定义的参数名称="}]
[null,null,null,null,"",null,null,null,null,null,"",null,null,"",null,null,"",null,{"$f":"B15&\"?\"&自定义参数名称!$C$9&\"=\"&自定义参数_批量构建!E15&\"&\"&自定义参数名称!$C$10&\"=\"&自定义参数_批量构建!H15&\"&\"&自定义参数名称!$C$11&\"=\"&自定义参数_批量构建!K15&\"&\"&自定义参数名称!$C$12&\"=\"&自定义参数_批量构建!N15&\"&\"&自定义参数名称!$C$13&\"=\"&自定义参数_批量构建!Q15","v":"?请在此处填写您自定义的参数名称=&请在此处填写您自定义的参数名称=&请在此处填写您自定义的参数名称=&请在此处填写您自定义的参数名称=&请在此处填写您自定义的参数名称="}]
[null,null,null,null,"",null,null,null,null,null,"",null,null,"",null,null,"",null,{"$f":"B16&\"?\"&自定义参数名称!$C$9&\"=\"&自定义参数_批量构建!E16&\"&\"&自定义参数名称!$C$10&\"=\"&自定义参数_批量构建!H16&\"&\"&自定义参数名称!$C$11&\"=\"&自定义参数_批量构建!K16&\"&\"&自定义参数名称!$C$12&\"=\"&自定义参数_批量构建!N16&\"&\"&自定义参数名称!$C$13&\"=\"&自定义参数_批量构建!Q16","v":"?请在此处填写您自定义的参数名称=&请在此处填写您自定义的参数名称=&请在此处填写您自定义的参数名称=&请在此处填写您自定义的参数名称=&请在此处填写您自定义的参数名称="}]
[null,null,null,null,"",null,null,null,null,null,"",null,null,"",null,null,"",null,{"$f":"B17&\"?\"&自定义参数名称!$C$9&\"=\"&自定义参数_批量构建!E17&\"&\"&自定义参数名称!$C$10&\"=\"&自定义参数_批量构建!H17&\"&\"&自定义参数名称!$C$11&\"=\"&自定义参数_批量构建!K17&\"&\"&自定义参数名称!$C$12&\"=\"&自定义参数_批量构建!N17&\"&\"&自定义参数名称!$C$13&\"=\"&自定义参数_批量构建!Q17","v":"?请在此处填写您自定义的参数名称=&请在此处填写您自定义的参数名称=&请在此处填写您自定义的参数名称=&请在此处填写您自定义的参数名称=&请在此处填写您自定义的参数名称="}]
[null,null,null,null,"",null,null,null,null,null,"",null,null,"",null,null,"",null,{"$f":"B18&\"?\"&自定义参数名称!$C$9&\"=\"&自定义参数_批量构建!E18&\"&\"&自定义参数名称!$C$10&\"=\"&自定义参数_批量构建!H18&\"&\"&自定义参数名称!$C$11&\"=\"&自定义参数_批量构建!K18&\"&\"&自定义参数名称!$C$12&\"=\"&自定义参数_批量构建!N18&\"&\"&自定义参数名称!$C$13&\"=\"&自定义参数_批量构建!Q18","v":"?请在此处填写您自定义的参数名称=&请在此处填写您自定义的参数名称=&请在此处填写您自定义的参数名称=&请在此处填写您自定义的参数名称=&请在此处填写您自定义的参数名称="}]
[null,null,null,null,"",null,null,null,null,null,"",null,null,"",null,null,"",null,{"$f":"B19&\"?\"&自定义参数名称!$C$9&\"=\"&自定义参数_批量构建!E19&\"&\"&自定义参数名称!$C$10&\"=\"&自定义参数_批量构建!H19&\"&\"&自定义参数名称!$C$11&\"=\"&自定义参数_批量构建!K19&\"&\"&自定义参数名称!$C$12&\"=\"&自定义参数_批量构建!N19&\"&\"&自定义参数名称!$C$13&\"=\"&自定义参数_批量构建!Q19","v":"?请在此处填写您自定义的参数名称=&请在此处填写您自定义的参数名称=&请在此处填写您自定义的参数名称=&请在此处填写您自定义的参数名称=&请在此处填写您自定义的参数名称="}]
[null,null,null,null,"",null,null,null,null,null,"",null,null,"",null,null,"",null,{"$f":"B20&\"?\"&自定义参数名称!$C$9&\"=\"&自定义参数_批量构建!E20&\"&\"&自定义参数名称!$C$10&\"=\"&自定义参数_批量构建!H20&\"&\"&自定义参数名称!$C$11&\"=\"&自定义参数_批量构建!K20&\"&\"&自定义参数名称!$C$12&\"=\"&自定义参数_批量构建!N20&\"&\"&自定义参数名称!$C$13&\"=\"&自定义参数_批量构建!Q20","v":"?请在此处填写您自定义的参数名称=&请在此处填写您自定义的参数名称=&请在此处填写您自定义的参数名称=&请在此处填写您自定义的参数名称=&请在此处填写您自定义的参数名称="}]
[null,null,null,null,"",null,null,null,null,null,"",null,null,"",null,null,"",null,{"$f":"B21&\"?\"&自定义参数名称!$C$9&\"=\"&自定义参数_批量构建!E21&\"&\"&自定义参数名称!$C$10&\"=\"&自定义参数_批量构建!H21&\"&\"&自定义参数名称!$C$11&\"=\"&自定义参数_批量构建!K21&\"&\"&自定义参数名称!$C$12&\"=\"&自定义参数_批量构建!N21&\"&\"&自定义参数名称!$C$13&\"=\"&自定义参数_批量构建!Q21","v":"?请在此处填写您自定义的参数名称=&请在此处填写您自定义的参数名称=&请在此处填写您自定义的参数名称=&请在此处填写您自定义的参数名称=&请在此处填写您自定义的参数名称="}]
[null,null,null,null,"",null,null,null,null,null,"",null,null,"",null,null,"",null,{"$f":"B22&\"?\"&自定义参数名称!$C$9&\"=\"&自定义参数_批量构建!E22&\"&\"&自定义参数名称!$C$10&\"=\"&自定义参数_批量构建!H22&\"&\"&自定义参数名称!$C$11&\"=\"&自定义参数_批量构建!K22&\"&\"&自定义参数名称!$C$12&\"=\"&自定义参数_批量构建!N22&\"&\"&自定义参数名称!$C$13&\"=\"&自定义参数_批量构建!Q22","v":"?请在此处填写您自定义的参数名称=&请在此处填写您自定义的参数名称=&请在此处填写您自定义的参数名称=&请在此处填写您自定义的参数名称=&请在此处填写您自定义的参数名称="}]
[null,null,null,null,"",null,null,null,null,null,"",null,null,"",null,null,"",null,{"$f":"B23&\"?\"&自定义参数名称!$C$9&\"=\"&自定义参数_批量构建!E23&\"&\"&自定义参数名称!$C$10&\"=\"&自定义参数_批量构建!H23&\"&\"&自定义参数名称!$C$11&\"=\"&自定义参数_批量构建!K23&\"&\"&自定义参数名称!$C$12&\"=\"&自定义参数_批量构建!N23&\"&\"&自定义参数名称!$C$13&\"=\"&自定义参数_批量构建!Q23","v":"?请在此处填写您自定义的参数名称=&请在此处填写您自定义的参数名称=&请在此处填写您自定义的参数名称=&请在此处填写您自定义的参数名称=&请在此处填写您自定义的参数名称="}]
[null,null,null,null,"",null,null,null,null,null,"",null,null,"",null,null,"",null,{"$f":"B24&\"?\"&自定义参数名称!$C$9&\"=\"&自定义参数_批量构建!E24&\"&\"&自定义参数名称!$C$10&\"=\"&自定义参数_批量构建!H24&\"&\"&自定义参数名称!$C$11&\"=\"&自定义参数_批量构建!K24&\"&\"&自定义参数名称!$C$12&\"=\"&自定义参数_批量构建!N24&\"&\"&自定义参数名称!$C$13&\"=\"&自定义参数_批量构建!Q24","v":"?请在此处填写您自定义的参数名称=&请在此处填写您自定义的参数名称=&请在此处填写您自定义的参数名称=&请在此处填写您自定义的参数名称=&请在此处填写您自定义的参数名称="}]
[null,null,null,null,"",null,null,null,null,null,"",null,null,"",null,null,"",null,{"$f":"B25&\"?\"&自定义参数名称!$C$9&\"=\"&自定义参数_批量构建!E25&\"&\"&自定义参数名称!$C$10&\"=\"&自定义参数_批量构建!H25&\"&\"&自定义参数名称!$C$11&\"=\"&自定义参数_批量构建!K25&\"&\"&自定义参数名称!$C$12&\"=\"&自定义参数_批量构建!N25&\"&\"&自定义参数名称!$C$13&\"=\"&自定义参数_批量构建!Q25","v":"?请在此处填写您自定义的参数名称=&请在此处填写您自定义的参数名称=&请在此处填写您自定义的参数名称=&请在此处填写您自定义的参数名称=&请在此处填写您自定义的参数名称="}]
[null,null,null,null,"",null,null,null,null,null,"",null,null,"",null,null,"",null,{"$f":"B26&\"?\"&自定义参数名称!$C$9&\"=\"&自定义参数_批量构建!E26&\"&\"&自定义参数名称!$C$10&\"=\"&自定义参数_批量构建!H26&\"&\"&自定义参数名称!$C$11&\"=\"&自定义参数_批量构建!K26&\"&\"&自定义参数名称!$C$12&\"=\"&自定义参数_批量构建!N26&\"&\"&自定义参数名称!$C$13&\"=\"&自定义参数_批量构建!Q26","v":"?请在此处填写您自定义的参数名称=&请在此处填写您自定义的参数名称=&请在此处填写您自定义的参数名称=&请在此处填写您自定义的参数名称=&请在此处填写您自定义的参数名称="}]
[null,null,null,null,"",null,null,null,null,null,"",null,null,"",null,null,"",null,{"$f":"B27&\"?\"&自定义参数名称!$C$9&\"=\"&自定义参数_批量构建!E27&\"&\"&自定义参数名称!$C$10&\"=\"&自定义参数_批量构建!H27&\"&\"&自定义参数名称!$C$11&\"=\"&自定义参数_批量构建!K27&\"&\"&自定义参数名称!$C$12&\"=\"&自定义参数_批量构建!N27&\"&\"&自定义参数名称!$C$13&\"=\"&自定义参数_批量构建!Q27","v":"?请在此处填写您自定义的参数名称=&请在此处填写您自定义的参数名称=&请在此处填写您自定义的参数名称=&请在此处填写您自定义的参数名称=&请在此处填写您自定义的参数名称="}]
[null,null,null,null,"",null,null,null,null,null,"",null,null,"",null,null,"",null,{"$f":"B28&\"?\"&自定义参数名称!$C$9&\"=\"&自定义参数_批量构建!E28&\"&\"&自定义参数名称!$C$10&\"=\"&自定义参数_批量构建!H28&\"&\"&自定义参数名称!$C$11&\"=\"&自定义参数_批量构建!K28&\"&\"&自定义参数名称!$C$12&\"=\"&自定义参数_批量构建!N28&\"&\"&自定义参数名称!$C$13&\"=\"&自定义参数_批量构建!Q28","v":"?请在此处填写您自定义的参数名称=&请在此处填写您自定义的参数名称=&请在此处填写您自定义的参数名称=&请在此处填写您自定义的参数名称=&请在此处填写您自定义的参数名称="}]
[null,null,null,null,"",null,null,null,null,null,"",null,null,"",null,null,"",null,{"$f":"B29&\"?\"&自定义参数名称!$C$9&\"=\"&自定义参数_批量构建!E29&\"&\"&自定义参数名称!$C$10&\"=\"&自定义参数_批量构建!H29&\"&\"&自定义参数名称!$C$11&\"=\"&自定义参数_批量构建!K29&\"&\"&自定义参数名称!$C$12&\"=\"&自定义参数_批量构建!N29&\"&\"&自定义参数名称!$C$13&\"=\"&自定义参数_批量构建!Q29","v":"?请在此处填写您自定义的参数名称=&请在此处填写您自定义的参数名称=&请在此处填写您自定义的参数名称=&请在此处填写您自定义的参数名称=&请在此处填写您自定义的参数名称="}]
[null,null,null,null,"",null,null,null,null,null,"",null,null,"",null,null,"",null,{"$f":"B30&\"?\"&自定义参数名称!$C$9&\"=\"&自定义参数_批量构建!E30&\"&\"&自定义参数名称!$C$10&\"=\"&自定义参数_批量构建!H30&\"&\"&自定义参数名称!$C$11&\"=\"&自定义参数_批量构建!K30&\"&\"&自定义参数名称!$C$12&\"=\"&自定义参数_批量构建!N30&\"&\"&自定义参数名称!$C$13&\"=\"&自定义参数_批量构建!Q30","v":"?请在此处填写您自定义的参数名称=&请在此处填写您自定义的参数名称=&请在此处填写您自定义的参数名称=&请在此处填写您自定义的参数名称=&请在此处填写您自定义的参数名称="}]
[null,null,null,null,"",null,null,null,null,null,"",null,null,"",null,null,"",null,{"$f":"B31&\"?\"&自定义参数名称!$C$9&\"=\"&自定义参数_批量构建!E31&\"&\"&自定义参数名称!$C$10&\"=\"&自定义参数_批量构建!H31&\"&\"&自定义参数名称!$C$11&\"=\"&自定义参数_批量构建!K31&\"&\"&自定义参数名称!$C$12&\"=\"&自定义参数_批量构建!N31&\"&\"&自定义参数名称!$C$13&\"=\"&自定义参数_批量构建!Q31","v":"?请在此处填写您自定义的参数名称=&请在此处填写您自定义的参数名称=&请在此处填写您自定义的参数名称=&请在此处填写您自定义的参数名称=&请在此处填写您自定义的参数名称="}]
[null,null,null,null,"",null,null,null,null,null,"",null,null,"",null,null,"",null,{"$f":"B32&\"?\"&自定义参数名称!$C$9&\"=\"&自定义参数_批量构建!E32&\"&\"&自定义参数名称!$C$10&\"=\"&自定义参数_批量构建!H32&\"&\"&自定义参数名称!$C$11&\"=\"&自定义参数_批量构建!K32&\"&\"&自定义参数名称!$C$12&\"=\"&自定义参数_批量构建!N32&\"&\"&自定义参数名称!$C$13&\"=\"&自定义参数_批量构建!Q32","v":"?请在此处填写您自定义的参数名称=&请在此处填写您自定义的参数名称=&请在此处填写您自定义的参数名称=&请在此处填写您自定义的参数名称=&请在此处填写您自定义的参数名称="}]
[null,null,null,null,"",null,null,null,null,null,"",null,null,"",null,null,"",null,{"$f":"B33&\"?\"&自定义参数名称!$C$9&\"=\"&自定义参数_批量构建!E33&\"&\"&自定义参数名称!$C$10&\"=\"&自定义参数_批量构建!H33&\"&\"&自定义参数名称!$C$11&\"=\"&自定义参数_批量构建!K33&\"&\"&自定义参数名称!$C$12&\"=\"&自定义参数_批量构建!N33&\"&\"&自定义参数名称!$C$13&\"=\"&自定义参数_批量构建!Q33","v":"?请在此处填写您自定义的参数名称=&请在此处填写您自定义的参数名称=&请在此处填写您自定义的参数名称=&请在此处填写您自定义的参数名称=&请在此处填写您自定义的参数名称="}]
[null,null,null,null,"",null,null,null,null,null,"",null,null,"",null,null,"",null,{"$f":"B34&\"?\"&自定义参数名称!$C$9&\"=\"&自定义参数_批量构建!E34&\"&\"&自定义参数名称!$C$10&\"=\"&自定义参数_批量构建!H34&\"&\"&自定义参数名称!$C$11&\"=\"&自定义参数_批量构建!K34&\"&\"&自定义参数名称!$C$12&\"=\"&自定义参数_批量构建!N34&\"&\"&自定义参数名称!$C$13&\"=\"&自定义参数_批量构建!Q34","v":"?请在此处填写您自定义的参数名称=&请在此处填写您自定义的参数名称=&请在此处填写您自定义的参数名称=&请在此处填写您自定义的参数名称=&请在此处填写您自定义的参数名称="}]
[null,null,null,null,"",null,null,null,null,null,"",null,null,"",null,null,"",null,{"$f":"B35&\"?\"&自定义参数名称!$C$9&\"=\"&自定义参数_批量构建!E35&\"&\"&自定义参数名称!$C$10&\"=\"&自定义参数_批量构建!H35&\"&\"&自定义参数名称!$C$11&\"=\"&自定义参数_批量构建!K35&\"&\"&自定义参数名称!$C$12&\"=\"&自定义参数_批量构建!N35&\"&\"&自定义参数名称!$C$13&\"=\"&自定义参数_批量构建!Q35","v":"?请在此处填写您自定义的参数名称=&请在此处填写您自定义的参数名称=&请在此处填写您自定义的参数名称=&请在此处填写您自定义的参数名称=&请在此处填写您自定义的参数名称="}]
[null,null,null,null,"",null,null,null,null,null,"",null,null,"",null,null,"",null,{"$f":"B36&\"?\"&自定义参数名称!$C$9&\"=\"&自定义参数_批量构建!E36&\"&\"&自定义参数名称!$C$10&\"=\"&自定义参数_批量构建!H36&\"&\"&自定义参数名称!$C$11&\"=\"&自定义参数_批量构建!K36&\"&\"&自定义参数名称!$C$12&\"=\"&自定义参数_批量构建!N36&\"&\"&自定义参数名称!$C$13&\"=\"&自定义参数_批量构建!Q36","v":"?请在此处填写您自定义的参数名称=&请在此处填写您自定义的参数名称=&请在此处填写您自定义的参数名称=&请在此处填写您自定义的参数名称=&请在此处填写您自定义的参数名称="}]
[null,null,null,null,"",null,null,null,null,null,"",null,null,"",null,null,"",null,{"$f":"B37&\"?\"&自定义参数名称!$C$9&\"=\"&自定义参数_批量构建!E37&\"&\"&自定义参数名称!$C$10&\"=\"&自定义参数_批量构建!H37&\"&\"&自定义参数名称!$C$11&\"=\"&自定义参数_批量构建!K37&\"&\"&自定义参数名称!$C$12&\"=\"&自定义参数_批量构建!N37&\"&\"&自定义参数名称!$C$13&\"=\"&自定义参数_批量构建!Q37","v":"?请在此处填写您自定义的参数名称=&请在此处填写您自定义的参数名称=&请在此处填写您自定义的参数名称=&请在此处填写您自定义的参数名称=&请在此处填写您自定义的参数名称="}]
[null,null,null,null,"",null,null,null,null,null,"",null,null,"",null,null,"",null,{"$f":"B38&\"?\"&自定义参数名称!$C$9&\"=\"&自定义参数_批量构建!E38&\"&\"&自定义参数名称!$C$10&\"=\"&自定义参数_批量构建!H38&\"&\"&自定义参数名称!$C$11&\"=\"&自定义参数_批量构建!K38&\"&\"&自定义参数名称!$C$12&\"=\"&自定义参数_批量构建!N38&\"&\"&自定义参数名称!$C$13&\"=\"&自定义参数_批量构建!Q38","v":"?请在此处填写您自定义的参数名称=&请在此处填写您自定义的参数名称=&请在此处填写您自定义的参数名称=&请在此处填写您自定义的参数名称=&请在此处填写您自定义的参数名称="}]
[null,null,null,null,"",null,null,null,null,null,"",null,null,"",null,null,"",null,{"$f":"B39&\"?\"&自定义参数名称!$C$9&\"=\"&自定义参数_批量构建!E39&\"&\"&自定义参数名称!$C$10&\"=\"&自定义参数_批量构建!H39&\"&\"&自定义参数名称!$C$11&\"=\"&自定义参数_批量构建!K39&\"&\"&自定义参数名称!$C$12&\"=\"&自定义参数_批量构建!N39&\"&\"&自定义参数名称!$C$13&\"=\"&自定义参数_批量构建!Q39","v":"?请在此处填写您自定义的参数名称=&请在此处填写您自定义的参数名称=&请在此处填写您自定义的参数名称=&请在此处填写您自定义的参数名称=&请在此处填写您自定义的参数名称="}]
[null,null,null,null,"",null,null,null,null,null,"",null,null,"",null,null,"",null,{"$f":"B40&\"?\"&自定义参数名称!$C$9&\"=\"&自定义参数_批量构建!E40&\"&\"&自定义参数名称!$C$10&\"=\"&自定义参数_批量构建!H40&\"&\"&自定义参数名称!$C$11&\"=\"&自定义参数_批量构建!K40&\"&\"&自定义参数名称!$C$12&\"=\"&自定义参数_批量构建!N40&\"&\"&自定义参数名称!$C$13&\"=\"&自定义参数_批量构建!Q40","v":"?请在此处填写您自定义的参数名称=&请在此处填写您自定义的参数名称=&请在此处填写您自定义的参数名称=&请在此处填写您自定义的参数名称=&请在此处填写您自定义的参数名称="}]
[null,null,null,null,"",null,null,null,null,null,"",null,null,"",null,null,"",null,{"$f":"B41&\"?\"&自定义参数名称!$C$9&\"=\"&自定义参数_批量构建!E41&\"&\"&自定义参数名称!$C$10&\"=\"&自定义参数_批量构建!H41&\"&\"&自定义参数名称!$C$11&\"=\"&自定义参数_批量构建!K41&\"&\"&自定义参数名称!$C$12&\"=\"&自定义参数_批量构建!N41&\"&\"&自定义参数名称!$C$13&\"=\"&自定义参数_批量构建!Q41","v":"?请在此处填写您自定义的参数名称=&请在此处填写您自定义的参数名称=&请在此处填写您自定义的参数名称=&请在此处填写您自定义的参数名称=&请在此处填写您自定义的参数名称="}]
[null,null,null,null,"",null,null,null,null,null,"",null,null,"",null,null,"",null,{"$f":"B42&\"?\"&自定义参数名称!$C$9&\"=\"&自定义参数_批量构建!E42&\"&\"&自定义参数名称!$C$10&\"=\"&自定义参数_批量构建!H42&\"&\"&自定义参数名称!$C$11&\"=\"&自定义参数_批量构建!K42&\"&\"&自定义参数名称!$C$12&\"=\"&自定义参数_批量构建!N42&\"&\"&自定义参数名称!$C$13&\"=\"&自定义参数_批量构建!Q42","v":"?请在此处填写您自定义的参数名称=&请在此处填写您自定义的参数名称=&请在此处填写您自定义的参数名称=&请在此处填写您自定义的参数名称=&请在此处填写您自定义的参数名称="}]
[null,null,null,null,"",null,null,null,null,null,"",null,null,"",null,null,"",null,{"$f":"B43&\"?\"&自定义参数名称!$C$9&\"=\"&自定义参数_批量构建!E43&\"&\"&自定义参数名称!$C$10&\"=\"&自定义参数_批量构建!H43&\"&\"&自定义参数名称!$C$11&\"=\"&自定义参数_批量构建!K43&\"&\"&自定义参数名称!$C$12&\"=\"&自定义参数_批量构建!N43&\"&\"&自定义参数名称!$C$13&\"=\"&自定义参数_批量构建!Q43","v":"?请在此处填写您自定义的参数名称=&请在此处填写您自定义的参数名称=&请在此处填写您自定义的参数名称=&请在此处填写您自定义的参数名称=&请在此处填写您自定义的参数名称="}]
[null,null,null,null,"",null,null,null,null,null,"",null,null,"",null,null,"",null,{"$f":"B44&\"?\"&自定义参数名称!$C$9&\"=\"&自定义参数_批量构建!E44&\"&\"&自定义参数名称!$C$10&\"=\"&自定义参数_批量构建!H44&\"&\"&自定义参数名称!$C$11&\"=\"&自定义参数_批量构建!K44&\"&\"&自定义参数名称!$C$12&\"=\"&自定义参数_批量构建!N44&\"&\"&自定义参数名称!$C$13&\"=\"&自定义参数_批量构建!Q44","v":"?请在此处填写您自定义的参数名称=&请在此处填写您自定义的参数名称=&请在此处填写您自定义的参数名称=&请在此处填写您自定义的参数名称=&请在此处填写您自定义的参数名称="}]
[null,null,null,null,"",null,null,null,null,null,"",null,null,"",null,null,"",null,{"$f":"B45&\"?\"&自定义参数名称!$C$9&\"=\"&自定义参数_批量构建!E45&\"&\"&自定义参数名称!$C$10&\"=\"&自定义参数_批量构建!H45&\"&\"&自定义参数名称!$C$11&\"=\"&自定义参数_批量构建!K45&\"&\"&自定义参数名称!$C$12&\"=\"&自定义参数_批量构建!N45&\"&\"&自定义参数名称!$C$13&\"=\"&自定义参数_批量构建!Q45","v":"?请在此处填写您自定义的参数名称=&请在此处填写您自定义的参数名称=&请在此处填写您自定义的参数名称=&请在此处填写您自定义的参数名称=&请在此处填写您自定义的参数名称="}]
[null,null,null,null,"",null,null,null,null,null,"",null,null,"",null,null,"",null,{"$f":"B46&\"?\"&自定义参数名称!$C$9&\"=\"&自定义参数_批量构建!E46&\"&\"&自定义参数名称!$C$10&\"=\"&自定义参数_批量构建!H46&\"&\"&自定义参数名称!$C$11&\"=\"&自定义参数_批量构建!K46&\"&\"&自定义参数名称!$C$12&\"=\"&自定义参数_批量构建!N46&\"&\"&自定义参数名称!$C$13&\"=\"&自定义参数_批量构建!Q46","v":"?请在此处填写您自定义的参数名称=&请在此处填写您自定义的参数名称=&请在此处填写您自定义的参数名称=&请在此处填写您自定义的参数名称=&请在此处填写您自定义的参数名称="}]
[null,null,null,null,"",null,null,null,null,null,"",null,null,"",null,null,"",null,{"$f":"B47&\"?\"&自定义参数名称!$C$9&\"=\"&自定义参数_批量构建!E47&\"&\"&自定义参数名称!$C$10&\"=\"&自定义参数_批量构建!H47&\"&\"&自定义参数名称!$C$11&\"=\"&自定义参数_批量构建!K47&\"&\"&自定义参数名称!$C$12&\"=\"&自定义参数_批量构建!N47&\"&\"&自定义参数名称!$C$13&\"=\"&自定义参数_批量构建!Q47","v":"?请在此处填写您自定义的参数名称=&请在此处填写您自定义的参数名称=&请在此处填写您自定义的参数名称=&请在此处填写您自定义的参数名称=&请在此处填写您自定义的参数名称="}]
[null,null,null,null,"",null,null,null,null,null,"",null,null,"",null,null,"",null,{"$f":"B48&\"?\"&自定义参数名称!$C$9&\"=\"&自定义参数_批量构建!E48&\"&\"&自定义参数名称!$C$10&\"=\"&自定义参数_批量构建!H48&\"&\"&自定义参数名称!$C$11&\"=\"&自定义参数_批量构建!K48&\"&\"&自定义参数名称!$C$12&\"=\"&自定义参数_批量构建!N48&\"&\"&自定义参数名称!$C$13&\"=\"&自定义参数_批量构建!Q48","v":"?请在此处填写您自定义的参数名称=&请在此处填写您自定义的参数名称=&请在此处填写您自定义的参数名称=&请在此处填写您自定义的参数名称=&请在此处填写您自定义的参数名称="}]
[null,null,null,null,"",null,null,null,null,null,"",null,null,"",null,null,"",null,{"$f":"B49&\"?\"&自定义参数名称!$C$9&\"=\"&自定义参数_批量构建!E49&\"&\"&自定义参数名称!$C$10&\"=\"&自定义参数_批量构建!H49&\"&\"&自定义参数名称!$C$11&\"=\"&自定义参数_批量构建!K49&\"&\"&自定义参数名称!$C$12&\"=\"&自定义参数_批量构建!N49&\"&\"&自定义参数名称!$C$13&\"=\"&自定义参数_批量构建!Q49","v":"?请在此处填写您自定义的参数名称=&请在此处填写您自定义的参数名称=&请在此处填写您自定义的参数名称=&请在此处填写您自定义的参数名称=&请在此处填写您自定义的参数名称="}]
[null,null,null,null,"",null,null,null,null,null,"",null,null,"",null,null,"",null,{"$f":"B50&\"?\"&自定义参数名称!$C$9&\"=\"&自定义参数_批量构建!E50&\"&\"&自定义参数名称!$C$10&\"=\"&自定义参数_批量构建!H50&\"&\"&自定义参数名称!$C$11&\"=\"&自定义参数_批量构建!K50&\"&\"&自定义参数名称!$C$12&\"=\"&自定义参数_批量构建!N50&\"&\"&自定义参数名称!$C$13&\"=\"&自定义参数_批量构建!Q50","v":"?请在此处填写您自定义的参数名称=&请在此处填写您自定义的参数名称=&请在此处填写您自定义的参数名称=&请在此处填写您自定义的参数名称=&请在此处填写您自定义的参数名称="}]
[null,null,null,null,"",null,null,null,null,null,"",null,null,"",null,null,"",null,{"$f":"B51&\"?\"&自定义参数名称!$C$9&\"=\"&自定义参数_批量构建!E51&\"&\"&自定义参数名称!$C$10&\"=\"&自定义参数_批量构建!H51&\"&\"&自定义参数名称!$C$11&\"=\"&自定义参数_批量构建!K51&\"&\"&自定义参数名称!$C$12&\"=\"&自定义参数_批量构建!N51&\"&\"&自定义参数名称!$C$13&\"=\"&自定义参数_批量构建!Q51","v":"?请在此处填写您自定义的参数名称=&请在此处填写您自定义的参数名称=&请在此处填写您自定义的参数名称=&请在此处填写您自定义的参数名称=&请在此处填写您自定义的参数名称="}]
[null,null,null,null,"",null,null,null,null,null,"",null,null,"",null,null,"",null,{"$f":"B52&\"?\"&自定义参数名称!$C$9&\"=\"&自定义参数_批量构建!E52&\"&\"&自定义参数名称!$C$10&\"=\"&自定义参数_批量构建!H52&\"&\"&自定义参数名称!$C$11&\"=\"&自定义参数_批量构建!K52&\"&\"&自定义参数名称!$C$12&\"=\"&自定义参数_批量构建!N52&\"&\"&自定义参数名称!$C$13&\"=\"&自定义参数_批量构建!Q52","v":"?请在此处填写您自定义的参数名称=&请在此处填写您自定义的参数名称=&请在此处填写您自定义的参数名称=&请在此处填写您自定义的参数名称=&请在此处填写您自定义的参数名称="}]
[null,null,null,null,"",null,null,null,null,null,"",null,null,"",null,null,"",null,{"$f":"B53&\"?\"&自定义参数名称!$C$9&\"=\"&自定义参数_批量构建!E53&\"&\"&自定义参数名称!$C$10&\"=\"&自定义参数_批量构建!H53&\"&\"&自定义参数名称!$C$11&\"=\"&自定义参数_批量构建!K53&\"&\"&自定义参数名称!$C$12&\"=\"&自定义参数_批量构建!N53&\"&\"&自定义参数名称!$C$13&\"=\"&自定义参数_批量构建!Q53","v":"?请在此处填写您自定义的参数名称=&请在此处填写您自定义的参数名称=&请在此处填写您自定义的参数名称=&请在此处填写您自定义的参数名称=&请在此处填写您自定义的参数名称="}]
[null,null,null,null,"",null,null,null,null,null,"",null,null,"",null,null,"",null,{"$f":"B54&\"?\"&自定义参数名称!$C$9&\"=\"&自定义参数_批量构建!E54&\"&\"&自定义参数名称!$C$10&\"=\"&自定义参数_批量构建!H54&\"&\"&自定义参数名称!$C$11&\"=\"&自定义参数_批量构建!K54&\"&\"&自定义参数名称!$C$12&\"=\"&自定义参数_批量构建!N54&\"&\"&自定义参数名称!$C$13&\"=\"&自定义参数_批量构建!Q54","v":"?请在此处填写您自定义的参数名称=&请在此处填写您自定义的参数名称=&请在此处填写您自定义的参数名称=&请在此处填写您自定义的参数名称=&请在此处填写您自定义的参数名称="}]
[null,null,null,null,"",null,null,null,null,null,"",null,null,"",null,null,"",null,{"$f":"B55&\"?\"&自定义参数名称!$C$9&\"=\"&自定义参数_批量构建!E55&\"&\"&自定义参数名称!$C$10&\"=\"&自定义参数_批量构建!H55&\"&\"&自定义参数名称!$C$11&\"=\"&自定义参数_批量构建!K55&\"&\"&自定义参数名称!$C$12&\"=\"&自定义参数_批量构建!N55&\"&\"&自定义参数名称!$C$13&\"=\"&自定义参数_批量构建!Q55","v":"?请在此处填写您自定义的参数名称=&请在此处填写您自定义的参数名称=&请在此处填写您自定义的参数名称=&请在此处填写您自定义的参数名称=&请在此处填写您自定义的参数名称="}]
[null,null,null,null,"",null,null,null,null,null,"",null,null,"",null,null,"",null,{"$f":"B56&\"?\"&自定义参数名称!$C$9&\"=\"&自定义参数_批量构建!E56&\"&\"&自定义参数名称!$C$10&\"=\"&自定义参数_批量构建!H56&\"&\"&自定义参数名称!$C$11&\"=\"&自定义参数_批量构建!K56&\"&\"&自定义参数名称!$C$12&\"=\"&自定义参数_批量构建!N56&\"&\"&自定义参数名称!$C$13&\"=\"&自定义参数_批量构建!Q56","v":"?请在此处填写您自定义的参数名称=&请在此处填写您自定义的参数名称=&请在此处填写您自定义的参数名称=&请在此处填写您自定义的参数名称=&请在此处填写您自定义的参数名称="}]
[null,null,null,null,"",null,null,null,null,null,"",null,null,"",null,null,"",null,{"$f":"B57&\"?\"&自定义参数名称!$C$9&\"=\"&自定义参数_批量构建!E57&\"&\"&自定义参数名称!$C$10&\"=\"&自定义参数_批量构建!H57&\"&\"&自定义参数名称!$C$11&\"=\"&自定义参数_批量构建!K57&\"&\"&自定义参数名称!$C$12&\"=\"&自定义参数_批量构建!N57&\"&\"&自定义参数名称!$C$13&\"=\"&自定义参数_批量构建!Q57","v":"?请在此处填写您自定义的参数名称=&请在此处填写您自定义的参数名称=&请在此处填写您自定义的参数名称=&请在此处填写您自定义的参数名称=&请在此处填写您自定义的参数名称="}]
[null,null,null,null,"",null,null,null,null,null,"",null,null,"",null,null,"",null,{"$f":"B58&\"?\"&自定义参数名称!$C$9&\"=\"&自定义参数_批量构建!E58&\"&\"&自定义参数名称!$C$10&\"=\"&自定义参数_批量构建!H58&\"&\"&自定义参数名称!$C$11&\"=\"&自定义参数_批量构建!K58&\"&\"&自定义参数名称!$C$12&\"=\"&自定义参数_批量构建!N58&\"&\"&自定义参数名称!$C$13&\"=\"&自定义参数_批量构建!Q58","v":"?请在此处填写您自定义的参数名称=&请在此处填写您自定义的参数名称=&请在此处填写您自定义的参数名称=&请在此处填写您自定义的参数名称=&请在此处填写您自定义的参数名称="}]
[null,null,null,null,"",null,null,null,null,null,"",null,null,"",null,null,"",null,{"$f":"B59&\"?\"&自定义参数名称!$C$9&\"=\"&自定义参数_批量构建!E59&\"&\"&自定义参数名称!$C$10&\"=\"&自定义参数_批量构建!H59&\"&\"&自定义参数名称!$C$11&\"=\"&自定义参数_批量构建!K59&\"&\"&自定义参数名称!$C$12&\"=\"&自定义参数_批量构建!N59&\"&\"&自定义参数名称!$C$13&\"=\"&自定义参数_批量构建!Q59","v":"?请在此处填写您自定义的参数名称=&请在此处填写您自定义的参数名称=&请在此处填写您自定义的参数名称=&请在此处填写您自定义的参数名称=&请在此处填写您自定义的参数名称="}]
[null,null,null,null,"",null,null,null,null,null,"",null,null,"",null,null,"",null,{"$f":"B60&\"?\"&自定义参数名称!$C$9&\"=\"&自定义参数_批量构建!E60&\"&\"&自定义参数名称!$C$10&\"=\"&自定义参数_批量构建!H60&\"&\"&自定义参数名称!$C$11&\"=\"&自定义参数_批量构建!K60&\"&\"&自定义参数名称!$C$12&\"=\"&自定义参数_批量构建!N60&\"&\"&自定义参数名称!$C$13&\"=\"&自定义参数_批量构建!Q60","v":"?请在此处填写您自定义的参数名称=&请在此处填写您自定义的参数名称=&请在此处填写您自定义的参数名称=&请在此处填写您自定义的参数名称=&请在此处填写您自定义的参数名称="}]
[null,null,null,null,"",null,null,null,null,null,"",null,null,"",null,null,"",null,{"$f":"B61&\"?\"&自定义参数名称!$C$9&\"=\"&自定义参数_批量构建!E61&\"&\"&自定义参数名称!$C$10&\"=\"&自定义参数_批量构建!H61&\"&\"&自定义参数名称!$C$11&\"=\"&自定义参数_批量构建!K61&\"&\"&自定义参数名称!$C$12&\"=\"&自定义参数_批量构建!N61&\"&\"&自定义参数名称!$C$13&\"=\"&自定义参数_批量构建!Q61","v":"?请在此处填写您自定义的参数名称=&请在此处填写您自定义的参数名称=&请在此处填写您自定义的参数名称=&请在此处填写您自定义的参数名称=&请在此处填写您自定义的参数名称="}]
[null,null,null,null,"",null,null,null,null,null,"",null,null,"",null,null,"",null,{"$f":"B62&\"?\"&自定义参数名称!$C$9&\"=\"&自定义参数_批量构建!E62&\"&\"&自定义参数名称!$C$10&\"=\"&自定义参数_批量构建!H62&\"&\"&自定义参数名称!$C$11&\"=\"&自定义参数_批量构建!K62&\"&\"&自定义参数名称!$C$12&\"=\"&自定义参数_批量构建!N62&\"&\"&自定义参数名称!$C$13&\"=\"&自定义参数_批量构建!Q62","v":"?请在此处填写您自定义的参数名称=&请在此处填写您自定义的参数名称=&请在此处填写您自定义的参数名称=&请在此处填写您自定义的参数名称=&请在此处填写您自定义的参数名称="}]
[null,null,null,null,"",null,null,null,null,null,"",null,null,"",null,null,"",null,{"$f":"B63&\"?\"&自定义参数名称!$C$9&\"=\"&自定义参数_批量构建!E63&\"&\"&自定义参数名称!$C$10&\"=\"&自定义参数_批量构建!H63&\"&\"&自定义参数名称!$C$11&\"=\"&自定义参数_批量构建!K63&\"&\"&自定义参数名称!$C$12&\"=\"&自定义参数_批量构建!N63&\"&\"&自定义参数名称!$C$13&\"=\"&自定义参数_批量构建!Q63","v":"?请在此处填写您自定义的参数名称=&请在此处填写您自定义的参数名称=&请在此处填写您自定义的参数名称=&请在此处填写您自定义的参数名称=&请在此处填写您自定义的参数名称="}]
[null,null,null,null,"",null,null,null,null,null,"",null,null,"",null,null,"",null,{"$f":"B64&\"?\"&自定义参数名称!$C$9&\"=\"&自定义参数_批量构建!E64&\"&\"&自定义参数名称!$C$10&\"=\"&自定义参数_批量构建!H64&\"&\"&自定义参数名称!$C$11&\"=\"&自定义参数_批量构建!K64&\"&\"&自定义参数名称!$C$12&\"=\"&自定义参数_批量构建!N64&\"&\"&自定义参数名称!$C$13&\"=\"&自定义参数_批量构建!Q64","v":"?请在此处填写您自定义的参数名称=&请在此处填写您自定义的参数名称=&请在此处填写您自定义的参数名称=&请在此处填写您自定义的参数名称=&请在此处填写您自定义的参数名称="}]
[null,null,null,null,"",null,null,null,null,null,"",null,null,"",null,null,"",null,{"$f":"B65&\"?\"&自定义参数名称!$C$9&\"=\"&自定义参数_批量构建!E65&\"&\"&自定义参数名称!$C$10&\"=\"&自定义参数_批量构建!H65&\"&\"&自定义参数名称!$C$11&\"=\"&自定义参数_批量构建!K65&\"&\"&自定义参数名称!$C$12&\"=\"&自定义参数_批量构建!N65&\"&\"&自定义参数名称!$C$13&\"=\"&自定义参数_批量构建!Q65","v":"?请在此处填写您自定义的参数名称=&请在此处填写您自定义的参数名称=&请在此处填写您自定义的参数名称=&请在此处填写您自定义的参数名称=&请在此处填写您自定义的参数名称="}]
[null,null,null,null,"",null,null,null,null,null,"",null,null,"",null,null,"",null,{"$f":"B66&\"?\"&自定义参数名称!$C$9&\"=\"&自定义参数_批量构建!E66&\"&\"&自定义参数名称!$C$10&\"=\"&自定义参数_批量构建!H66&\"&\"&自定义参数名称!$C$11&\"=\"&自定义参数_批量构建!K66&\"&\"&自定义参数名称!$C$12&\"=\"&自定义参数_批量构建!N66&\"&\"&自定义参数名称!$C$13&\"=\"&自定义参数_批量构建!Q66","v":"?请在此处填写您自定义的参数名称=&请在此处填写您自定义的参数名称=&请在此处填写您自定义的参数名称=&请在此处填写您自定义的参数名称=&请在此处填写您自定义的参数名称="}]
[null,null,null,null,"",null,null,null,null,null,"",null,null,"",null,null,"",null,{"$f":"B67&\"?\"&自定义参数名称!$C$9&\"=\"&自定义参数_批量构建!E67&\"&\"&自定义参数名称!$C$10&\"=\"&自定义参数_批量构建!H67&\"&\"&自定义参数名称!$C$11&\"=\"&自定义参数_批量构建!K67&\"&\"&自定义参数名称!$C$12&\"=\"&自定义参数_批量构建!N67&\"&\"&自定义参数名称!$C$13&\"=\"&自定义参数_批量构建!Q67","v":"?请在此处填写您自定义的参数名称=&请在此处填写您自定义的参数名称=&请在此处填写您自定义的参数名称=&请在此处填写您自定义的参数名称=&请在此处填写您自定义的参数名称="}]
[null,null,null,null,"",null,null,null,null,null,"",null,null,"",null,null,"",null,{"$f":"B68&\"?\"&自定义参数名称!$C$9&\"=\"&自定义参数_批量构建!E68&\"&\"&自定义参数名称!$C$10&\"=\"&自定义参数_批量构建!H68&\"&\"&自定义参数名称!$C$11&\"=\"&自定义参数_批量构建!K68&\"&\"&自定义参数名称!$C$12&\"=\"&自定义参数_批量构建!N68&\"&\"&自定义参数名称!$C$13&\"=\"&自定义参数_批量构建!Q68","v":"?请在此处填写您自定义的参数名称=&请在此处填写您自定义的参数名称=&请在此处填写您自定义的参数名称=&请在此处填写您自定义的参数名称=&请在此处填写您自定义的参数名称="}]
[null,null,null,null,"",null,null,null,null,null,"",null,null,"",null,null,"",null,{"$f":"B69&\"?\"&自定义参数名称!$C$9&\"=\"&自定义参数_批量构建!E69&\"&\"&自定义参数名称!$C$10&\"=\"&自定义参数_批量构建!H69&\"&\"&自定义参数名称!$C$11&\"=\"&自定义参数_批量构建!K69&\"&\"&自定义参数名称!$C$12&\"=\"&自定义参数_批量构建!N69&\"&\"&自定义参数名称!$C$13&\"=\"&自定义参数_批量构建!Q69","v":"?请在此处填写您自定义的参数名称=&请在此处填写您自定义的参数名称=&请在此处填写您自定义的参数名称=&请在此处填写您自定义的参数名称=&请在此处填写您自定义的参数名称="}]
[null,null,null,null,"",null,null,null,null,null,"",null,null,"",null,null,"",null,{"$f":"B70&\"?\"&自定义参数名称!$C$9&\"=\"&自定义参数_批量构建!E70&\"&\"&自定义参数名称!$C$10&\"=\"&自定义参数_批量构建!H70&\"&\"&自定义参数名称!$C$11&\"=\"&自定义参数_批量构建!K70&\"&\"&自定义参数名称!$C$12&\"=\"&自定义参数_批量构建!N70&\"&\"&自定义参数名称!$C$13&\"=\"&自定义参数_批量构建!Q70","v":"?请在此处填写您自定义的参数名称=&请在此处填写您自定义的参数名称=&请在此处填写您自定义的参数名称=&请在此处填写您自定义的参数名称=&请在此处填写您自定义的参数名称="}]
[null,null,null,null,{"$f":"UrlEncode(D71)","v":""},null,null,null,null,null,{"$f":"UrlEncode(J71)","v":""},null,null,{"$f":"UrlEncode(M71)","v":""},null,null,{"$f":"UrlEncode(P71)","v":""},null,{"$f":"B71&\"?\"&自定义参数名称!$C$9&\"=\"&自定义参数_批量构建!E71&\"&\"&自定义参数名称!$C$10&\"=\"&自定义参数_批量构建!H71&\"&\"&自定义参数名称!$C$11&\"=\"&自定义参数_批量构建!K71&\"&\"&自定义参数名称!$C$12&\"=\"&自定义参数_批量构建!N71&\"&\"&自定义参数名称!$C$13&\"=\"&自定义参数_批量构建!Q71","v":"?请在此处填写您自定义的参数名称=&请在此处填写您自定义的参数名称=&请在此处填写您自定义的参数名称=&请在此处填写您自定义的参数名称=&请在此处填写您自定义的参数名称="}]
[null,null,null,null,"",null,null,null,null,null,"",null,null,"",null,null,"",null,{"$f":"B72&\"?\"&自定义参数名称!$C$9&\"=\"&自定义参数_批量构建!E72&\"&\"&自定义参数名称!$C$10&\"=\"&自定义参数_批量构建!H72&\"&\"&自定义参数名称!$C$11&\"=\"&自定义参数_批量构建!K72&\"&\"&自定义参数名称!$C$12&\"=\"&自定义参数_批量构建!N72&\"&\"&自定义参数名称!$C$13&\"=\"&自定义参数_批量构建!Q72","v":"?请在此处填写您自定义的参数名称=&请在此处填写您自定义的参数名称=&请在此处填写您自定义的参数名称=&请在此处填写您自定义的参数名称=&请在此处填写您自定义的参数名称="}]
[null,null,null,null,"",null,null,null,null,null,"",null,null,"",null,null,"",null,{"$f":"B73&\"?\"&自定义参数名称!$C$9&\"=\"&自定义参数_批量构建!E73&\"&\"&自定义参数名称!$C$10&\"=\"&自定义参数_批量构建!H73&\"&\"&自定义参数名称!$C$11&\"=\"&自定义参数_批量构建!K73&\"&\"&自定义参数名称!$C$12&\"=\"&自定义参数_批量构建!N73&\"&\"&自定义参数名称!$C$13&\"=\"&自定义参数_批量构建!Q73","v":"?请在此处填写您自定义的参数名称=&请在此处填写您自定义的参数名称=&请在此处填写您自定义的参数名称=&请在此处填写您自定义的参数名称=&请在此处填写您自定义的参数名称="}]
[null,null,null,null,"",null,null,null,null,null,"",null,null,"",null,null,"",null,{"$f":"B74&\"?\"&自定义参数名称!$C$9&\"=\"&自定义参数_批量构建!E74&\"&\"&自定义参数名称!$C$10&\"=\"&自定义参数_批量构建!H74&\"&\"&自定义参数名称!$C$11&\"=\"&自定义参数_批量构建!K74&\"&\"&自定义参数名称!$C$12&\"=\"&自定义参数_批量构建!N74&\"&\"&自定义参数名称!$C$13&\"=\"&自定义参数_批量构建!Q74","v":"?请在此处填写您自定义的参数名称=&请在此处填写您自定义的参数名称=&请在此处填写您自定义的参数名称=&请在此处填写您自定义的参数名称=&请在此处填写您自定义的参数名称="}]
[null,null,null,null,"",null,null,null,null,null,"",null,null,"",null,null,"",null,{"$f":"B75&\"?\"&自定义参数名称!$C$9&\"=\"&自定义参数_批量构建!E75&\"&\"&自定义参数名称!$C$10&\"=\"&自定义参数_批量构建!H75&\"&\"&自定义参数名称!$C$11&\"=\"&自定义参数_批量构建!K75&\"&\"&自定义参数名称!$C$12&\"=\"&自定义参数_批量构建!N75&\"&\"&自定义参数名称!$C$13&\"=\"&自定义参数_批量构建!Q75","v":"?请在此处填写您自定义的参数名称=&请在此处填写您自定义的参数名称=&请在此处填写您自定义的参数名称=&请在此处填写您自定义的参数名称=&请在此处填写您自定义的参数名称="}]
[null,null,null,null,"",null,null,null,null,null,"",null,null,"",null,null,"",null,{"$f":"B76&\"?\"&自定义参数名称!$C$9&\"=\"&自定义参数_批量构建!E76&\"&\"&自定义参数名称!$C$10&\"=\"&自定义参数_批量构建!H76&\"&\"&自定义参数名称!$C$11&\"=\"&自定义参数_批量构建!K76&\"&\"&自定义参数名称!$C$12&\"=\"&自定义参数_批量构建!N76&\"&\"&自定义参数名称!$C$13&\"=\"&自定义参数_批量构建!Q76","v":"?请在此处填写您自定义的参数名称=&请在此处填写您自定义的参数名称=&请在此处填写您自定义的参数名称=&请在此处填写您自定义的参数名称=&请在此处填写您自定义的参数名称="}]
[null,null,null,null,"",null,null,null,null,null,"",null,null,"",null,null,"",null,{"$f":"B77&\"?\"&自定义参数名称!$C$9&\"=\"&自定义参数_批量构建!E77&\"&\"&自定义参数名称!$C$10&\"=\"&自定义参数_批量构建!H77&\"&\"&自定义参数名称!$C$11&\"=\"&自定义参数_批量构建!K77&\"&\"&自定义参数名称!$C$12&\"=\"&自定义参数_批量构建!N77&\"&\"&自定义参数名称!$C$13&\"=\"&自定义参数_批量构建!Q77","v":"?请在此处填写您自定义的参数名称=&请在此处填写您自定义的参数名称=&请在此处填写您自定义的参数名称=&请在此处填写您自定义的参数名称=&请在此处填写您自定义的参数名称="}]
[null,null,null,null,"",null,null,null,null,null,"",null,null,"",null,null,"",null,{"$f":"B78&\"?\"&自定义参数名称!$C$9&\"=\"&自定义参数_批量构建!E78&\"&\"&自定义参数名称!$C$10&\"=\"&自定义参数_批量构建!H78&\"&\"&自定义参数名称!$C$11&\"=\"&自定义参数_批量构建!K78&\"&\"&自定义参数名称!$C$12&\"=\"&自定义参数_批量构建!N78&\"&\"&自定义参数名称!$C$13&\"=\"&自定义参数_批量构建!Q78","v":"?请在此处填写您自定义的参数名称=&请在此处填写您自定义的参数名称=&请在此处填写您自定义的参数名称=&请在此处填写您自定义的参数名称=&请在此处填写您自定义的参数名称="}]
[null,null,null,null,"",null,null,null,null,null,"",null,null,"",null,null,"",null,{"$f":"B79&\"?\"&自定义参数名称!$C$9&\"=\"&自定义参数_批量构建!E79&\"&\"&自定义参数名称!$C$10&\"=\"&自定义参数_批量构建!H79&\"&\"&自定义参数名称!$C$11&\"=\"&自定义参数_批量构建!K79&\"&\"&自定义参数名称!$C$12&\"=\"&自定义参数_批量构建!N79&\"&\"&自定义参数名称!$C$13&\"=\"&自定义参数_批量构建!Q79","v":"?请在此处填写您自定义的参数名称=&请在此处填写您自定义的参数名称=&请在此处填写您自定义的参数名称=&请在此处填写您自定义的参数名称=&请在此处填写您自定义的参数名称="}]
[null,null,null,null,"",null,null,null,null,null,"",null,null,"",null,null,"",null,{"$f":"B80&\"?\"&自定义参数名称!$C$9&\"=\"&自定义参数_批量构建!E80&\"&\"&自定义参数名称!$C$10&\"=\"&自定义参数_批量构建!H80&\"&\"&自定义参数名称!$C$11&\"=\"&自定义参数_批量构建!K80&\"&\"&自定义参数名称!$C$12&\"=\"&自定义参数_批量构建!N80&\"&\"&自定义参数名称!$C$13&\"=\"&自定义参数_批量构建!Q80","v":"?请在此处填写您自定义的参数名称=&请在此处填写您自定义的参数名称=&请在此处填写您自定义的参数名称=&请在此处填写您自定义的参数名称=&请在此处填写您自定义的参数名称="}]
[null,null,null,null,"",null,null,null,null,null,"",null,null,"",null,null,"",null,{"$f":"B81&\"?\"&自定义参数名称!$C$9&\"=\"&自定义参数_批量构建!E81&\"&\"&自定义参数名称!$C$10&\"=\"&自定义参数_批量构建!H81&\"&\"&自定义参数名称!$C$11&\"=\"&自定义参数_批量构建!K81&\"&\"&自定义参数名称!$C$12&\"=\"&自定义参数_批量构建!N81&\"&\"&自定义参数名称!$C$13&\"=\"&自定义参数_批量构建!Q81","v":"?请在此处填写您自定义的参数名称=&请在此处填写您自定义的参数名称=&请在此处填写您自定义的参数名称=&请在此处填写您自定义的参数名称=&请在此处填写您自定义的参数名称="}]
[null,null,null,null,"",null,null,null,null,null,"",null,null,"",null,null,"",null,{"$f":"B82&\"?\"&自定义参数名称!$C$9&\"=\"&自定义参数_批量构建!E82&\"&\"&自定义参数名称!$C$10&\"=\"&自定义参数_批量构建!H82&\"&\"&自定义参数名称!$C$11&\"=\"&自定义参数_批量构建!K82&\"&\"&自定义参数名称!$C$12&\"=\"&自定义参数_批量构建!N82&\"&\"&自定义参数名称!$C$13&\"=\"&自定义参数_批量构建!Q82","v":"?请在此处填写您自定义的参数名称=&请在此处填写您自定义的参数名称=&请在此处填写您自定义的参数名称=&请在此处填写您自定义的参数名称=&请在此处填写您自定义的参数名称="}]
[null,null,null,null,"",null,null,null,null,null,"",null,null,"",null,null,"",null,{"$f":"B83&\"?\"&自定义参数名称!$C$9&\"=\"&自定义参数_批量构建!E83&\"&\"&自定义参数名称!$C$10&\"=\"&自定义参数_批量构建!H83&\"&\"&自定义参数名称!$C$11&\"=\"&自定义参数_批量构建!K83&\"&\"&自定义参数名称!$C$12&\"=\"&自定义参数_批量构建!N83&\"&\"&自定义参数名称!$C$13&\"=\"&自定义参数_批量构建!Q83","v":"?请在此处填写您自定义的参数名称=&请在此处填写您自定义的参数名称=&请在此处填写您自定义的参数名称=&请在此处填写您自定义的参数名称=&请在此处填写您自定义的参数名称="}]
[null,null,null,null,"",null,null,null,null,null,"",null,null,"",null,null,"",null,{"$f":"B84&\"?\"&自定义参数名称!$C$9&\"=\"&自定义参数_批量构建!E84&\"&\"&自定义参数名称!$C$10&\"=\"&自定义参数_批量构建!H84&\"&\"&自定义参数名称!$C$11&\"=\"&自定义参数_批量构建!K84&\"&\"&自定义参数名称!$C$12&\"=\"&自定义参数_批量构建!N84&\"&\"&自定义参数名称!$C$13&\"=\"&自定义参数_批量构建!Q84","v":"?请在此处填写您自定义的参数名称=&请在此处填写您自定义的参数名称=&请在此处填写您自定义的参数名称=&请在此处填写您自定义的参数名称=&请在此处填写您自定义的参数名称="}]
[null,null,null,null,"",null,null,null,null,null,"",null,null,"",null,null,"",null,{"$f":"B85&\"?\"&自定义参数名称!$C$9&\"=\"&自定义参数_批量构建!E85&\"&\"&自定义参数名称!$C$10&\"=\"&自定义参数_批量构建!H85&\"&\"&自定义参数名称!$C$11&\"=\"&自定义参数_批量构建!K85&\"&\"&自定义参数名称!$C$12&\"=\"&自定义参数_批量构建!N85&\"&\"&自定义参数名称!$C$13&\"=\"&自定义参数_批量构建!Q85","v":"?请在此处填写您自定义的参数名称=&请在此处填写您自定义的参数名称=&请在此处填写您自定义的参数名称=&请在此处填写您自定义的参数名称=&请在此处填写您自定义的参数名称="}]
[null,null,null,null,"",null,null,null,null,null,"",null,null,"",null,null,"",null,{"$f":"B86&\"?\"&自定义参数名称!$C$9&\"=\"&自定义参数_批量构建!E86&\"&\"&自定义参数名称!$C$10&\"=\"&自定义参数_批量构建!H86&\"&\"&自定义参数名称!$C$11&\"=\"&自定义参数_批量构建!K86&\"&\"&自定义参数名称!$C$12&\"=\"&自定义参数_批量构建!N86&\"&\"&自定义参数名称!$C$13&\"=\"&自定义参数_批量构建!Q86","v":"?请在此处填写您自定义的参数名称=&请在此处填写您自定义的参数名称=&请在此处填写您自定义的参数名称=&请在此处填写您自定义的参数名称=&请在此处填写您自定义的参数名称="}]
[null,null,null,null,"",null,null,null,null,null,"",null,null,"",null,null,"",null,{"$f":"B87&\"?\"&自定义参数名称!$C$9&\"=\"&自定义参数_批量构建!E87&\"&\"&自定义参数名称!$C$10&\"=\"&自定义参数_批量构建!H87&\"&\"&自定义参数名称!$C$11&\"=\"&自定义参数_批量构建!K87&\"&\"&自定义参数名称!$C$12&\"=\"&自定义参数_批量构建!N87&\"&\"&自定义参数名称!$C$13&\"=\"&自定义参数_批量构建!Q87","v":"?请在此处填写您自定义的参数名称=&请在此处填写您自定义的参数名称=&请在此处填写您自定义的参数名称=&请在此处填写您自定义的参数名称=&请在此处填写您自定义的参数名称="}]
[null,null,null,null,"",null,null,null,null,null,"",null,null,"",null,null,"",null,{"$f":"B88&\"?\"&自定义参数名称!$C$9&\"=\"&自定义参数_批量构建!E88&\"&\"&自定义参数名称!$C$10&\"=\"&自定义参数_批量构建!H88&\"&\"&自定义参数名称!$C$11&\"=\"&自定义参数_批量构建!K88&\"&\"&自定义参数名称!$C$12&\"=\"&自定义参数_批量构建!N88&\"&\"&自定义参数名称!$C$13&\"=\"&自定义参数_批量构建!Q88","v":"?请在此处填写您自定义的参数名称=&请在此处填写您自定义的参数名称=&请在此处填写您自定义的参数名称=&请在此处填写您自定义的参数名称=&请在此处填写您自定义的参数名称="}]
[null,null,null,null,"",null,null,null,null,null,"",null,null,"",null,null,"",null,{"$f":"B89&\"?\"&自定义参数名称!$C$9&\"=\"&自定义参数_批量构建!E89&\"&\"&自定义参数名称!$C$10&\"=\"&自定义参数_批量构建!H89&\"&\"&自定义参数名称!$C$11&\"=\"&自定义参数_批量构建!K89&\"&\"&自定义参数名称!$C$12&\"=\"&自定义参数_批量构建!N89&\"&\"&自定义参数名称!$C$13&\"=\"&自定义参数_批量构建!Q89","v":"?请在此处填写您自定义的参数名称=&请在此处填写您自定义的参数名称=&请在此处填写您自定义的参数名称=&请在此处填写您自定义的参数名称=&请在此处填写您自定义的参数名称="}]
[null,null,null,null,"",null,null,null,null,null,"",null,null,"",null,null,"",null,{"$f":"B90&\"?\"&自定义参数名称!$C$9&\"=\"&自定义参数_批量构建!E90&\"&\"&自定义参数名称!$C$10&\"=\"&自定义参数_批量构建!H90&\"&\"&自定义参数名称!$C$11&\"=\"&自定义参数_批量构建!K90&\"&\"&自定义参数名称!$C$12&\"=\"&自定义参数_批量构建!N90&\"&\"&自定义参数名称!$C$13&\"=\"&自定义参数_批量构建!Q90","v":"?请在此处填写您自定义的参数名称=&请在此处填写您自定义的参数名称=&请在此处填写您自定义的参数名称=&请在此处填写您自定义的参数名称=&请在此处填写您自定义的参数名称="}]
[null,null,null,null,"",null,null,null,null,null,"",null,null,"",null,null,"",null,{"$f":"B91&\"?\"&自定义参数名称!$C$9&\"=\"&自定义参数_批量构建!E91&\"&\"&自定义参数名称!$C$10&\"=\"&自定义参数_批量构建!H91&\"&\"&自定义参数名称!$C$11&\"=\"&自定义参数_批量构建!K91&\"&\"&自定义参数名称!$C$12&\"=\"&自定义参数_批量构建!N91&\"&\"&自定义参数名称!$C$13&\"=\"&自定义参数_批量构建!Q91","v":"?请在此处填写您自定义的参数名称=&请在此处填写您自定义的参数名称=&请在此处填写您自定义的参数名称=&请在此处填写您自定义的参数名称=&请在此处填写您自定义的参数名称="}]
[null,null,null,null,"",null,null,null,null,null,"",null,null,"",null,null,"",null,{"$f":"B92&\"?\"&自定义参数名称!$C$9&\"=\"&自定义参数_批量构建!E92&\"&\"&自定义参数名称!$C$10&\"=\"&自定义参数_批量构建!H92&\"&\"&自定义参数名称!$C$11&\"=\"&自定义参数_批量构建!K92&\"&\"&自定义参数名称!$C$12&\"=\"&自定义参数_批量构建!N92&\"&\"&自定义参数名称!$C$13&\"=\"&自定义参数_批量构建!Q92","v":"?请在此处填写您自定义的参数名称=&请在此处填写您自定义的参数名称=&请在此处填写您自定义的参数名称=&请在此处填写您自定义的参数名称=&请在此处填写您自定义的参数名称="}]
[null,null,null,null,"",null,null,null,null,null,"",null,null,"",null,null,"",null,{"$f":"B93&\"?\"&自定义参数名称!$C$9&\"=\"&自定义参数_批量构建!E93&\"&\"&自定义参数名称!$C$10&\"=\"&自定义参数_批量构建!H93&\"&\"&自定义参数名称!$C$11&\"=\"&自定义参数_批量构建!K93&\"&\"&自定义参数名称!$C$12&\"=\"&自定义参数_批量构建!N93&\"&\"&自定义参数名称!$C$13&\"=\"&自定义参数_批量构建!Q93","v":"?请在此处填写您自定义的参数名称=&请在此处填写您自定义的参数名称=&请在此处填写您自定义的参数名称=&请在此处填写您自定义的参数名称=&请在此处填写您自定义的参数名称="}]
[null,null,null,null,"",null,null,null,null,null,"",null,null,"",null,null,"",null,{"$f":"B94&\"?\"&自定义参数名称!$C$9&\"=\"&自定义参数_批量构建!E94&\"&\"&自定义参数名称!$C$10&\"=\"&自定义参数_批量构建!H94&\"&\"&自定义参数名称!$C$11&\"=\"&自定义参数_批量构建!K94&\"&\"&自定义参数名称!$C$12&\"=\"&自定义参数_批量构建!N94&\"&\"&自定义参数名称!$C$13&\"=\"&自定义参数_批量构建!Q94","v":"?请在此处填写您自定义的参数名称=&请在此处填写您自定义的参数名称=&请在此处填写您自定义的参数名称=&请在此处填写您自定义的参数名称=&请在此处填写您自定义的参数名称="}]
[null,null,null,null,"",null,null,null,null,null,"",null,null,"",null,null,"",null,{"$f":"B95&\"?\"&自定义参数名称!$C$9&\"=\"&自定义参数_批量构建!E95&\"&\"&自定义参数名称!$C$10&\"=\"&自定义参数_批量构建!H95&\"&\"&自定义参数名称!$C$11&\"=\"&自定义参数_批量构建!K95&\"&\"&自定义参数名称!$C$12&\"=\"&自定义参数_批量构建!N95&\"&\"&自定义参数名称!$C$13&\"=\"&自定义参数_批量构建!Q95","v":"?请在此处填写您自定义的参数名称=&请在此处填写您自定义的参数名称=&请在此处填写您自定义的参数名称=&请在此处填写您自定义的参数名称=&请在此处填写您自定义的参数名称="}]
[null,null,null,null,"",null,null,null,null,null,"",null,null,"",null,null,"",null,{"$f":"B96&\"?\"&自定义参数名称!$C$9&\"=\"&自定义参数_批量构建!E96&\"&\"&自定义参数名称!$C$10&\"=\"&自定义参数_批量构建!H96&\"&\"&自定义参数名称!$C$11&\"=\"&自定义参数_批量构建!K96&\"&\"&自定义参数名称!$C$12&\"=\"&自定义参数_批量构建!N96&\"&\"&自定义参数名称!$C$13&\"=\"&自定义参数_批量构建!Q96","v":"?请在此处填写您自定义的参数名称=&请在此处填写您自定义的参数名称=&请在此处填写您自定义的参数名称=&请在此处填写您自定义的参数名称=&请在此处填写您自定义的参数名称="}]
[null,null,null,null,"",null,null,null,null,null,"",null,null,"",null,null,"",null,{"$f":"B97&\"?\"&自定义参数名称!$C$9&\"=\"&自定义参数_批量构建!E97&\"&\"&自定义参数名称!$C$10&\"=\"&自定义参数_批量构建!H97&\"&\"&自定义参数名称!$C$11&\"=\"&自定义参数_批量构建!K97&\"&\"&自定义参数名称!$C$12&\"=\"&自定义参数_批量构建!N97&\"&\"&自定义参数名称!$C$13&\"=\"&自定义参数_批量构建!Q97","v":"?请在此处填写您自定义的参数名称=&请在此处填写您自定义的参数名称=&请在此处填写您自定义的参数名称=&请在此处填写您自定义的参数名称=&请在此处填写您自定义的参数名称="}]
[null,null,null,null,"",null,null,null,null,null,"",null,null,"",null,null,"",null,{"$f":"B98&\"?\"&自定义参数名称!$C$9&\"=\"&自定义参数_批量构建!E98&\"&\"&自定义参数名称!$C$10&\"=\"&自定义参数_批量构建!H98&\"&\"&自定义参数名称!$C$11&\"=\"&自定义参数_批量构建!K98&\"&\"&自定义参数名称!$C$12&\"=\"&自定义参数_批量构建!N98&\"&\"&自定义参数名称!$C$13&\"=\"&自定义参数_批量构建!Q98","v":"?请在此处填写您自定义的参数名称=&请在此处填写您自定义的参数名称=&请在此处填写您自定义的参数名称=&请在此处填写您自定义的参数名称=&请在此处填写您自定义的参数名称="}]
[null,null,null,null,"",null,null,null,null,null,"",null,null,"",null,null,"",null,{"$f":"B99&\"?\"&自定义参数名称!$C$9&\"=\"&自定义参数_批量构建!E99&\"&\"&自定义参数名称!$C$10&\"=\"&自定义参数_批量构建!H99&\"&\"&自定义参数名称!$C$11&\"=\"&自定义参数_批量构建!K99&\"&\"&自定义参数名称!$C$12&\"=\"&自定义参数_批量构建!N99&\"&\"&自定义参数名称!$C$13&\"=\"&自定义参数_批量构建!Q99","v":"?请在此处填写您自定义的参数名称=&请在此处填写您自定义的参数名称=&请在此处填写您自定义的参数名称=&请在此处填写您自定义的参数名称=&请在此处填写您自定义的参数名称="}]
[null,null,null,null,"",null,null,null,null,null,"",null,null,"",null,null,"",null,{"$f":"B100&\"?\"&自定义参数名称!$C$9&\"=\"&自定义参数_批量构建!E100&\"&\"&自定义参数名称!$C$10&\"=\"&自定义参数_批量构建!H100&\"&\"&自定义参数名称!$C$11&\"=\"&自定义参数_批量构建!K100&\"&\"&自定义参数名称!$C$12&\"=\"&自定义参数_批量构建!N100&\"&\"&自定义参数名称!$C$13&\"=\"&自定义参数_批量构建!Q100","v":"?请在此处填写您自定义的参数名称=&请在此处填写您自定义的参数名称=&请在此处填写您自定义的参数名称=&请在此处填写您自定义的参数名称=&请在此处填写您自定义的参数名称="}]
[null,null,null,null,"",null,null,null,null,null,"",null,null,"",null,null,"",null,{"$f":"B101&\"?\"&自定义参数名称!$C$9&\"=\"&自定义参数_批量构建!E101&\"&\"&自定义参数名称!$C$10&\"=\"&自定义参数_批量构建!H101&\"&\"&自定义参数名称!$C$11&\"=\"&自定义参数_批量构建!K101&\"&\"&自定义参数名称!$C$12&\"=\"&自定义参数_批量构建!N101&\"&\"&自定义参数名称!$C$13&\"=\"&自定义参数_批量构建!Q101","v":"?请在此处填写您自定义的参数名称=&请在此处填写您自定义的参数名称=&请在此处填写您自定义的参数名称=&请在此处填写您自定义的参数名称=&请在此处填写您自定义的参数名称="}]
[null,null,null,null,"",null,null,null,null,null,"",null,null,"",null,null,"",null,{"$f":"B102&\"?\"&自定义参数名称!$C$9&\"=\"&自定义参数_批量构建!E102&\"&\"&自定义参数名称!$C$10&\"=\"&自定义参数_批量构建!H102&\"&\"&自定义参数名称!$C$11&\"=\"&自定义参数_批量构建!K102&\"&\"&自定义参数名称!$C$12&\"=\"&自定义参数_批量构建!N102&\"&\"&自定义参数名称!$C$13&\"=\"&自定义参数_批量构建!Q102","v":"?请在此处填写您自定义的参数名称=&请在此处填写您自定义的参数名称=&请在此处填写您自定义的参数名称=&请在此处填写您自定义的参数名称=&请在此处填写您自定义的参数名称="}]
[null,null,null,null,"",null,null,null,null,null,"",null,null,"",null,null,"",null,{"$f":"B103&\"?\"&自定义参数名称!$C$9&\"=\"&自定义参数_批量构建!E103&\"&\"&自定义参数名称!$C$10&\"=\"&自定义参数_批量构建!H103&\"&\"&自定义参数名称!$C$11&\"=\"&自定义参数_批量构建!K103&\"&\"&自定义参数名称!$C$12&\"=\"&自定义参数_批量构建!N103&\"&\"&自定义参数名称!$C$13&\"=\"&自定义参数_批量构建!Q103","v":"?请在此处填写您自定义的参数名称=&请在此处填写您自定义的参数名称=&请在此处填写您自定义的参数名称=&请在此处填写您自定义的参数名称=&请在此处填写您自定义的参数名称="}]
[null,null,null,null,"",null,null,null,null,null,"",null,null,"",null,null,"",null,{"$f":"B104&\"?\"&自定义参数名称!$C$9&\"=\"&自定义参数_批量构建!E104&\"&\"&自定义参数名称!$C$10&\"=\"&自定义参数_批量构建!H104&\"&\"&自定义参数名称!$C$11&\"=\"&自定义参数_批量构建!K104&\"&\"&自定义参数名称!$C$12&\"=\"&自定义参数_批量构建!N104&\"&\"&自定义参数名称!$C$13&\"=\"&自定义参数_批量构建!Q104","v":"?请在此处填写您自定义的参数名称=&请在此处填写您自定义的参数名称=&请在此处填写您自定义的参数名称=&请在此处填写您自定义的参数名称=&请在此处填写您自定义的参数名称="}]
[null,null,null,null,"",null,null,null,null,null,"",null,null,"",null,null,"",null,{"$f":"B105&\"?\"&自定义参数名称!$C$9&\"=\"&自定义参数_批量构建!E105&\"&\"&自定义参数名称!$C$10&\"=\"&自定义参数_批量构建!H105&\"&\"&自定义参数名称!$C$11&\"=\"&自定义参数_批量构建!K105&\"&\"&自定义参数名称!$C$12&\"=\"&自定义参数_批量构建!N105&\"&\"&自定义参数名称!$C$13&\"=\"&自定义参数_批量构建!Q105","v":"?请在此处填写您自定义的参数名称=&请在此处填写您自定义的参数名称=&请在此处填写您自定义的参数名称=&请在此处填写您自定义的参数名称=&请在此处填写您自定义的参数名称="}]
[null,null,null,null,"",null,null,null,null,null,"",null,null,"",null,null,"",null,{"$f":"B106&\"?\"&自定义参数名称!$C$9&\"=\"&自定义参数_批量构建!E106&\"&\"&自定义参数名称!$C$10&\"=\"&自定义参数_批量构建!H106&\"&\"&自定义参数名称!$C$11&\"=\"&自定义参数_批量构建!K106&\"&\"&自定义参数名称!$C$12&\"=\"&自定义参数_批量构建!N106&\"&\"&自定义参数名称!$C$13&\"=\"&自定义参数_批量构建!Q106","v":"?请在此处填写您自定义的参数名称=&请在此处填写您自定义的参数名称=&请在此处填写您自定义的参数名称=&请在此处填写您自定义的参数名称=&请在此处填写您自定义的参数名称="}]
[null,null,null,null,"",null,null,null,null,null,"",null,null,"",null,null,"",null,{"$f":"B107&\"?\"&自定义参数名称!$C$9&\"=\"&自定义参数_批量构建!E107&\"&\"&自定义参数名称!$C$10&\"=\"&自定义参数_批量构建!H107&\"&\"&自定义参数名称!$C$11&\"=\"&自定义参数_批量构建!K107&\"&\"&自定义参数名称!$C$12&\"=\"&自定义参数_批量构建!N107&\"&\"&自定义参数名称!$C$13&\"=\"&自定义参数_批量构建!Q107","v":"?请在此处填写您自定义的参数名称=&请在此处填写您自定义的参数名称=&请在此处填写您自定义的参数名称=&请在此处填写您自定义的参数名称=&请在此处填写您自定义的参数名称="}]
[null,null,null,null,"",null,null,null,null,null,"",null,null,"",null,null,"",null,{"$f":"B108&\"?\"&自定义参数名称!$C$9&\"=\"&自定义参数_批量构建!E108&\"&\"&自定义参数名称!$C$10&\"=\"&自定义参数_批量构建!H108&\"&\"&自定义参数名称!$C$11&\"=\"&自定义参数_批量构建!K108&\"&\"&自定义参数名称!$C$12&\"=\"&自定义参数_批量构建!N108&\"&\"&自定义参数名称!$C$13&\"=\"&自定义参数_批量构建!Q108","v":"?请在此处填写您自定义的参数名称=&请在此处填写您自定义的参数名称=&请在此处填写您自定义的参数名称=&请在此处填写您自定义的参数名称=&请在此处填写您自定义的参数名称="}]
[null,null,null,null,"",null,null,null,null,null,"",null,null,"",null,null,"",null,{"$f":"B109&\"?\"&自定义参数名称!$C$9&\"=\"&自定义参数_批量构建!E109&\"&\"&自定义参数名称!$C$10&\"=\"&自定义参数_批量构建!H109&\"&\"&自定义参数名称!$C$11&\"=\"&自定义参数_批量构建!K109&\"&\"&自定义参数名称!$C$12&\"=\"&自定义参数_批量构建!N109&\"&\"&自定义参数名称!$C$13&\"=\"&自定义参数_批量构建!Q109","v":"?请在此处填写您自定义的参数名称=&请在此处填写您自定义的参数名称=&请在此处填写您自定义的参数名称=&请在此处填写您自定义的参数名称=&请在此处填写您自定义的参数名称="}]
[null,null,null,null,"",null,null,null,null,null,"",null,null,"",null,null,"",null,{"$f":"B110&\"?\"&自定义参数名称!$C$9&\"=\"&自定义参数_批量构建!E110&\"&\"&自定义参数名称!$C$10&\"=\"&自定义参数_批量构建!H110&\"&\"&自定义参数名称!$C$11&\"=\"&自定义参数_批量构建!K110&\"&\"&自定义参数名称!$C$12&\"=\"&自定义参数_批量构建!N110&\"&\"&自定义参数名称!$C$13&\"=\"&自定义参数_批量构建!Q110","v":"?请在此处填写您自定义的参数名称=&请在此处填写您自定义的参数名称=&请在此处填写您自定义的参数名称=&请在此处填写您自定义的参数名称=&请在此处填写您自定义的参数名称="}]
[null,null,null,null,"",null,null,null,null,null,"",null,null,"",null,null,"",null,{"$f":"B111&\"?\"&自定义参数名称!$C$9&\"=\"&自定义参数_批量构建!E111&\"&\"&自定义参数名称!$C$10&\"=\"&自定义参数_批量构建!H111&\"&\"&自定义参数名称!$C$11&\"=\"&自定义参数_批量构建!K111&\"&\"&自定义参数名称!$C$12&\"=\"&自定义参数_批量构建!N111&\"&\"&自定义参数名称!$C$13&\"=\"&自定义参数_批量构建!Q111","v":"?请在此处填写您自定义的参数名称=&请在此处填写您自定义的参数名称=&请在此处填写您自定义的参数名称=&请在此处填写您自定义的参数名称=&请在此处填写您自定义的参数名称="}]
[null,null,null,null,"",null,null,null,null,null,"",null,null,"",null,null,"",null,{"$f":"B112&\"?\"&自定义参数名称!$C$9&\"=\"&自定义参数_批量构建!E112&\"&\"&自定义参数名称!$C$10&\"=\"&自定义参数_批量构建!H112&\"&\"&自定义参数名称!$C$11&\"=\"&自定义参数_批量构建!K112&\"&\"&自定义参数名称!$C$12&\"=\"&自定义参数_批量构建!N112&\"&\"&自定义参数名称!$C$13&\"=\"&自定义参数_批量构建!Q112","v":"?请在此处填写您自定义的参数名称=&请在此处填写您自定义的参数名称=&请在此处填写您自定义的参数名称=&请在此处填写您自定义的参数名称=&请在此处填写您自定义的参数名称="}]
[null,null,null,null,"",null,null,null,null,null,"",null,null,"",null,null,"",null,{"$f":"B113&\"?\"&自定义参数名称!$C$9&\"=\"&自定义参数_批量构建!E113&\"&\"&自定义参数名称!$C$10&\"=\"&自定义参数_批量构建!H113&\"&\"&自定义参数名称!$C$11&\"=\"&自定义参数_批量构建!K113&\"&\"&自定义参数名称!$C$12&\"=\"&自定义参数_批量构建!N113&\"&\"&自定义参数名称!$C$13&\"=\"&自定义参数_批量构建!Q113","v":"?请在此处填写您自定义的参数名称=&请在此处填写您自定义的参数名称=&请在此处填写您自定义的参数名称=&请在此处填写您自定义的参数名称=&请在此处填写您自定义的参数名称="}]
[null,null,null,null,"",null,null,null,null,null,"",null,null,"",null,null,"",null,{"$f":"B114&\"?\"&自定义参数名称!$C$9&\"=\"&自定义参数_批量构建!E114&\"&\"&自定义参数名称!$C$10&\"=\"&自定义参数_批量构建!H114&\"&\"&自定义参数名称!$C$11&\"=\"&自定义参数_批量构建!K114&\"&\"&自定义参数名称!$C$12&\"=\"&自定义参数_批量构建!N114&\"&\"&自定义参数名称!$C$13&\"=\"&自定义参数_批量构建!Q114","v":"?请在此处填写您自定义的参数名称=&请在此处填写您自定义的参数名称=&请在此处填写您自定义的参数名称=&请在此处填写您自定义的参数名称=&请在此处填写您自定义的参数名称="}]
[null,null,null,null,"",null,null,null,null,null,"",null,null,"",null,null,"",null,{"$f":"B115&\"?\"&自定义参数名称!$C$9&\"=\"&自定义参数_批量构建!E115&\"&\"&自定义参数名称!$C$10&\"=\"&自定义参数_批量构建!H115&\"&\"&自定义参数名称!$C$11&\"=\"&自定义参数_批量构建!K115&\"&\"&自定义参数名称!$C$12&\"=\"&自定义参数_批量构建!N115&\"&\"&自定义参数名称!$C$13&\"=\"&自定义参数_批量构建!Q115","v":"?请在此处填写您自定义的参数名称=&请在此处填写您自定义的参数名称=&请在此处填写您自定义的参数名称=&请在此处填写您自定义的参数名称=&请在此处填写您自定义的参数名称="}]
[null,null,null,null,"",null,null,null,null,null,"",null,null,"",null,null,"",null,{"$f":"B116&\"?\"&自定义参数名称!$C$9&\"=\"&自定义参数_批量构建!E116&\"&\"&自定义参数名称!$C$10&\"=\"&自定义参数_批量构建!H116&\"&\"&自定义参数名称!$C$11&\"=\"&自定义参数_批量构建!K116&\"&\"&自定义参数名称!$C$12&\"=\"&自定义参数_批量构建!N116&\"&\"&自定义参数名称!$C$13&\"=\"&自定义参数_批量构建!Q116","v":"?请在此处填写您自定义的参数名称=&请在此处填写您自定义的参数名称=&请在此处填写您自定义的参数名称=&请在此处填写您自定义的参数名称=&请在此处填写您自定义的参数名称="}]
[null,null,null,null,"",null,null,null,null,null,"",null,null,"",null,null,"",null,{"$f":"B117&\"?\"&自定义参数名称!$C$9&\"=\"&自定义参数_批量构建!E117&\"&\"&自定义参数名称!$C$10&\"=\"&自定义参数_批量构建!H117&\"&\"&自定义参数名称!$C$11&\"=\"&自定义参数_批量构建!K117&\"&\"&自定义参数名称!$C$12&\"=\"&自定义参数_批量构建!N117&\"&\"&自定义参数名称!$C$13&\"=\"&自定义参数_批量构建!Q117","v":"?请在此处填写您自定义的参数名称=&请在此处填写您自定义的参数名称=&请在此处填写您自定义的参数名称=&请在此处填写您自定义的参数名称=&请在此处填写您自定义的参数名称="}]
[null,null,null,null,"",null,null,null,null,null,"",null,null,"",null,null,"",null,{"$f":"B118&\"?\"&自定义参数名称!$C$9&\"=\"&自定义参数_批量构建!E118&\"&\"&自定义参数名称!$C$10&\"=\"&自定义参数_批量构建!H118&\"&\"&自定义参数名称!$C$11&\"=\"&自定义参数_批量构建!K118&\"&\"&自定义参数名称!$C$12&\"=\"&自定义参数_批量构建!N118&\"&\"&自定义参数名称!$C$13&\"=\"&自定义参数_批量构建!Q118","v":"?请在此处填写您自定义的参数名称=&请在此处填写您自定义的参数名称=&请在此处填写您自定义的参数名称=&请在此处填写您自定义的参数名称=&请在此处填写您自定义的参数名称="}]
[null,null,null,null,"",null,null,null,null,null,"",null,null,"",null,null,"",null,{"$f":"B119&\"?\"&自定义参数名称!$C$9&\"=\"&自定义参数_批量构建!E119&\"&\"&自定义参数名称!$C$10&\"=\"&自定义参数_批量构建!H119&\"&\"&自定义参数名称!$C$11&\"=\"&自定义参数_批量构建!K119&\"&\"&自定义参数名称!$C$12&\"=\"&自定义参数_批量构建!N119&\"&\"&自定义参数名称!$C$13&\"=\"&自定义参数_批量构建!Q119","v":"?请在此处填写您自定义的参数名称=&请在此处填写您自定义的参数名称=&请在此处填写您自定义的参数名称=&请在此处填写您自定义的参数名称=&请在此处填写您自定义的参数名称="}]
[null,null,null,null,"",null,null,null,null,null,"",null,null,"",null,null,"",null,{"$f":"B120&\"?\"&自定义参数名称!$C$9&\"=\"&自定义参数_批量构建!E120&\"&\"&自定义参数名称!$C$10&\"=\"&自定义参数_批量构建!H120&\"&\"&自定义参数名称!$C$11&\"=\"&自定义参数_批量构建!K120&\"&\"&自定义参数名称!$C$12&\"=\"&自定义参数_批量构建!N120&\"&\"&自定义参数名称!$C$13&\"=\"&自定义参数_批量构建!Q120","v":"?请在此处填写您自定义的参数名称=&请在此处填写您自定义的参数名称=&请在此处填写您自定义的参数名称=&请在此处填写您自定义的参数名称=&请在此处填写您自定义的参数名称="}]
[null,null,null,null,"",null,null,null,null,null,"",null,null,"",null,null,"",null,{"$f":"B121&\"?\"&自定义参数名称!$C$9&\"=\"&自定义参数_批量构建!E121&\"&\"&自定义参数名称!$C$10&\"=\"&自定义参数_批量构建!H121&\"&\"&自定义参数名称!$C$11&\"=\"&自定义参数_批量构建!K121&\"&\"&自定义参数名称!$C$12&\"=\"&自定义参数_批量构建!N121&\"&\"&自定义参数名称!$C$13&\"=\"&自定义参数_批量构建!Q121","v":"?请在此处填写您自定义的参数名称=&请在此处填写您自定义的参数名称=&请在此处填写您自定义的参数名称=&请在此处填写您自定义的参数名称=&请在此处填写您自定义的参数名称="}]
[null,null,null,null,"",null,null,null,null,null,"",null,null,"",null,null,"",null,{"$f":"B122&\"?\"&自定义参数名称!$C$9&\"=\"&自定义参数_批量构建!E122&\"&\"&自定义参数名称!$C$10&\"=\"&自定义参数_批量构建!H122&\"&\"&自定义参数名称!$C$11&\"=\"&自定义参数_批量构建!K122&\"&\"&自定义参数名称!$C$12&\"=\"&自定义参数_批量构建!N122&\"&\"&自定义参数名称!$C$13&\"=\"&自定义参数_批量构建!Q122","v":"?请在此处填写您自定义的参数名称=&请在此处填写您自定义的参数名称=&请在此处填写您自定义的参数名称=&请在此处填写您自定义的参数名称=&请在此处填写您自定义的参数名称="}]
[null,null,null,null,"",null,null,null,null,null,"",null,null,"",null,null,"",null,{"$f":"B123&\"?\"&自定义参数名称!$C$9&\"=\"&自定义参数_批量构建!E123&\"&\"&自定义参数名称!$C$10&\"=\"&自定义参数_批量构建!H123&\"&\"&自定义参数名称!$C$11&\"=\"&自定义参数_批量构建!K123&\"&\"&自定义参数名称!$C$12&\"=\"&自定义参数_批量构建!N123&\"&\"&自定义参数名称!$C$13&\"=\"&自定义参数_批量构建!Q123","v":"?请在此处填写您自定义的参数名称=&请在此处填写您自定义的参数名称=&请在此处填写您自定义的参数名称=&请在此处填写您自定义的参数名称=&请在此处填写您自定义的参数名称="}]
[null,null,null,null,"",null,null,null,null,null,"",null,null,"",null,null,"",null,{"$f":"B124&\"?\"&自定义参数名称!$C$9&\"=\"&自定义参数_批量构建!E124&\"&\"&自定义参数名称!$C$10&\"=\"&自定义参数_批量构建!H124&\"&\"&自定义参数名称!$C$11&\"=\"&自定义参数_批量构建!K124&\"&\"&自定义参数名称!$C$12&\"=\"&自定义参数_批量构建!N124&\"&\"&自定义参数名称!$C$13&\"=\"&自定义参数_批量构建!Q124","v":"?请在此处填写您自定义的参数名称=&请在此处填写您自定义的参数名称=&请在此处填写您自定义的参数名称=&请在此处填写您自定义的参数名称=&请在此处填写您自定义的参数名称="}]
[null,null,null,null,"",null,null,null,null,null,"",null,null,"",null,null,"",null,{"$f":"B125&\"?\"&自定义参数名称!$C$9&\"=\"&自定义参数_批量构建!E125&\"&\"&自定义参数名称!$C$10&\"=\"&自定义参数_批量构建!H125&\"&\"&自定义参数名称!$C$11&\"=\"&自定义参数_批量构建!K125&\"&\"&自定义参数名称!$C$12&\"=\"&自定义参数_批量构建!N125&\"&\"&自定义参数名称!$C$13&\"=\"&自定义参数_批量构建!Q125","v":"?请在此处填写您自定义的参数名称=&请在此处填写您自定义的参数名称=&请在此处填写您自定义的参数名称=&请在此处填写您自定义的参数名称=&请在此处填写您自定义的参数名称="}]
[null,null,null,null,"",null,null,null,null,null,"",null,null,"",null,null,"",null,{"$f":"B126&\"?\"&自定义参数名称!$C$9&\"=\"&自定义参数_批量构建!E126&\"&\"&自定义参数名称!$C$10&\"=\"&自定义参数_批量构建!H126&\"&\"&自定义参数名称!$C$11&\"=\"&自定义参数_批量构建!K126&\"&\"&自定义参数名称!$C$12&\"=\"&自定义参数_批量构建!N126&\"&\"&自定义参数名称!$C$13&\"=\"&自定义参数_批量构建!Q126","v":"?请在此处填写您自定义的参数名称=&请在此处填写您自定义的参数名称=&请在此处填写您自定义的参数名称=&请在此处填写您自定义的参数名称=&请在此处填写您自定义的参数名称="}]
[null,null,null,null,"",null,null,null,null,null,"",null,null,"",null,null,"",null,{"$f":"B127&\"?\"&自定义参数名称!$C$9&\"=\"&自定义参数_批量构建!E127&\"&\"&自定义参数名称!$C$10&\"=\"&自定义参数_批量构建!H127&\"&\"&自定义参数名称!$C$11&\"=\"&自定义参数_批量构建!K127&\"&\"&自定义参数名称!$C$12&\"=\"&自定义参数_批量构建!N127&\"&\"&自定义参数名称!$C$13&\"=\"&自定义参数_批量构建!Q127","v":"?请在此处填写您自定义的参数名称=&请在此处填写您自定义的参数名称=&请在此处填写您自定义的参数名称=&请在此处填写您自定义的参数名称=&请在此处填写您自定义的参数名称="}]
[null,null,null,null,"",null,null,null,null,null,"",null,null,"",null,null,"",null,{"$f":"B128&\"?\"&自定义参数名称!$C$9&\"=\"&自定义参数_批量构建!E128&\"&\"&自定义参数名称!$C$10&\"=\"&自定义参数_批量构建!H128&\"&\"&自定义参数名称!$C$11&\"=\"&自定义参数_批量构建!K128&\"&\"&自定义参数名称!$C$12&\"=\"&自定义参数_批量构建!N128&\"&\"&自定义参数名称!$C$13&\"=\"&自定义参数_批量构建!Q128","v":"?请在此处填写您自定义的参数名称=&请在此处填写您自定义的参数名称=&请在此处填写您自定义的参数名称=&请在此处填写您自定义的参数名称=&请在此处填写您自定义的参数名称="}]
[null,null,null,null,"",null,null,null,null,null,"",null,null,"",null,null,"",null,{"$f":"B129&\"?\"&自定义参数名称!$C$9&\"=\"&自定义参数_批量构建!E129&\"&\"&自定义参数名称!$C$10&\"=\"&自定义参数_批量构建!H129&\"&\"&自定义参数名称!$C$11&\"=\"&自定义参数_批量构建!K129&\"&\"&自定义参数名称!$C$12&\"=\"&自定义参数_批量构建!N129&\"&\"&自定义参数名称!$C$13&\"=\"&自定义参数_批量构建!Q129","v":"?请在此处填写您自定义的参数名称=&请在此处填写您自定义的参数名称=&请在此处填写您自定义的参数名称=&请在此处填写您自定义的参数名称=&请在此处填写您自定义的参数名称="}]
[null,null,null,null,"",null,null,null,null,null,"",null,null,"",null,null,"",null,{"$f":"B130&\"?\"&自定义参数名称!$C$9&\"=\"&自定义参数_批量构建!E130&\"&\"&自定义参数名称!$C$10&\"=\"&自定义参数_批量构建!H130&\"&\"&自定义参数名称!$C$11&\"=\"&自定义参数_批量构建!K130&\"&\"&自定义参数名称!$C$12&\"=\"&自定义参数_批量构建!N130&\"&\"&自定义参数名称!$C$13&\"=\"&自定义参数_批量构建!Q130","v":"?请在此处填写您自定义的参数名称=&请在此处填写您自定义的参数名称=&请在此处填写您自定义的参数名称=&请在此处填写您自定义的参数名称=&请在此处填写您自定义的参数名称="}]
[null,null,null,null,"",null,null,null,null,null,"",null,null,"",null,null,"",null,{"$f":"B131&\"?\"&自定义参数名称!$C$9&\"=\"&自定义参数_批量构建!E131&\"&\"&自定义参数名称!$C$10&\"=\"&自定义参数_批量构建!H131&\"&\"&自定义参数名称!$C$11&\"=\"&自定义参数_批量构建!K131&\"&\"&自定义参数名称!$C$12&\"=\"&自定义参数_批量构建!N131&\"&\"&自定义参数名称!$C$13&\"=\"&自定义参数_批量构建!Q131","v":"?请在此处填写您自定义的参数名称=&请在此处填写您自定义的参数名称=&请在此处填写您自定义的参数名称=&请在此处填写您自定义的参数名称=&请在此处填写您自定义的参数名称="}]
[null,null,null,null,"",null,null,null,null,null,"",null,null,"",null,null,"",null,{"$f":"B132&\"?\"&自定义参数名称!$C$9&\"=\"&自定义参数_批量构建!E132&\"&\"&自定义参数名称!$C$10&\"=\"&自定义参数_批量构建!H132&\"&\"&自定义参数名称!$C$11&\"=\"&自定义参数_批量构建!K132&\"&\"&自定义参数名称!$C$12&\"=\"&自定义参数_批量构建!N132&\"&\"&自定义参数名称!$C$13&\"=\"&自定义参数_批量构建!Q132","v":"?请在此处填写您自定义的参数名称=&请在此处填写您自定义的参数名称=&请在此处填写您自定义的参数名称=&请在此处填写您自定义的参数名称=&请在此处填写您自定义的参数名称="}]
[null,null,null,null,"",null,null,null,null,null,"",null,null,"",null,null,"",null,{"$f":"B133&\"?\"&自定义参数名称!$C$9&\"=\"&自定义参数_批量构建!E133&\"&\"&自定义参数名称!$C$10&\"=\"&自定义参数_批量构建!H133&\"&\"&自定义参数名称!$C$11&\"=\"&自定义参数_批量构建!K133&\"&\"&自定义参数名称!$C$12&\"=\"&自定义参数_批量构建!N133&\"&\"&自定义参数名称!$C$13&\"=\"&自定义参数_批量构建!Q133","v":"?请在此处填写您自定义的参数名称=&请在此处填写您自定义的参数名称=&请在此处填写您自定义的参数名称=&请在此处填写您自定义的参数名称=&请在此处填写您自定义的参数名称="}]
[null,null,null,null,"",null,null,null,null,null,"",null,null,"",null,null,"",null,{"$f":"B134&\"?\"&自定义参数名称!$C$9&\"=\"&自定义参数_批量构建!E134&\"&\"&自定义参数名称!$C$10&\"=\"&自定义参数_批量构建!H134&\"&\"&自定义参数名称!$C$11&\"=\"&自定义参数_批量构建!K134&\"&\"&自定义参数名称!$C$12&\"=\"&自定义参数_批量构建!N134&\"&\"&自定义参数名称!$C$13&\"=\"&自定义参数_批量构建!Q134","v":"?请在此处填写您自定义的参数名称=&请在此处填写您自定义的参数名称=&请在此处填写您自定义的参数名称=&请在此处填写您自定义的参数名称=&请在此处填写您自定义的参数名称="}]
[null,null,null,null,{"$f":"UrlEncode(D135)","v":""},null,null,null,null,null,{"$f":"UrlEncode(J135)","v":""},null,null,{"$f":"UrlEncode(M135)","v":""},null,null,{"$f":"UrlEncode(P135)","v":""},null,{"$f":"B135&\"?\"&自定义参数名称!$C$9&\"=\"&自定义参数_批量构建!E135&\"&\"&自定义参数名称!$C$10&\"=\"&自定义参数_批量构建!H135&\"&\"&自定义参数名称!$C$11&\"=\"&自定义参数_批量构建!K135&\"&\"&自定义参数名称!$C$12&\"=\"&自定义参数_批量构建!N135&\"&\"&自定义参数名称!$C$13&\"=\"&自定义参数_批量构建!Q135","v":"?请在此处填写您自定义的参数名称=&请在此处填写您自定义的参数名称=&请在此处填写您自定义的参数名称=&请在此处填写您自定义的参数名称=&请在此处填写您自定义的参数名称="}]
[null,null,null,null,"",null,null,null,null,null,"",null,null,"",null,null,"",null,{"$f":"B136&\"?\"&自定义参数名称!$C$9&\"=\"&自定义参数_批量构建!E136&\"&\"&自定义参数名称!$C$10&\"=\"&自定义参数_批量构建!H136&\"&\"&自定义参数名称!$C$11&\"=\"&自定义参数_批量构建!K136&\"&\"&自定义参数名称!$C$12&\"=\"&自定义参数_批量构建!N136&\"&\"&自定义参数名称!$C$13&\"=\"&自定义参数_批量构建!Q136","v":"?请在此处填写您自定义的参数名称=&请在此处填写您自定义的参数名称=&请在此处填写您自定义的参数名称=&请在此处填写您自定义的参数名称=&请在此处填写您自定义的参数名称="}]
[null,null,null,null,"",null,null,null,null,null,"",null,null,"",null,null,"",null,{"$f":"B137&\"?\"&自定义参数名称!$C$9&\"=\"&自定义参数_批量构建!E137&\"&\"&自定义参数名称!$C$10&\"=\"&自定义参数_批量构建!H137&\"&\"&自定义参数名称!$C$11&\"=\"&自定义参数_批量构建!K137&\"&\"&自定义参数名称!$C$12&\"=\"&自定义参数_批量构建!N137&\"&\"&自定义参数名称!$C$13&\"=\"&自定义参数_批量构建!Q137","v":"?请在此处填写您自定义的参数名称=&请在此处填写您自定义的参数名称=&请在此处填写您自定义的参数名称=&请在此处填写您自定义的参数名称=&请在此处填写您自定义的参数名称="}]
[null,null,null,null,"",null,null,null,null,null,"",null,null,"",null,null,"",null,{"$f":"B138&\"?\"&自定义参数名称!$C$9&\"=\"&自定义参数_批量构建!E138&\"&\"&自定义参数名称!$C$10&\"=\"&自定义参数_批量构建!H138&\"&\"&自定义参数名称!$C$11&\"=\"&自定义参数_批量构建!K138&\"&\"&自定义参数名称!$C$12&\"=\"&自定义参数_批量构建!N138&\"&\"&自定义参数名称!$C$13&\"=\"&自定义参数_批量构建!Q138","v":"?请在此处填写您自定义的参数名称=&请在此处填写您自定义的参数名称=&请在此处填写您自定义的参数名称=&请在此处填写您自定义的参数名称=&请在此处填写您自定义的参数名称="}]
[null,null,null,null,"",null,null,null,null,null,"",null,null,"",null,null,"",null,{"$f":"B139&\"?\"&自定义参数名称!$C$9&\"=\"&自定义参数_批量构建!E139&\"&\"&自定义参数名称!$C$10&\"=\"&自定义参数_批量构建!H139&\"&\"&自定义参数名称!$C$11&\"=\"&自定义参数_批量构建!K139&\"&\"&自定义参数名称!$C$12&\"=\"&自定义参数_批量构建!N139&\"&\"&自定义参数名称!$C$13&\"=\"&自定义参数_批量构建!Q139","v":"?请在此处填写您自定义的参数名称=&请在此处填写您自定义的参数名称=&请在此处填写您自定义的参数名称=&请在此处填写您自定义的参数名称=&请在此处填写您自定义的参数名称="}]
[null,null,null,null,"",null,null,null,null,null,"",null,null,"",null,null,"",null,{"$f":"B140&\"?\"&自定义参数名称!$C$9&\"=\"&自定义参数_批量构建!E140&\"&\"&自定义参数名称!$C$10&\"=\"&自定义参数_批量构建!H140&\"&\"&自定义参数名称!$C$11&\"=\"&自定义参数_批量构建!K140&\"&\"&自定义参数名称!$C$12&\"=\"&自定义参数_批量构建!N140&\"&\"&自定义参数名称!$C$13&\"=\"&自定义参数_批量构建!Q140","v":"?请在此处填写您自定义的参数名称=&请在此处填写您自定义的参数名称=&请在此处填写您自定义的参数名称=&请在此处填写您自定义的参数名称=&请在此处填写您自定义的参数名称="}]
[null,null,null,null,"",null,null,null,null,null,"",null,null,"",null,null,"",null,{"$f":"B141&\"?\"&自定义参数名称!$C$9&\"=\"&自定义参数_批量构建!E141&\"&\"&自定义参数名称!$C$10&\"=\"&自定义参数_批量构建!H141&\"&\"&自定义参数名称!$C$11&\"=\"&自定义参数_批量构建!K141&\"&\"&自定义参数名称!$C$12&\"=\"&自定义参数_批量构建!N141&\"&\"&自定义参数名称!$C$13&\"=\"&自定义参数_批量构建!Q141","v":"?请在此处填写您自定义的参数名称=&请在此处填写您自定义的参数名称=&请在此处填写您自定义的参数名称=&请在此处填写您自定义的参数名称=&请在此处填写您自定义的参数名称="}]
[null,null,null,null,"",null,null,null,null,null,"",null,null,"",null,null,"",null,{"$f":"B142&\"?\"&自定义参数名称!$C$9&\"=\"&自定义参数_批量构建!E142&\"&\"&自定义参数名称!$C$10&\"=\"&自定义参数_批量构建!H142&\"&\"&自定义参数名称!$C$11&\"=\"&自定义参数_批量构建!K142&\"&\"&自定义参数名称!$C$12&\"=\"&自定义参数_批量构建!N142&\"&\"&自定义参数名称!$C$13&\"=\"&自定义参数_批量构建!Q142","v":"?请在此处填写您自定义的参数名称=&请在此处填写您自定义的参数名称=&请在此处填写您自定义的参数名称=&请在此处填写您自定义的参数名称=&请在此处填写您自定义的参数名称="}]
[null,null,null,null,"",null,null,null,null,null,"",null,null,"",null,null,"",null,{"$f":"B143&\"?\"&自定义参数名称!$C$9&\"=\"&自定义参数_批量构建!E143&\"&\"&自定义参数名称!$C$10&\"=\"&自定义参数_批量构建!H143&\"&\"&自定义参数名称!$C$11&\"=\"&自定义参数_批量构建!K143&\"&\"&自定义参数名称!$C$12&\"=\"&自定义参数_批量构建!N143&\"&\"&自定义参数名称!$C$13&\"=\"&自定义参数_批量构建!Q143","v":"?请在此处填写您自定义的参数名称=&请在此处填写您自定义的参数名称=&请在此处填写您自定义的参数名称=&请在此处填写您自定义的参数名称=&请在此处填写您自定义的参数名称="}]
[null,null,null,null,"",null,null,null,null,null,"",null,null,"",null,null,"",null,{"$f":"B144&\"?\"&自定义参数名称!$C$9&\"=\"&自定义参数_批量构建!E144&\"&\"&自定义参数名称!$C$10&\"=\"&自定义参数_批量构建!H144&\"&\"&自定义参数名称!$C$11&\"=\"&自定义参数_批量构建!K144&\"&\"&自定义参数名称!$C$12&\"=\"&自定义参数_批量构建!N144&\"&\"&自定义参数名称!$C$13&\"=\"&自定义参数_批量构建!Q144","v":"?请在此处填写您自定义的参数名称=&请在此处填写您自定义的参数名称=&请在此处填写您自定义的参数名称=&请在此处填写您自定义的参数名称=&请在此处填写您自定义的参数名称="}]
[null,null,null,null,"",null,null,null,null,null,"",null,null,"",null,null,"",null,{"$f":"B145&\"?\"&自定义参数名称!$C$9&\"=\"&自定义参数_批量构建!E145&\"&\"&自定义参数名称!$C$10&\"=\"&自定义参数_批量构建!H145&\"&\"&自定义参数名称!$C$11&\"=\"&自定义参数_批量构建!K145&\"&\"&自定义参数名称!$C$12&\"=\"&自定义参数_批量构建!N145&\"&\"&自定义参数名称!$C$13&\"=\"&自定义参数_批量构建!Q145","v":"?请在此处填写您自定义的参数名称=&请在此处填写您自定义的参数名称=&请在此处填写您自定义的参数名称=&请在此处填写您自定义的参数名称=&请在此处填写您自定义的参数名称="}]
[null,null,null,null,"",null,null,null,null,null,"",null,null,"",null,null,"",null,{"$f":"B146&\"?\"&自定义参数名称!$C$9&\"=\"&自定义参数_批量构建!E146&\"&\"&自定义参数名称!$C$10&\"=\"&自定义参数_批量构建!H146&\"&\"&自定义参数名称!$C$11&\"=\"&自定义参数_批量构建!K146&\"&\"&自定义参数名称!$C$12&\"=\"&自定义参数_批量构建!N146&\"&\"&自定义参数名称!$C$13&\"=\"&自定义参数_批量构建!Q146","v":"?请在此处填写您自定义的参数名称=&请在此处填写您自定义的参数名称=&请在此处填写您自定义的参数名称=&请在此处填写您自定义的参数名称=&请在此处填写您自定义的参数名称="}]
[null,null,null,null,"",null,null,null,null,null,"",null,null,"",null,null,"",null,{"$f":"B147&\"?\"&自定义参数名称!$C$9&\"=\"&自定义参数_批量构建!E147&\"&\"&自定义参数名称!$C$10&\"=\"&自定义参数_批量构建!H147&\"&\"&自定义参数名称!$C$11&\"=\"&自定义参数_批量构建!K147&\"&\"&自定义参数名称!$C$12&\"=\"&自定义参数_批量构建!N147&\"&\"&自定义参数名称!$C$13&\"=\"&自定义参数_批量构建!Q147","v":"?请在此处填写您自定义的参数名称=&请在此处填写您自定义的参数名称=&请在此处填写您自定义的参数名称=&请在此处填写您自定义的参数名称=&请在此处填写您自定义的参数名称="}]
[null,null,null,null,"",null,null,null,null,null,"",null,null,"",null,null,"",null,{"$f":"B148&\"?\"&自定义参数名称!$C$9&\"=\"&自定义参数_批量构建!E148&\"&\"&自定义参数名称!$C$10&\"=\"&自定义参数_批量构建!H148&\"&\"&自定义参数名称!$C$11&\"=\"&自定义参数_批量构建!K148&\"&\"&自定义参数名称!$C$12&\"=\"&自定义参数_批量构建!N148&\"&\"&自定义参数名称!$C$13&\"=\"&自定义参数_批量构建!Q148","v":"?请在此处填写您自定义的参数名称=&请在此处填写您自定义的参数名称=&请在此处填写您自定义的参数名称=&请在此处填写您自定义的参数名称=&请在此处填写您自定义的参数名称="}]
[null,null,null,null,"",null,null,null,null,null,"",null,null,"",null,null,"",null,{"$f":"B149&\"?\"&自定义参数名称!$C$9&\"=\"&自定义参数_批量构建!E149&\"&\"&自定义参数名称!$C$10&\"=\"&自定义参数_批量构建!H149&\"&\"&自定义参数名称!$C$11&\"=\"&自定义参数_批量构建!K149&\"&\"&自定义参数名称!$C$12&\"=\"&自定义参数_批量构建!N149&\"&\"&自定义参数名称!$C$13&\"=\"&自定义参数_批量构建!Q149","v":"?请在此处填写您自定义的参数名称=&请在此处填写您自定义的参数名称=&请在此处填写您自定义的参数名称=&请在此处填写您自定义的参数名称=&请在此处填写您自定义的参数名称="}]
[null,null,null,null,"",null,null,null,null,null,"",null,null,"",null,null,"",null,{"$f":"B150&\"?\"&自定义参数名称!$C$9&\"=\"&自定义参数_批量构建!E150&\"&\"&自定义参数名称!$C$10&\"=\"&自定义参数_批量构建!H150&\"&\"&自定义参数名称!$C$11&\"=\"&自定义参数_批量构建!K150&\"&\"&自定义参数名称!$C$12&\"=\"&自定义参数_批量构建!N150&\"&\"&自定义参数名称!$C$13&\"=\"&自定义参数_批量构建!Q150","v":"?请在此处填写您自定义的参数名称=&请在此处填写您自定义的参数名称=&请在此处填写您自定义的参数名称=&请在此处填写您自定义的参数名称=&请在此处填写您自定义的参数名称="}]
[null,null,null,null,"",null,null,null,null,null,"",null,null,"",null,null,"",null,{"$f":"B151&\"?\"&自定义参数名称!$C$9&\"=\"&自定义参数_批量构建!E151&\"&\"&自定义参数名称!$C$10&\"=\"&自定义参数_批量构建!H151&\"&\"&自定义参数名称!$C$11&\"=\"&自定义参数_批量构建!K151&\"&\"&自定义参数名称!$C$12&\"=\"&自定义参数_批量构建!N151&\"&\"&自定义参数名称!$C$13&\"=\"&自定义参数_批量构建!Q151","v":"?请在此处填写您自定义的参数名称=&请在此处填写您自定义的参数名称=&请在此处填写您自定义的参数名称=&请在此处填写您自定义的参数名称=&请在此处填写您自定义的参数名称="}]
[null,null,null,null,"",null,null,null,null,null,"",null,null,"",null,null,"",null,{"$f":"B152&\"?\"&自定义参数名称!$C$9&\"=\"&自定义参数_批量构建!E152&\"&\"&自定义参数名称!$C$10&\"=\"&自定义参数_批量构建!H152&\"&\"&自定义参数名称!$C$11&\"=\"&自定义参数_批量构建!K152&\"&\"&自定义参数名称!$C$12&\"=\"&自定义参数_批量构建!N152&\"&\"&自定义参数名称!$C$13&\"=\"&自定义参数_批量构建!Q152","v":"?请在此处填写您自定义的参数名称=&请在此处填写您自定义的参数名称=&请在此处填写您自定义的参数名称=&请在此处填写您自定义的参数名称=&请在此处填写您自定义的参数名称="}]
[null,null,null,null,"",null,null,null,null,null,"",null,null,"",null,null,"",null,{"$f":"B153&\"?\"&自定义参数名称!$C$9&\"=\"&自定义参数_批量构建!E153&\"&\"&自定义参数名称!$C$10&\"=\"&自定义参数_批量构建!H153&\"&\"&自定义参数名称!$C$11&\"=\"&自定义参数_批量构建!K153&\"&\"&自定义参数名称!$C$12&\"=\"&自定义参数_批量构建!N153&\"&\"&自定义参数名称!$C$13&\"=\"&自定义参数_批量构建!Q153","v":"?请在此处填写您自定义的参数名称=&请在此处填写您自定义的参数名称=&请在此处填写您自定义的参数名称=&请在此处填写您自定义的参数名称=&请在此处填写您自定义的参数名称="}]
[null,null,null,null,"",null,null,null,null,null,"",null,null,"",null,null,"",null,{"$f":"B154&\"?\"&自定义参数名称!$C$9&\"=\"&自定义参数_批量构建!E154&\"&\"&自定义参数名称!$C$10&\"=\"&自定义参数_批量构建!H154&\"&\"&自定义参数名称!$C$11&\"=\"&自定义参数_批量构建!K154&\"&\"&自定义参数名称!$C$12&\"=\"&自定义参数_批量构建!N154&\"&\"&自定义参数名称!$C$13&\"=\"&自定义参数_批量构建!Q154","v":"?请在此处填写您自定义的参数名称=&请在此处填写您自定义的参数名称=&请在此处填写您自定义的参数名称=&请在此处填写您自定义的参数名称=&请在此处填写您自定义的参数名称="}]
[null,null,null,null,"",null,null,null,null,null,"",null,null,"",null,null,"",null,{"$f":"B155&\"?\"&自定义参数名称!$C$9&\"=\"&自定义参数_批量构建!E155&\"&\"&自定义参数名称!$C$10&\"=\"&自定义参数_批量构建!H155&\"&\"&自定义参数名称!$C$11&\"=\"&自定义参数_批量构建!K155&\"&\"&自定义参数名称!$C$12&\"=\"&自定义参数_批量构建!N155&\"&\"&自定义参数名称!$C$13&\"=\"&自定义参数_批量构建!Q155","v":"?请在此处填写您自定义的参数名称=&请在此处填写您自定义的参数名称=&请在此处填写您自定义的参数名称=&请在此处填写您自定义的参数名称=&请在此处填写您自定义的参数名称="}]
[null,null,null,null,"",null,null,null,null,null,"",null,null,"",null,null,"",null,{"$f":"B156&\"?\"&自定义参数名称!$C$9&\"=\"&自定义参数_批量构建!E156&\"&\"&自定义参数名称!$C$10&\"=\"&自定义参数_批量构建!H156&\"&\"&自定义参数名称!$C$11&\"=\"&自定义参数_批量构建!K156&\"&\"&自定义参数名称!$C$12&\"=\"&自定义参数_批量构建!N156&\"&\"&自定义参数名称!$C$13&\"=\"&自定义参数_批量构建!Q156","v":"?请在此处填写您自定义的参数名称=&请在此处填写您自定义的参数名称=&请在此处填写您自定义的参数名称=&请在此处填写您自定义的参数名称=&请在此处填写您自定义的参数名称="}]
[null,null,null,null,"",null,null,null,null,null,"",null,null,"",null,null,"",null,{"$f":"B157&\"?\"&自定义参数名称!$C$9&\"=\"&自定义参数_批量构建!E157&\"&\"&自定义参数名称!$C$10&\"=\"&自定义参数_批量构建!H157&\"&\"&自定义参数名称!$C$11&\"=\"&自定义参数_批量构建!K157&\"&\"&自定义参数名称!$C$12&\"=\"&自定义参数_批量构建!N157&\"&\"&自定义参数名称!$C$13&\"=\"&自定义参数_批量构建!Q157","v":"?请在此处填写您自定义的参数名称=&请在此处填写您自定义的参数名称=&请在此处填写您自定义的参数名称=&请在此处填写您自定义的参数名称=&请在此处填写您自定义的参数名称="}]
[null,null,null,null,"",null,null,null,null,null,"",null,null,"",null,null,"",null,{"$f":"B158&\"?\"&自定义参数名称!$C$9&\"=\"&自定义参数_批量构建!E158&\"&\"&自定义参数名称!$C$10&\"=\"&自定义参数_批量构建!H158&\"&\"&自定义参数名称!$C$11&\"=\"&自定义参数_批量构建!K158&\"&\"&自定义参数名称!$C$12&\"=\"&自定义参数_批量构建!N158&\"&\"&自定义参数名称!$C$13&\"=\"&自定义参数_批量构建!Q158","v":"?请在此处填写您自定义的参数名称=&请在此处填写您自定义的参数名称=&请在此处填写您自定义的参数名称=&请在此处填写您自定义的参数名称=&请在此处填写您自定义的参数名称="}]
[null,null,null,null,"",null,null,null,null,null,"",null,null,"",null,null,"",null,{"$f":"B159&\"?\"&自定义参数名称!$C$9&\"=\"&自定义参数_批量构建!E159&\"&\"&自定义参数名称!$C$10&\"=\"&自定义参数_批量构建!H159&\"&\"&自定义参数名称!$C$11&\"=\"&自定义参数_批量构建!K159&\"&\"&自定义参数名称!$C$12&\"=\"&自定义参数_批量构建!N159&\"&\"&自定义参数名称!$C$13&\"=\"&自定义参数_批量构建!Q159","v":"?请在此处填写您自定义的参数名称=&请在此处填写您自定义的参数名称=&请在此处填写您自定义的参数名称=&请在此处填写您自定义的参数名称=&请在此处填写您自定义的参数名称="}]
[null,null,null,null,"",null,null,null,null,null,"",null,null,"",null,null,"",null,{"$f":"B160&\"?\"&自定义参数名称!$C$9&\"=\"&自定义参数_批量构建!E160&\"&\"&自定义参数名称!$C$10&\"=\"&自定义参数_批量构建!H160&\"&\"&自定义参数名称!$C$11&\"=\"&自定义参数_批量构建!K160&\"&\"&自定义参数名称!$C$12&\"=\"&自定义参数_批量构建!N160&\"&\"&自定义参数名称!$C$13&\"=\"&自定义参数_批量构建!Q160","v":"?请在此处填写您自定义的参数名称=&请在此处填写您自定义的参数名称=&请在此处填写您自定义的参数名称=&请在此处填写您自定义的参数名称=&请在此处填写您自定义的参数名称="}]
[null,null,null,null,"",null,null,null,null,null,"",null,null,"",null,null,"",null,{"$f":"B161&\"?\"&自定义参数名称!$C$9&\"=\"&自定义参数_批量构建!E161&\"&\"&自定义参数名称!$C$10&\"=\"&自定义参数_批量构建!H161&\"&\"&自定义参数名称!$C$11&\"=\"&自定义参数_批量构建!K161&\"&\"&自定义参数名称!$C$12&\"=\"&自定义参数_批量构建!N161&\"&\"&自定义参数名称!$C$13&\"=\"&自定义参数_批量构建!Q161","v":"?请在此处填写您自定义的参数名称=&请在此处填写您自定义的参数名称=&请在此处填写您自定义的参数名称=&请在此处填写您自定义的参数名称=&请在此处填写您自定义的参数名称="}]
[null,null,null,null,"",null,null,null,null,null,"",null,null,"",null,null,"",null,{"$f":"B162&\"?\"&自定义参数名称!$C$9&\"=\"&自定义参数_批量构建!E162&\"&\"&自定义参数名称!$C$10&\"=\"&自定义参数_批量构建!H162&\"&\"&自定义参数名称!$C$11&\"=\"&自定义参数_批量构建!K162&\"&\"&自定义参数名称!$C$12&\"=\"&自定义参数_批量构建!N162&\"&\"&自定义参数名称!$C$13&\"=\"&自定义参数_批量构建!Q162","v":"?请在此处填写您自定义的参数名称=&请在此处填写您自定义的参数名称=&请在此处填写您自定义的参数名称=&请在此处填写您自定义的参数名称=&请在此处填写您自定义的参数名称="}]
[null,null,null,null,"",null,null,null,null,null,"",null,null,"",null,null,"",null,{"$f":"B163&\"?\"&自定义参数名称!$C$9&\"=\"&自定义参数_批量构建!E163&\"&\"&自定义参数名称!$C$10&\"=\"&自定义参数_批量构建!H163&\"&\"&自定义参数名称!$C$11&\"=\"&自定义参数_批量构建!K163&\"&\"&自定义参数名称!$C$12&\"=\"&自定义参数_批量构建!N163&\"&\"&自定义参数名称!$C$13&\"=\"&自定义参数_批量构建!Q163","v":"?请在此处填写您自定义的参数名称=&请在此处填写您自定义的参数名称=&请在此处填写您自定义的参数名称=&请在此处填写您自定义的参数名称=&请在此处填写您自定义的参数名称="}]
[null,null,null,null,"",null,null,null,null,null,"",null,null,"",null,null,"",null,{"$f":"B164&\"?\"&自定义参数名称!$C$9&\"=\"&自定义参数_批量构建!E164&\"&\"&自定义参数名称!$C$10&\"=\"&自定义参数_批量构建!H164&\"&\"&自定义参数名称!$C$11&\"=\"&自定义参数_批量构建!K164&\"&\"&自定义参数名称!$C$12&\"=\"&自定义参数_批量构建!N164&\"&\"&自定义参数名称!$C$13&\"=\"&自定义参数_批量构建!Q164","v":"?请在此处填写您自定义的参数名称=&请在此处填写您自定义的参数名称=&请在此处填写您自定义的参数名称=&请在此处填写您自定义的参数名称=&请在此处填写您自定义的参数名称="}]
[null,null,null,null,"",null,null,null,null,null,"",null,null,"",null,null,"",null,{"$f":"B165&\"?\"&自定义参数名称!$C$9&\"=\"&自定义参数_批量构建!E165&\"&\"&自定义参数名称!$C$10&\"=\"&自定义参数_批量构建!H165&\"&\"&自定义参数名称!$C$11&\"=\"&自定义参数_批量构建!K165&\"&\"&自定义参数名称!$C$12&\"=\"&自定义参数_批量构建!N165&\"&\"&自定义参数名称!$C$13&\"=\"&自定义参数_批量构建!Q165","v":"?请在此处填写您自定义的参数名称=&请在此处填写您自定义的参数名称=&请在此处填写您自定义的参数名称=&请在此处填写您自定义的参数名称=&请在此处填写您自定义的参数名称="}]
[null,null,null,null,"",null,null,null,null,null,"",null,null,"",null,null,"",null,{"$f":"B166&\"?\"&自定义参数名称!$C$9&\"=\"&自定义参数_批量构建!E166&\"&\"&自定义参数名称!$C$10&\"=\"&自定义参数_批量构建!H166&\"&\"&自定义参数名称!$C$11&\"=\"&自定义参数_批量构建!K166&\"&\"&自定义参数名称!$C$12&\"=\"&自定义参数_批量构建!N166&\"&\"&自定义参数名称!$C$13&\"=\"&自定义参数_批量构建!Q166","v":"?请在此处填写您自定义的参数名称=&请在此处填写您自定义的参数名称=&请在此处填写您自定义的参数名称=&请在此处填写您自定义的参数名称=&请在此处填写您自定义的参数名称="}]
[null,null,null,null,"",null,null,null,null,null,"",null,null,"",null,null,"",null,{"$f":"B167&\"?\"&自定义参数名称!$C$9&\"=\"&自定义参数_批量构建!E167&\"&\"&自定义参数名称!$C$10&\"=\"&自定义参数_批量构建!H167&\"&\"&自定义参数名称!$C$11&\"=\"&自定义参数_批量构建!K167&\"&\"&自定义参数名称!$C$12&\"=\"&自定义参数_批量构建!N167&\"&\"&自定义参数名称!$C$13&\"=\"&自定义参数_批量构建!Q167","v":"?请在此处填写您自定义的参数名称=&请在此处填写您自定义的参数名称=&请在此处填写您自定义的参数名称=&请在此处填写您自定义的参数名称=&请在此处填写您自定义的参数名称="}]
[null,null,null,null,"",null,null,null,null,null,"",null,null,"",null,null,"",null,{"$f":"B168&\"?\"&自定义参数名称!$C$9&\"=\"&自定义参数_批量构建!E168&\"&\"&自定义参数名称!$C$10&\"=\"&自定义参数_批量构建!H168&\"&\"&自定义参数名称!$C$11&\"=\"&自定义参数_批量构建!K168&\"&\"&自定义参数名称!$C$12&\"=\"&自定义参数_批量构建!N168&\"&\"&自定义参数名称!$C$13&\"=\"&自定义参数_批量构建!Q168","v":"?请在此处填写您自定义的参数名称=&请在此处填写您自定义的参数名称=&请在此处填写您自定义的参数名称=&请在此处填写您自定义的参数名称=&请在此处填写您自定义的参数名称="}]
[null,null,null,null,"",null,null,null,null,null,"",null,null,"",null,null,"",null,{"$f":"B169&\"?\"&自定义参数名称!$C$9&\"=\"&自定义参数_批量构建!E169&\"&\"&自定义参数名称!$C$10&\"=\"&自定义参数_批量构建!H169&\"&\"&自定义参数名称!$C$11&\"=\"&自定义参数_批量构建!K169&\"&\"&自定义参数名称!$C$12&\"=\"&自定义参数_批量构建!N169&\"&\"&自定义参数名称!$C$13&\"=\"&自定义参数_批量构建!Q169","v":"?请在此处填写您自定义的参数名称=&请在此处填写您自定义的参数名称=&请在此处填写您自定义的参数名称=&请在此处填写您自定义的参数名称=&请在此处填写您自定义的参数名称="}]
[null,null,null,null,"",null,null,null,null,null,"",null,null,"",null,null,"",null,{"$f":"B170&\"?\"&自定义参数名称!$C$9&\"=\"&自定义参数_批量构建!E170&\"&\"&自定义参数名称!$C$10&\"=\"&自定义参数_批量构建!H170&\"&\"&自定义参数名称!$C$11&\"=\"&自定义参数_批量构建!K170&\"&\"&自定义参数名称!$C$12&\"=\"&自定义参数_批量构建!N170&\"&\"&自定义参数名称!$C$13&\"=\"&自定义参数_批量构建!Q170","v":"?请在此处填写您自定义的参数名称=&请在此处填写您自定义的参数名称=&请在此处填写您自定义的参数名称=&请在此处填写您自定义的参数名称=&请在此处填写您自定义的参数名称="}]
[null,null,null,null,"",null,null,null,null,null,"",null,null,"",null,null,"",null,{"$f":"B171&\"?\"&自定义参数名称!$C$9&\"=\"&自定义参数_批量构建!E171&\"&\"&自定义参数名称!$C$10&\"=\"&自定义参数_批量构建!H171&\"&\"&自定义参数名称!$C$11&\"=\"&自定义参数_批量构建!K171&\"&\"&自定义参数名称!$C$12&\"=\"&自定义参数_批量构建!N171&\"&\"&自定义参数名称!$C$13&\"=\"&自定义参数_批量构建!Q171","v":"?请在此处填写您自定义的参数名称=&请在此处填写您自定义的参数名称=&请在此处填写您自定义的参数名称=&请在此处填写您自定义的参数名称=&请在此处填写您自定义的参数名称="}]
[null,null,null,null,"",null,null,null,null,null,"",null,null,"",null,null,"",null,{"$f":"B172&\"?\"&自定义参数名称!$C$9&\"=\"&自定义参数_批量构建!E172&\"&\"&自定义参数名称!$C$10&\"=\"&自定义参数_批量构建!H172&\"&\"&自定义参数名称!$C$11&\"=\"&自定义参数_批量构建!K172&\"&\"&自定义参数名称!$C$12&\"=\"&自定义参数_批量构建!N172&\"&\"&自定义参数名称!$C$13&\"=\"&自定义参数_批量构建!Q172","v":"?请在此处填写您自定义的参数名称=&请在此处填写您自定义的参数名称=&请在此处填写您自定义的参数名称=&请在此处填写您自定义的参数名称=&请在此处填写您自定义的参数名称="}]
[null,null,null,null,"",null,null,null,null,null,"",null,null,"",null,null,"",null,{"$f":"B173&\"?\"&自定义参数名称!$C$9&\"=\"&自定义参数_批量构建!E173&\"&\"&自定义参数名称!$C$10&\"=\"&自定义参数_批量构建!H173&\"&\"&自定义参数名称!$C$11&\"=\"&自定义参数_批量构建!K173&\"&\"&自定义参数名称!$C$12&\"=\"&自定义参数_批量构建!N173&\"&\"&自定义参数名称!$C$13&\"=\"&自定义参数_批量构建!Q173","v":"?请在此处填写您自定义的参数名称=&请在此处填写您自定义的参数名称=&请在此处填写您自定义的参数名称=&请在此处填写您自定义的参数名称=&请在此处填写您自定义的参数名称="}]
[null,null,null,null,"",null,null,null,null,null,"",null,null,"",null,null,"",null,{"$f":"B174&\"?\"&自定义参数名称!$C$9&\"=\"&自定义参数_批量构建!E174&\"&\"&自定义参数名称!$C$10&\"=\"&自定义参数_批量构建!H174&\"&\"&自定义参数名称!$C$11&\"=\"&自定义参数_批量构建!K174&\"&\"&自定义参数名称!$C$12&\"=\"&自定义参数_批量构建!N174&\"&\"&自定义参数名称!$C$13&\"=\"&自定义参数_批量构建!Q174","v":"?请在此处填写您自定义的参数名称=&请在此处填写您自定义的参数名称=&请在此处填写您自定义的参数名称=&请在此处填写您自定义的参数名称=&请在此处填写您自定义的参数名称="}]
[null,null,null,null,"",null,null,null,null,null,"",null,null,"",null,null,"",null,{"$f":"B175&\"?\"&自定义参数名称!$C$9&\"=\"&自定义参数_批量构建!E175&\"&\"&自定义参数名称!$C$10&\"=\"&自定义参数_批量构建!H175&\"&\"&自定义参数名称!$C$11&\"=\"&自定义参数_批量构建!K175&\"&\"&自定义参数名称!$C$12&\"=\"&自定义参数_批量构建!N175&\"&\"&自定义参数名称!$C$13&\"=\"&自定义参数_批量构建!Q175","v":"?请在此处填写您自定义的参数名称=&请在此处填写您自定义的参数名称=&请在此处填写您自定义的参数名称=&请在此处填写您自定义的参数名称=&请在此处填写您自定义的参数名称="}]
[null,null,null,null,"",null,null,null,null,null,"",null,null,"",null,null,"",null,{"$f":"B176&\"?\"&自定义参数名称!$C$9&\"=\"&自定义参数_批量构建!E176&\"&\"&自定义参数名称!$C$10&\"=\"&自定义参数_批量构建!H176&\"&\"&自定义参数名称!$C$11&\"=\"&自定义参数_批量构建!K176&\"&\"&自定义参数名称!$C$12&\"=\"&自定义参数_批量构建!N176&\"&\"&自定义参数名称!$C$13&\"=\"&自定义参数_批量构建!Q176","v":"?请在此处填写您自定义的参数名称=&请在此处填写您自定义的参数名称=&请在此处填写您自定义的参数名称=&请在此处填写您自定义的参数名称=&请在此处填写您自定义的参数名称="}]
[null,null,null,null,"",null,null,null,null,null,"",null,null,"",null,null,"",null,{"$f":"B177&\"?\"&自定义参数名称!$C$9&\"=\"&自定义参数_批量构建!E177&\"&\"&自定义参数名称!$C$10&\"=\"&自定义参数_批量构建!H177&\"&\"&自定义参数名称!$C$11&\"=\"&自定义参数_批量构建!K177&\"&\"&自定义参数名称!$C$12&\"=\"&自定义参数_批量构建!N177&\"&\"&自定义参数名称!$C$13&\"=\"&自定义参数_批量构建!Q177","v":"?请在此处填写您自定义的参数名称=&请在此处填写您自定义的参数名称=&请在此处填写您自定义的参数名称=&请在此处填写您自定义的参数名称=&请在此处填写您自定义的参数名称="}]
[null,null,null,null,"",null,null,null,null,null,"",null,null,"",null,null,"",null,{"$f":"B178&\"?\"&自定义参数名称!$C$9&\"=\"&自定义参数_批量构建!E178&\"&\"&自定义参数名称!$C$10&\"=\"&自定义参数_批量构建!H178&\"&\"&自定义参数名称!$C$11&\"=\"&自定义参数_批量构建!K178&\"&\"&自定义参数名称!$C$12&\"=\"&自定义参数_批量构建!N178&\"&\"&自定义参数名称!$C$13&\"=\"&自定义参数_批量构建!Q178","v":"?请在此处填写您自定义的参数名称=&请在此处填写您自定义的参数名称=&请在此处填写您自定义的参数名称=&请在此处填写您自定义的参数名称=&请在此处填写您自定义的参数名称="}]
[null,null,null,null,"",null,null,null,null,null,"",null,null,"",null,null,"",null,{"$f":"B179&\"?\"&自定义参数名称!$C$9&\"=\"&自定义参数_批量构建!E179&\"&\"&自定义参数名称!$C$10&\"=\"&自定义参数_批量构建!H179&\"&\"&自定义参数名称!$C$11&\"=\"&自定义参数_批量构建!K179&\"&\"&自定义参数名称!$C$12&\"=\"&自定义参数_批量构建!N179&\"&\"&自定义参数名称!$C$13&\"=\"&自定义参数_批量构建!Q179","v":"?请在此处填写您自定义的参数名称=&请在此处填写您自定义的参数名称=&请在此处填写您自定义的参数名称=&请在此处填写您自定义的参数名称=&请在此处填写您自定义的参数名称="}]
[null,null,null,null,"",null,null,null,null,null,"",null,null,"",null,null,"",null,{"$f":"B180&\"?\"&自定义参数名称!$C$9&\"=\"&自定义参数_批量构建!E180&\"&\"&自定义参数名称!$C$10&\"=\"&自定义参数_批量构建!H180&\"&\"&自定义参数名称!$C$11&\"=\"&自定义参数_批量构建!K180&\"&\"&自定义参数名称!$C$12&\"=\"&自定义参数_批量构建!N180&\"&\"&自定义参数名称!$C$13&\"=\"&自定义参数_批量构建!Q180","v":"?请在此处填写您自定义的参数名称=&请在此处填写您自定义的参数名称=&请在此处填写您自定义的参数名称=&请在此处填写您自定义的参数名称=&请在此处填写您自定义的参数名称="}]
[null,null,null,null,"",null,null,null,null,null,"",null,null,"",null,null,"",null,{"$f":"B181&\"?\"&自定义参数名称!$C$9&\"=\"&自定义参数_批量构建!E181&\"&\"&自定义参数名称!$C$10&\"=\"&自定义参数_批量构建!H181&\"&\"&自定义参数名称!$C$11&\"=\"&自定义参数_批量构建!K181&\"&\"&自定义参数名称!$C$12&\"=\"&自定义参数_批量构建!N181&\"&\"&自定义参数名称!$C$13&\"=\"&自定义参数_批量构建!Q181","v":"?请在此处填写您自定义的参数名称=&请在此处填写您自定义的参数名称=&请在此处填写您自定义的参数名称=&请在此处填写您自定义的参数名称=&请在此处填写您自定义的参数名称="}]
[null,null,null,null,"",null,null,null,null,null,"",null,null,"",null,null,"",null,{"$f":"B182&\"?\"&自定义参数名称!$C$9&\"=\"&自定义参数_批量构建!E182&\"&\"&自定义参数名称!$C$10&\"=\"&自定义参数_批量构建!H182&\"&\"&自定义参数名称!$C$11&\"=\"&自定义参数_批量构建!K182&\"&\"&自定义参数名称!$C$12&\"=\"&自定义参数_批量构建!N182&\"&\"&自定义参数名称!$C$13&\"=\"&自定义参数_批量构建!Q182","v":"?请在此处填写您自定义的参数名称=&请在此处填写您自定义的参数名称=&请在此处填写您自定义的参数名称=&请在此处填写您自定义的参数名称=&请在此处填写您自定义的参数名称="}]
[null,null,null,null,"",null,null,null,null,null,"",null,null,"",null,null,"",null,{"$f":"B183&\"?\"&自定义参数名称!$C$9&\"=\"&自定义参数_批量构建!E183&\"&\"&自定义参数名称!$C$10&\"=\"&自定义参数_批量构建!H183&\"&\"&自定义参数名称!$C$11&\"=\"&自定义参数_批量构建!K183&\"&\"&自定义参数名称!$C$12&\"=\"&自定义参数_批量构建!N183&\"&\"&自定义参数名称!$C$13&\"=\"&自定义参数_批量构建!Q183","v":"?请在此处填写您自定义的参数名称=&请在此处填写您自定义的参数名称=&请在此处填写您自定义的参数名称=&请在此处填写您自定义的参数名称=&请在此处填写您自定义的参数名称="}]
[null,null,null,null,"",null,null,null,null,null,"",null,null,"",null,null,"",null,{"$f":"B184&\"?\"&自定义参数名称!$C$9&\"=\"&自定义参数_批量构建!E184&\"&\"&自定义参数名称!$C$10&\"=\"&自定义参数_批量构建!H184&\"&\"&自定义参数名称!$C$11&\"=\"&自定义参数_批量构建!K184&\"&\"&自定义参数名称!$C$12&\"=\"&自定义参数_批量构建!N184&\"&\"&自定义参数名称!$C$13&\"=\"&自定义参数_批量构建!Q184","v":"?请在此处填写您自定义的参数名称=&请在此处填写您自定义的参数名称=&请在此处填写您自定义的参数名称=&请在此处填写您自定义的参数名称=&请在此处填写您自定义的参数名称="}]
[null,null,null,null,"",null,null,null,null,null,"",null,null,"",null,null,"",null,{"$f":"B185&\"?\"&自定义参数名称!$C$9&\"=\"&自定义参数_批量构建!E185&\"&\"&自定义参数名称!$C$10&\"=\"&自定义参数_批量构建!H185&\"&\"&自定义参数名称!$C$11&\"=\"&自定义参数_批量构建!K185&\"&\"&自定义参数名称!$C$12&\"=\"&自定义参数_批量构建!N185&\"&\"&自定义参数名称!$C$13&\"=\"&自定义参数_批量构建!Q185","v":"?请在此处填写您自定义的参数名称=&请在此处填写您自定义的参数名称=&请在此处填写您自定义的参数名称=&请在此处填写您自定义的参数名称=&请在此处填写您自定义的参数名称="}]
[null,null,null,null,"",null,null,null,null,null,"",null,null,"",null,null,"",null,{"$f":"B186&\"?\"&自定义参数名称!$C$9&\"=\"&自定义参数_批量构建!E186&\"&\"&自定义参数名称!$C$10&\"=\"&自定义参数_批量构建!H186&\"&\"&自定义参数名称!$C$11&\"=\"&自定义参数_批量构建!K186&\"&\"&自定义参数名称!$C$12&\"=\"&自定义参数_批量构建!N186&\"&\"&自定义参数名称!$C$13&\"=\"&自定义参数_批量构建!Q186","v":"?请在此处填写您自定义的参数名称=&请在此处填写您自定义的参数名称=&请在此处填写您自定义的参数名称=&请在此处填写您自定义的参数名称=&请在此处填写您自定义的参数名称="}]
[null,null,null,null,"",null,null,null,null,null,"",null,null,"",null,null,"",null,{"$f":"B187&\"?\"&自定义参数名称!$C$9&\"=\"&自定义参数_批量构建!E187&\"&\"&自定义参数名称!$C$10&\"=\"&自定义参数_批量构建!H187&\"&\"&自定义参数名称!$C$11&\"=\"&自定义参数_批量构建!K187&\"&\"&自定义参数名称!$C$12&\"=\"&自定义参数_批量构建!N187&\"&\"&自定义参数名称!$C$13&\"=\"&自定义参数_批量构建!Q187","v":"?请在此处填写您自定义的参数名称=&请在此处填写您自定义的参数名称=&请在此处填写您自定义的参数名称=&请在此处填写您自定义的参数名称=&请在此处填写您自定义的参数名称="}]
[null,null,null,null,"",null,null,null,null,null,"",null,null,"",null,null,"",null,{"$f":"B188&\"?\"&自定义参数名称!$C$9&\"=\"&自定义参数_批量构建!E188&\"&\"&自定义参数名称!$C$10&\"=\"&自定义参数_批量构建!H188&\"&\"&自定义参数名称!$C$11&\"=\"&自定义参数_批量构建!K188&\"&\"&自定义参数名称!$C$12&\"=\"&自定义参数_批量构建!N188&\"&\"&自定义参数名称!$C$13&\"=\"&自定义参数_批量构建!Q188","v":"?请在此处填写您自定义的参数名称=&请在此处填写您自定义的参数名称=&请在此处填写您自定义的参数名称=&请在此处填写您自定义的参数名称=&请在此处填写您自定义的参数名称="}]
[null,null,null,null,"",null,null,null,null,null,"",null,null,"",null,null,"",null,{"$f":"B189&\"?\"&自定义参数名称!$C$9&\"=\"&自定义参数_批量构建!E189&\"&\"&自定义参数名称!$C$10&\"=\"&自定义参数_批量构建!H189&\"&\"&自定义参数名称!$C$11&\"=\"&自定义参数_批量构建!K189&\"&\"&自定义参数名称!$C$12&\"=\"&自定义参数_批量构建!N189&\"&\"&自定义参数名称!$C$13&\"=\"&自定义参数_批量构建!Q189","v":"?请在此处填写您自定义的参数名称=&请在此处填写您自定义的参数名称=&请在此处填写您自定义的参数名称=&请在此处填写您自定义的参数名称=&请在此处填写您自定义的参数名称="}]
[null,null,null,null,"",null,null,null,null,null,"",null,null,"",null,null,"",null,{"$f":"B190&\"?\"&自定义参数名称!$C$9&\"=\"&自定义参数_批量构建!E190&\"&\"&自定义参数名称!$C$10&\"=\"&自定义参数_批量构建!H190&\"&\"&自定义参数名称!$C$11&\"=\"&自定义参数_批量构建!K190&\"&\"&自定义参数名称!$C$12&\"=\"&自定义参数_批量构建!N190&\"&\"&自定义参数名称!$C$13&\"=\"&自定义参数_批量构建!Q190","v":"?请在此处填写您自定义的参数名称=&请在此处填写您自定义的参数名称=&请在此处填写您自定义的参数名称=&请在此处填写您自定义的参数名称=&请在此处填写您自定义的参数名称="}]
[null,null,null,null,"",null,null,null,null,null,"",null,null,"",null,null,"",null,{"$f":"B191&\"?\"&自定义参数名称!$C$9&\"=\"&自定义参数_批量构建!E191&\"&\"&自定义参数名称!$C$10&\"=\"&自定义参数_批量构建!H191&\"&\"&自定义参数名称!$C$11&\"=\"&自定义参数_批量构建!K191&\"&\"&自定义参数名称!$C$12&\"=\"&自定义参数_批量构建!N191&\"&\"&自定义参数名称!$C$13&\"=\"&自定义参数_批量构建!Q191","v":"?请在此处填写您自定义的参数名称=&请在此处填写您自定义的参数名称=&请在此处填写您自定义的参数名称=&请在此处填写您自定义的参数名称=&请在此处填写您自定义的参数名称="}]
[null,null,null,null,"",null,null,null,null,null,"",null,null,"",null,null,"",null,{"$f":"B192&\"?\"&自定义参数名称!$C$9&\"=\"&自定义参数_批量构建!E192&\"&\"&自定义参数名称!$C$10&\"=\"&自定义参数_批量构建!H192&\"&\"&自定义参数名称!$C$11&\"=\"&自定义参数_批量构建!K192&\"&\"&自定义参数名称!$C$12&\"=\"&自定义参数_批量构建!N192&\"&\"&自定义参数名称!$C$13&\"=\"&自定义参数_批量构建!Q192","v":"?请在此处填写您自定义的参数名称=&请在此处填写您自定义的参数名称=&请在此处填写您自定义的参数名称=&请在此处填写您自定义的参数名称=&请在此处填写您自定义的参数名称="}]
[null,null,null,null,"",null,null,null,null,null,"",null,null,"",null,null,"",null,{"$f":"B193&\"?\"&自定义参数名称!$C$9&\"=\"&自定义参数_批量构建!E193&\"&\"&自定义参数名称!$C$10&\"=\"&自定义参数_批量构建!H193&\"&\"&自定义参数名称!$C$11&\"=\"&自定义参数_批量构建!K193&\"&\"&自定义参数名称!$C$12&\"=\"&自定义参数_批量构建!N193&\"&\"&自定义参数名称!$C$13&\"=\"&自定义参数_批量构建!Q193","v":"?请在此处填写您自定义的参数名称=&请在此处填写您自定义的参数名称=&请在此处填写您自定义的参数名称=&请在此处填写您自定义的参数名称=&请在此处填写您自定义的参数名称="}]
[null,null,null,null,"",null,null,null,null,null,"",null,null,"",null,null,"",null,{"$f":"B194&\"?\"&自定义参数名称!$C$9&\"=\"&自定义参数_批量构建!E194&\"&\"&自定义参数名称!$C$10&\"=\"&自定义参数_批量构建!H194&\"&\"&自定义参数名称!$C$11&\"=\"&自定义参数_批量构建!K194&\"&\"&自定义参数名称!$C$12&\"=\"&自定义参数_批量构建!N194&\"&\"&自定义参数名称!$C$13&\"=\"&自定义参数_批量构建!Q194","v":"?请在此处填写您自定义的参数名称=&请在此处填写您自定义的参数名称=&请在此处填写您自定义的参数名称=&请在此处填写您自定义的参数名称=&请在此处填写您自定义的参数名称="}]
[null,null,null,null,"",null,null,null,null,null,"",null,null,"",null,null,"",null,{"$f":"B195&\"?\"&自定义参数名称!$C$9&\"=\"&自定义参数_批量构建!E195&\"&\"&自定义参数名称!$C$10&\"=\"&自定义参数_批量构建!H195&\"&\"&自定义参数名称!$C$11&\"=\"&自定义参数_批量构建!K195&\"&\"&自定义参数名称!$C$12&\"=\"&自定义参数_批量构建!N195&\"&\"&自定义参数名称!$C$13&\"=\"&自定义参数_批量构建!Q195","v":"?请在此处填写您自定义的参数名称=&请在此处填写您自定义的参数名称=&请在此处填写您自定义的参数名称=&请在此处填写您自定义的参数名称=&请在此处填写您自定义的参数名称="}]
[null,null,null,null,"",null,null,null,null,null,"",null,null,"",null,null,"",null,{"$f":"B196&\"?\"&自定义参数名称!$C$9&\"=\"&自定义参数_批量构建!E196&\"&\"&自定义参数名称!$C$10&\"=\"&自定义参数_批量构建!H196&\"&\"&自定义参数名称!$C$11&\"=\"&自定义参数_批量构建!K196&\"&\"&自定义参数名称!$C$12&\"=\"&自定义参数_批量构建!N196&\"&\"&自定义参数名称!$C$13&\"=\"&自定义参数_批量构建!Q196","v":"?请在此处填写您自定义的参数名称=&请在此处填写您自定义的参数名称=&请在此处填写您自定义的参数名称=&请在此处填写您自定义的参数名称=&请在此处填写您自定义的参数名称="}]
[null,null,null,null,"",null,null,null,null,null,"",null,null,"",null,null,"",null,{"$f":"B197&\"?\"&自定义参数名称!$C$9&\"=\"&自定义参数_批量构建!E197&\"&\"&自定义参数名称!$C$10&\"=\"&自定义参数_批量构建!H197&\"&\"&自定义参数名称!$C$11&\"=\"&自定义参数_批量构建!K197&\"&\"&自定义参数名称!$C$12&\"=\"&自定义参数_批量构建!N197&\"&\"&自定义参数名称!$C$13&\"=\"&自定义参数_批量构建!Q197","v":"?请在此处填写您自定义的参数名称=&请在此处填写您自定义的参数名称=&请在此处填写您自定义的参数名称=&请在此处填写您自定义的参数名称=&请在此处填写您自定义的参数名称="}]
[null,null,null,null,"",null,null,null,null,null,"",null,null,"",null,null,"",null,{"$f":"B198&\"?\"&自定义参数名称!$C$9&\"=\"&自定义参数_批量构建!E198&\"&\"&自定义参数名称!$C$10&\"=\"&自定义参数_批量构建!H198&\"&\"&自定义参数名称!$C$11&\"=\"&自定义参数_批量构建!K198&\"&\"&自定义参数名称!$C$12&\"=\"&自定义参数_批量构建!N198&\"&\"&自定义参数名称!$C$13&\"=\"&自定义参数_批量构建!Q198","v":"?请在此处填写您自定义的参数名称=&请在此处填写您自定义的参数名称=&请在此处填写您自定义的参数名称=&请在此处填写您自定义的参数名称=&请在此处填写您自定义的参数名称="}]
[null,null,null,null,{"$f":"UrlEncode(D199)","v":""},null,null,null,null,null,{"$f":"UrlEncode(J199)","v":""},null,null,{"$f":"UrlEncode(M199)","v":""},null,null,{"$f":"UrlEncode(P199)","v":""},null,{"$f":"B199&\"?\"&自定义参数名称!$C$9&\"=\"&自定义参数_批量构建!E199&\"&\"&自定义参数名称!$C$10&\"=\"&自定义参数_批量构建!H199&\"&\"&自定义参数名称!$C$11&\"=\"&自定义参数_批量构建!K199&\"&\"&自定义参数名称!$C$12&\"=\"&自定义参数_批量构建!N199&\"&\"&自定义参数名称!$C$13&\"=\"&自定义参数_批量构建!Q199","v":"?请在此处填写您自定义的参数名称=&请在此处填写您自定义的参数名称=&请在此处填写您自定义的参数名称=&请在此处填写您自定义的参数名称=&请在此处填写您自定义的参数名称="}]
[null,null,null,null,"",null,null,null,null,null,"",null,null,"",null,null,"",null,{"$f":"B200&\"?\"&自定义参数名称!$C$9&\"=\"&自定义参数_批量构建!E200&\"&\"&自定义参数名称!$C$10&\"=\"&自定义参数_批量构建!H200&\"&\"&自定义参数名称!$C$11&\"=\"&自定义参数_批量构建!K200&\"&\"&自定义参数名称!$C$12&\"=\"&自定义参数_批量构建!N200&\"&\"&自定义参数名称!$C$13&\"=\"&自定义参数_批量构建!Q200","v":"?请在此处填写您自定义的参数名称=&请在此处填写您自定义的参数名称=&请在此处填写您自定义的参数名称=&请在此处填写您自定义的参数名称=&请在此处填写您自定义的参数名称="}]
[null,null,null,null,"",null,null,null,null,null,"",null,null,"",null,null,"",null,{"$f":"B201&\"?\"&自定义参数名称!$C$9&\"=\"&自定义参数_批量构建!E201&\"&\"&自定义参数名称!$C$10&\"=\"&自定义参数_批量构建!H201&\"&\"&自定义参数名称!$C$11&\"=\"&自定义参数_批量构建!K201&\"&\"&自定义参数名称!$C$12&\"=\"&自定义参数_批量构建!N201&\"&\"&自定义参数名称!$C$13&\"=\"&自定义参数_批量构建!Q201","v":"?请在此处填写您自定义的参数名称=&请在此处填写您自定义的参数名称=&请在此处填写您自定义的参数名称=&请在此处填写您自定义的参数名称=&请在此处填写您自定义的参数名称="}]
[null,null,null,null,"",null,null,null,null,null,"",null,null,"",null,null,"",null,{"$f":"B202&\"?\"&自定义参数名称!$C$9&\"=\"&自定义参数_批量构建!E202&\"&\"&自定义参数名称!$C$10&\"=\"&自定义参数_批量构建!H202&\"&\"&自定义参数名称!$C$11&\"=\"&自定义参数_批量构建!K202&\"&\"&自定义参数名称!$C$12&\"=\"&自定义参数_批量构建!N202&\"&\"&自定义参数名称!$C$13&\"=\"&自定义参数_批量构建!Q202","v":"?请在此处填写您自定义的参数名称=&请在此处填写您自定义的参数名称=&请在此处填写您自定义的参数名称=&请在此处填写您自定义的参数名称=&请在此处填写您自定义的参数名称="}]
[null,null,null,null,"",null,null,null,null,null,"",null,null,"",null,null,"",null,{"$f":"B203&\"?\"&自定义参数名称!$C$9&\"=\"&自定义参数_批量构建!E203&\"&\"&自定义参数名称!$C$10&\"=\"&自定义参数_批量构建!H203&\"&\"&自定义参数名称!$C$11&\"=\"&自定义参数_批量构建!K203&\"&\"&自定义参数名称!$C$12&\"=\"&自定义参数_批量构建!N203&\"&\"&自定义参数名称!$C$13&\"=\"&自定义参数_批量构建!Q203","v":"?请在此处填写您自定义的参数名称=&请在此处填写您自定义的参数名称=&请在此处填写您自定义的参数名称=&请在此处填写您自定义的参数名称=&请在此处填写您自定义的参数名称="}]
[null,null,null,null,"",null,null,null,null,null,"",null,null,"",null,null,"",null,{"$f":"B204&\"?\"&自定义参数名称!$C$9&\"=\"&自定义参数_批量构建!E204&\"&\"&自定义参数名称!$C$10&\"=\"&自定义参数_批量构建!H204&\"&\"&自定义参数名称!$C$11&\"=\"&自定义参数_批量构建!K204&\"&\"&自定义参数名称!$C$12&\"=\"&自定义参数_批量构建!N204&\"&\"&自定义参数名称!$C$13&\"=\"&自定义参数_批量构建!Q204","v":"?请在此处填写您自定义的参数名称=&请在此处填写您自定义的参数名称=&请在此处填写您自定义的参数名称=&请在此处填写您自定义的参数名称=&请在此处填写您自定义的参数名称="}]